Workbook

Sheet DADOS
A1: SAÍDA | B1: DATA | C1: LOCAL | D1: PLACA | E1: FAMÍLIA | F1: CÓDIGO | G1: GÊNERO | H1: CÓDIGO | I1: ESPÉCIE | J1: bonito | K1: cod2 | L1: CÓDIGO | M1: folha | N1: ID (Beto) | O1: L (mm) | P1: F (x50g) | Q1: L (mm) | R1: F (x50g) | S1: L (mm) | T1: F (x50g) | U1: Ef (mm) | V1: Ef (mm) | W1: Ef (mm) | X1: Ef (mm) | Y1: Ef (mm) | Z1: mur (g) | AA1: muf (g) | AB1: muf2 (g) | AC1: msr (g) | AD1: msf (g) | AE1: msf2 (g) | AF1: msf-amira(g) | AG1: Af média(mm2) | AH1: Af média 2 (mm2) | AI1: Nf | AJ1: conferir | AK1: OBS | AL1: SLA (mm2/mg) | AM1: LS (mm2) | AN1: LDMC (%) | AO1: LT (mm) | AP1: LTS (N/mm) | AQ1: x | AR1: SLA2 (mm2/mg) | AS1: LS2 (mm) | AT1: LDMC2 (%)
A2: 11 | B2: 2009-07-11 | C2: FL | D2: 3664 | E2: Fabaceae | F2: FABA | G2: Abarema | H2: ABA | I2: Abarema_cochleata_(Willd.)_Barneby_&_J._W._Grimes | J2: Abarema cochleata | K2: Abac | L2: ABACOC | M2: composta | N2: NA | O2: 11.86 | P2: 7 | Q2: 12.34 | R2: 8 | S2: 11.89 | T2: 7 | U2: 0.18 | V2: 0.18 | W2: 0.2 | X2: 0.2 | Y2: 0.21 | Z2: 2.328 | AA2: 34.162 | AB2: =IF(AA2="NA","NA",IF(M2="simples",AA2,IF(Z2="NA","NA",AA2-Z2))) -> 31.834 | AC2: 0.986 | AD2: =0.986+2*7.014 -> 15.014 | AE2: =IF(AD2="NA","NA",IF(M2="simples",AD2,IF(AC2="NA","NA",AD2-AC2))) -> 14.028 | AF2: NA | AG2: 39853.4 | AH2: 39590.4 | AI2: 5 | AL2: =IF(AG2="NA","NA",IF(AD2="NA","NA",(AG2*AI2/(AD2*1000)))) -> 13.27207939 | AM2: 1996.58 | AN2: =IF(AA2="NA","NA",IF(AD2="NA","NA",(AD2*100/AA2))) -> 43.94941748 | AO2: =IF(U2="NA","NA",IF(V2="NA","NA",AVERAGE(U2:Y2))) -> 0.194 | AP2: =((P2*0.5/O2)+(R2*0.5/Q2)+(T2*0.5/S2))/3 -> 0.3045412444 | AR2: =IF(M2="simples",AL2,IF(AE2="NA","NA",IF(AH2="NA","NA",(AH2*AI2/(AE2*1000))))) -> 14.11120616 | AS2: 19965.8 | AT2: =IF(M2="simples",AN2,IF(AB2="NA","NA",IF(AE2="NA","NA",(AE2*100/AB2)))) -> 44.06609286
A3: 7 | B3: 2009-05-05 | C3: 41 | D3: 558 | E3: Lauraceae | F3: LAUR | G3: Aniba | H3: ANI | I3: Aniba_burchellii/panurensis_s.l. | J3: Aniba burchellii/panurensis | K3: Anib | L3: ANIBUR | M3: simples | N3: NA | O3: 10.59 | P3: 15 | Q3: 10.45 | R3: 15 | S3: 11.26 | T3: 15 | U3: 0.26 | V3: 0.27 | W3: 0.28 | X3: 0.26 | Y3: 0.26 | Z3: NA | AA3: 1.556 | AB3: =IF(AA3="NA","NA",IF(M3="simples",AA3,IF(Z3="NA","NA",AA3-Z3))) -> 1.556 | AC3: NA | AD3: 0.765 | AE3: =IF(AD3="NA","NA",IF(M3="simples",AD3,IF(AC3="NA","NA",AD3-AC3))) -> 0.765 | AF3: NA | AG3: 1501.2 | AH3: 1501.2 | AI3: 5 | AL3: 9.811764706 | AM3: 1489.6 | AN3: =IF(AA3="NA","NA",IF(AD3="NA","NA",(AD3*100/AA3))) -> 49.16452442 | AO3: 0.266 | AP3: =((P3*0.5/O3)+(R3*0.5/Q3)+(T3*0.5/S3))/3 -> 0.6973310824 | AR3: =IF(M3="simples",AL3,IF(AE3="NA","NA",IF(AH3="NA","NA",(AH3*AI3/(AE3*1000))))) -> 9.811764706 | AS3: 1489.6 | AT3: =IF(M3="simples",AN3,IF(AB3="NA","NA",IF(AE3="NA","NA",(AE3*100/AB3)))) -> 49.16452442
A4: 11 | B4: 2009-07-10 | C4: FL | D4: 4720 | E4: Lauraceae | F4: LAUR | G4: Aniba | H4: ANI | I4: Aniba_burchellii/panurensis_s.l. | J4: Aniba burchellii/panurensis | K4: Anib | L4: ANIBUR | M4: simples | N4: NA | O4: 10.91 | P4: 19 | Q4: 10.24 | R4: 16 | S4: 11.77 | T4: 18 | U4: 0.23 | V4: 0.25 | W4: 0.24 | X4: 0.26 | Y4: 0.26 | Z4: NA | AA4: 5.472 | AB4: 5.472 | AC4: NA | AD4: 2.581 | AE4: 2.581 | AF4: NA | AG4: 3790.4 | AH4: 3790.4 | AI4: 5 | AL4: 7.342890353 | AM4: 3759.4 | AN4: 47.16739766 | AO4: 0.248 | AP4: 0.8055555583 | AR4: =IF(M4="simples",AL4,IF(AE4="NA","NA",IF(AH4="NA","NA",(AH4*AI4/(AE4*1000))))) -> 7.342890353 | AS4: 3759.4 | AT4: =IF(M4="simples",AN4,IF(AB4="NA","NA",IF(AE4="NA","NA",(AE4*100/AB4)))) -> 47.16739766
A5: 9 | B5: 2009-06-04 | C5: CF | D5: 5245 | E5: Lauraceae | F5: LAUR | G5: Aniba | H5: ANI | I5: Aniba_burchellii/panurensis_s.l. | J5: Aniba burchellii/panurensis | K5: Anib | L5: ANIBUR | M5: simples | N5: NA | O5: 10.64 | P5: 10 | Q5: 10.15 | R5: 9 | S5: 8.8 | T5: 10 | U5: 0.16 | V5: 0.16 | W5: 0.17 | X5: 0.17 | Y5: 0.17 | Z5: NA | AA5: 3.177 | AB5: 3.177 | AC5: NA | AD5: 1.58 | AE5: 1.58 | AF5: NA | AG5: 5242.2 | AH5: 5242.2 | AI5: 5 | AL5: 16.58924051 | AM5: 5215.8 | AN5: 49.732452 | AO5: 0.166 | AP5: 0.4938187946 | AR5: =IF(M5="simples",AL5,IF(AE5="NA","NA",IF(AH5="NA","NA",(AH5*AI5/(AE5*1000))))) -> 16.58924051 | AS5: 5215.8 | AT5: =IF(M5="simples",AN5,IF(AB5="NA","NA",IF(AE5="NA","NA",(AE5*100/AB5)))) -> 49.732452
A6: 4 | B6: 2009-03-22 | C6: 37 | D6: 114064 | E6: Lauraceae | F6: LAUR | G6: Aniba | H6: ANI | I6: Aniba_burchellii/panurensis_s.l. | J6: Aniba burchellii/panurensis | K6: Anib | L6: ANIBUR | M6: simples | N6: OK | O6: 11.49 | P6: 20 | Q6: 12.34 | R6: 25 | S6: 11.13 | T6: 22 | U6: 0.32 | V6: 0.32 | W6: 0.36 | X6: 0.3 | Y6: 0.3 | Z6: NA | AA6: 16.38 | AB6: 16.38 | AC6: NA | AD6: NA | AE6: NA | AF6: NA | AG6: 11757 | AH6: 11757 | AI6: 5 | AL6: NA | AM6: 11968 | AN6: NA | AO6: 0.32 | AP6: 0.9572026132 | AR6: =IF(M6="simples",AL6,IF(AE6="NA","NA",IF(AH6="NA","NA",(AH6*AI6/(AE6*1000))))) -> NA | AS6: 11968 | AT6: =IF(M6="simples",AN6,IF(AB6="NA","NA",IF(AE6="NA","NA",(AE6*100/AB6)))) -> NA
A7: 0 | B7: 2008-05-27 | C7: 37 | D7: 242474 | E7: Lauraceae | F7: LAUR | G7: Aniba | H7: ANI | I7: Aniba_burchellii/panurensis_s.l. | J7: Aniba burchellii/panurensis | K7: Anib | L7: ANIBUR | M7: simples | N7: não consta | O7: 11.29 | P7: 11 | Q7: NA | R7: NA | S7: NA | T7: NA | U7: NA | V7: NA | W7: NA | X7: NA | Y7: NA | Z7: NA | AA7: NA | AB7: =IF(AA7="NA","NA",IF(M7="simples",AA7,IF(Z7="NA","NA",AA7-Z7))) -> NA | AC7: NA | AD7: 0.979 | AE7: =IF(AD7="NA","NA",IF(M7="simples",AD7,IF(AC7="NA","NA",AD7-AC7))) -> 0.979 | AF7: NA | AG7: 2944 | AH7: 2944 | AI7: 5 | AL7: 15.03575077 | AM7: 2920.6 | AN7: =IF(AA7="NA","NA",IF(AD7="NA","NA",(AD7*100/AA7))) -> NA | AO7: =IF(U7="NA","NA",IF(V7="NA","NA",AVERAGE(U7:Y7))) -> NA | AP7: =((P7*0.5/O7)) -> 0.4871567759 | AR7: =IF(M7="simples",AL7,IF(AE7="NA","NA",IF(AH7="NA","NA",(AH7*AI7/(AE7*1000))))) -> 15.03575077 | AS7: 2920.6 | AT7: =IF(M7="simples",AN7,IF(AB7="NA","NA",IF(AE7="NA","NA",(AE7*100/AB7)))) -> NA
A8: 7 | B8: 2009-05-07 | C8: 41 | D8: 288 | E8: Lauraceae | F8: LAUR | G8: Aniba | H8: ANI | I8: Aniba_canelilla_(Kunth)_Mez | J8: Aniba canelilla | K8: Anic | L8: ANICAN | M8: simples | N8: NA | O8: 11.46 | P8: 24 | Q8: 9.53 | R8: 18 | S8: 10.21 | T8: 24 | U8: 0.21 | V8: 0.2 | W8: 0.19 | X8: 0.21 | Y8: 0.25 | Z8: NA | AA8: 4.922 | AB8: 4.922 | AC8: NA | AD8: 2.662 | AE8: 2.662 | AF8: NA | AG8: 4907 | AH8: 4907 | AI8: 5 | AK8: coletado 2X (amira e eu) | AL8: 9.21675432 | AM8: 4872.8 | AN8: 54.08370581 | AO8: =IF(U8="NA","NA",IF(V8="NA","NA",AVERAGE(U8:Y8))) -> 0.212 | AP8: =((P8*0.5/O8)+(R8*0.5/Q8)+(T8*0.5/S8))/3 -> 1.055608294 | AR8: =IF(M8="simples",AL8,IF(AE8="NA","NA",IF(AH8="NA","NA",(AH8*AI8/(AE8*1000))))) -> 9.21675432 | AS8: 4872.8 | AT8: =IF(M8="simples",AN8,IF(AB8="NA","NA",IF(AE8="NA","NA",(AE8*100/AB8)))) -> 54.08370581
A9: 9 | B9: 2009-06-04 | C9: CF | D9: 5084 | E9: Lauraceae | F9: LAUR | G9: Aniba | H9: ANI | I9: Aniba_canelilla_(Kunth)_Mez | J9: Aniba canelilla | K9: Anic | L9: ANICAN | M9: simples | N9: NA | O9: 8.55 | P9: 18 | Q9: 10 | R9: 24 | S9: 9.65 | T9: 22 | U9: 0.2 | V9: 0.21 | W9: 0.23 | X9: 0.22 | Y9: 0.19 | Z9: NA | AA9: 4.192 | AB9: 4.192 | AC9: NA | AD9: 2.415 | AE9: 2.415 | AF9: NA | AG9: 4177.6 | AH9: 4177.6 | AI9: 5 | AL9: 8.649275362 | AM9: 4175.8 | AN9: 57.60973282 | AO9: =IF(U9="NA","NA",IF(V9="NA","NA",AVERAGE(U9:Y9))) -> 0.21 | AP9: 1.130842651 | AR9: =IF(M9="simples",AL9,IF(AE9="NA","NA",IF(AH9="NA","NA",(AH9*AI9/(AE9*1000))))) -> 8.649275362 | AS9: 4175.8 | AT9: =IF(M9="simples",AN9,IF(AB9="NA","NA",IF(AE9="NA","NA",(AE9*100/AB9)))) -> 57.60973282
A10: 3 | B10: 2009-03-10 | C10: 37 | D10: 101627 | E10: Lauraceae | F10: LAUR | G10: Aniba | H10: ANI | I10: Aniba_canelilla_(Kunth)_Mez | J10: Aniba canelilla | K10: Anic | L10: ANICAN | M10: simples | N10: OK | O10: 11.37 | P10: 13 | Q10: 10.99 | R10: 18 | S10: 11.24 | T10: 15 | U10: 0.29 | V10: 0.3 | W10: 0.32 | X10: 0.22 | Y10: 0.31 | Z10: NA | AA10: 6.013 | AB10: 6.013 | AC10: NA | AD10: 3.136 | AE10: 3.136 | AF10: NA | AG10: 6251.4 | AH10: 6251.4 | AI10: 5 | AK10: lt_remov | AL10: 9.967155612 | AM10: 6206 | AN10: 52.15366705 | AO10: NA | AP10: 0.6859553141 | AR10: =IF(M10="simples",AL10,IF(AE10="NA","NA",IF(AH10="NA","NA",(AH10*AI10/(AE10*1000))))) -> 9.967155612 | AS10: 6206 | AT10: =IF(M10="simples",AN10,IF(AB10="NA","NA",IF(AE10="NA","NA",(AE10*100/AB10)))) -> 52.15366705
A11: 11 | B11: 2009-07-09 | C11: FL | D11: 2460 | E11: Anisophylleaceae | F11: ANIS | G11: Anisophyllea | H11: ANS | I11: Anisophyllea_manausensis_Pires_&_W._A._Rodrigues | J11: Anisophyllea manausensis | K11: Ansm | L11: ANSMAN | M11: simples | N11: NA | O11: 11.58 | P11: 14 | Q11: 10.03 | R11: 10 | S11: 11.46 | T11: 13 | U11: 0.19 | V11: 0.18 | W11: 0.21 | X11: 0.21 | Y11: 0.21 | Z11: NA | AA11: 7.181 | AB11: 7.181 | AC11: NA | AD11: 3.268 | AE11: 3.268 | AF11: NA | AG11: 5300.4 | AH11: 5300.4 | AI11: 5 | AL11: 8.109547124 | AM11: 5285.8 | AN11: 45.50898204 | AO11: =IF(U11="NA","NA",IF(V11="NA","NA",AVERAGE(U11:Y11))) -> 0.2 | AP11: 0.5567284048 | AR11: =IF(M11="simples",AL11,IF(AE11="NA","NA",IF(AH11="NA","NA",(AH11*AI11/(AE11*1000))))) -> 8.109547124 | AS11: 5285.8 | AT11: =IF(M11="simples",AN11,IF(AB11="NA","NA",IF(AE11="NA","NA",(AE11*100/AB11)))) -> 45.50898204
A12: 10 | B12: 2009-06-16 | C12: FL | D12: 5615 | E12: Anisophylleaceae | F12: ANIS | G12: Anisophyllea | H12: ANS | I12: Anisophyllea_manausensis_Pires_&_W._A._Rodrigues | J12: Anisophyllea manausensis | K12: Ansm | L12: ANSMAN | M12: simples | N12: NA | O12: 12.83 | P12: 25 | Q12: 13.03 | R12: 22 | S12: 13.53 | T12: 23 | U12: 0.23 | V12: 0.25 | W12: 0.25 | X12: 0.22 | Y12: 0.25 | Z12: NA | AA12: 10.341 | AB12: 10.341 | AC12: NA | AD12: 4.332 | AE12: 4.332 | AF12: NA | AG12: 8120 | AH12: 8120 | AI12: 5 | AL12: 9.372114497 | AM12: 8097 | AN12: 41.89149985 | AO12: 0.24 | AP12: 0.8894825859 | AR12: =IF(M12="simples",AL12,IF(AE12="NA","NA",IF(AH12="NA","NA",(AH12*AI12/(AE12*1000))))) -> 9.372114497 | AS12: 8097 | AT12: =IF(M12="simples",AN12,IF(AB12="NA","NA",IF(AE12="NA","NA",(AE12*100/AB12)))) -> 41.89149985
A13: 10 | B13: 2009-06-17 | C13: FL | D13: 6297 | E13: Anisophylleaceae | F13: ANIS | G13: Anisophyllea | H13: ANS | I13: Anisophyllea_manausensis_Pires_&_W._A._Rodrigues | J13: Anisophyllea manausensis | K13: Ansm | L13: ANSMAN | M13: simples | N13: NA | O13: 9.34 | P13: 12 | Q13: 10.77 | R13: 19 | S13: 9.49 | T13: 15 | U13: 0.27 | V13: 0.23 | W13: 0.22 | X13: 0.24 | Y13: 0.26 | Z13: NA | AA13: 11.176 | AB13: 11.176 | AC13: NA | AD13: 5.3 | AE13: 5.3 | AF13: NA | AG13: 9110.6 | AH13: 9110.6 | AI13: 5 | AL13: 8.59490566 | AM13: 9090.2 | AN13: 47.42304939 | AO13: 0.244 | AP13: 0.7715945744 | AR13: =IF(M13="simples",AL13,IF(AE13="NA","NA",IF(AH13="NA","NA",(AH13*AI13/(AE13*1000))))) -> 8.59490566 | AS13: 9090.2 | AT13: =IF(M13="simples",AN13,IF(AB13="NA","NA",IF(AE13="NA","NA",(AE13*100/AB13)))) -> 47.42304939
A14: 10 | B14: 2009-06-20 | C14: FL | D14: 6506 | E14: Anisophylleaceae | F14: ANIS | G14: Anisophyllea | H14: ANS | I14: Anisophyllea_manausensis_Pires_&_W._A._Rodrigues | J14: Anisophyllea manausensis | K14: Ansm | L14: ANSMAN | M14: simples | N14: NA | O14: 9.34 | P14: 12 | Q14: 10.31 | R14: 12 | S14: 8.88 | T14: 12 | U14: 0.24 | V14: 0.24 | W14: 0.25 | X14: 0.25 | Y14: 0.23 | Z14: NA | AA14: 5.842 | AB14: 5.842 | AC14: NA | AD14: 2.46 | AE14: 2.46 | AF14: NA | AG14: 5790.8 | AH14: 5790.8 | AI14: 5 | AL14: 11.7699187 | AM14: 5773.2 | AN14: 42.10886683 | AO14: 0.242 | AP14: 0.6333444085 | AR14: =IF(M14="simples",AL14,IF(AE14="NA","NA",IF(AH14="NA","NA",(AH14*AI14/(AE14*1000))))) -> 11.7699187 | AS14: 5773.2 | AT14: =IF(M14="simples",AN14,IF(AB14="NA","NA",IF(AE14="NA","NA",(AE14*100/AB14)))) -> 42.10886683
A15: 9 | B15: 2009-06-06 | C15: CF | D15: AMCF-1 | E15: Anisophylleaceae | F15: ANIS | G15: Anisophyllea | H15: ANS | I15: Anisophyllea_manausensis_Pires_&_W._A._Rodrigues | J15: Anisophyllea manausensis | K15: Ansm | L15: ANSMAN | M15: simples | N15: NA | O15: 9.89 | P15: 12 | Q15: 9.44 | R15: 11 | S15: 9.21 | T15: 11 | U15: 0.22 | V15: 0.22 | W15: 0.24 | X15: 0.23 | Y15: 0.24 | Z15: NA | AA15: 4.807 | AB15: 4.807 | AC15: NA | AD15: 1.99 | AE15: 1.99 | AF15: NA | AG15: 5174.8 | AH15: 5174.8 | AI15: 5 | AK15: SEM PLACA! | AL15: 13.00201005 | AM15: 5159.4 | AN15: 41.39796131 | AO15: 0.23 | AP15: 0.5954925026 | AR15: =IF(M15="simples",AL15,IF(AE15="NA","NA",IF(AH15="NA","NA",(AH15*AI15/(AE15*1000))))) -> 13.00201005 | AS15: 5159.4 | AT15: =IF(M15="simples",AN15,IF(AB15="NA","NA",IF(AE15="NA","NA",(AE15*100/AB15)))) -> 41.39796131
A16: 10 | B16: 2009-06-21 | C16: FL | D16: AMFL-1 | E16: Anisophylleaceae | F16: ANIS | G16: Anisophyllea | H16: ANS | I16: Anisophyllea_manausensis_Pires_&_W._A._Rodrigues | J16: Anisophyllea manausensis | K16: Ansm | L16: ANSMAN | M16: simples | N16: NA | O16: 10.08 | P16: 13 | Q16: 9.23 | R16: 10 | S16: 10.19 | T16: 11 | U16: 0.19 | V16: 0.18 | W16: 0.19 | X16: 0.2 | Y16: 0.22 | Z16: NA | AA16: 3.652 | AB16: 3.652 | AC16: NA | AD16: 1.559 | AE16: 1.559 | AF16: NA | AG16: 4285.8 | AH16: 4285.8 | AI16: 5 | AL16: 13.74534958 | AM16: 4274.6 | AN16: 42.68893757 | AO16: 0.196 | AP16: 0.5754326423 | AR16: =IF(M16="simples",AL16,IF(AE16="NA","NA",IF(AH16="NA","NA",(AH16*AI16/(AE16*1000))))) -> 13.74534958 | AS16: 4274.6 | AT16: =IF(M16="simples",AN16,IF(AB16="NA","NA",IF(AE16="NA","NA",(AE16*100/AB16)))) -> 42.68893757
A17: 9 | B17: 2009-06-07 | C17: CF | D17: 3594 | E17: Apocynaceae | F17: APOC | G17: Aspidosperma | H17: ASP | I17: Aspidosperma_carapanauba_Pichon | J17: Aspidosperma carapanauba | K17: Aspc | L17: ASPCAR | M17: simples | N17: NA | O17: 11.85 | P17: 11 | Q17: 11.22 | R17: 26 | S17: 10.05 | T17: 20 | U17: 0.3 | V17: 0.3 | W17: 0.31 | X17: 0.31 | Y17: 0.32 | Z17: NA | AA17: 23.805 | AB17: 23.805 | AC17: NA | AD17: 9.563 | AE17: 9.563 | AF17: NA | AG17: 17080.6 | AH17: 17080.6 | AI17: 5 | AL17: 8.930565722 | AM17: 17016.4 | AN17: 40.17223272 | AO17: 0.308 | AP17: 0.8726017243 | AR17: =IF(M17="simples",AL17,IF(AE17="NA","NA",IF(AH17="NA","NA",(AH17*AI17/(AE17*1000))))) -> 8.930565722 | AS17: 17016.4 | AT17: =IF(M17="simples",AN17,IF(AB17="NA","NA",IF(AE17="NA","NA",(AE17*100/AB17)))) -> 40.17223272
A18: SD | B18: SD | C18: SD | D18: SD | E18: Apocynaceae | F18: APOC | G18: Aspidosperma | H18: ASP | I18: Aspidosperma_marcgravianum_Woodson | J18: Aspidosperma marcgravianum | K18: Aspm | L18: ASPMAR | M18: simples | N18: NA | O18: NA | P18: NA | Q18: NA | R18: NA | S18: NA | T18: NA | U18: NA | V18: NA | W18: NA | X18: NA | Y18: NA | Z18: NA | AA18: NA | AB18: NA | AC18: NA | AD18: NA | AE18: NA | AF18: NA | AG18: NA | AH18: NA | AI18: NA | AL18: NA | AM18: NA | AN18: NA | AO18: NA | AP18: NA | AR18: NA | AS18: NA | AT18: NA
A19: 11 | B19: 2009-07-13 | C19: CF | D19: 259 | E19: Apocynaceae | F19: APOC | G19: Aspidosperma | H19: ASP | I19: Aspidosperma_oblongum_A._DC. | J19: Aspidosperma oblongum | K19: Aspo | L19: ASPOBL | M19: simples | N19: NA | O19: 8.67 | P19: 12 | Q19: 7.85 | R19: 10 | S19: 6.99 | T19: 11 | U19: 0.18 | V19: 0.19 | W19: 0.21 | X19: 0.22 | Y19: 0.22 | Z19: NA | AA19: 1.79 | AB19: 1.79 | AC19: NA | AD19: 0.819 | AE19: 0.819 | AF19: NA | AG19: 1256 | AH19: 1256 | AI19: 5 | AL19: 7.667887668 | AM19: 1243.2 | AN19: 45.75418994 | AO19: 0.204 | AP19: 0.7052741794 | AR19: =IF(M19="simples",AL19,IF(AE19="NA","NA",IF(AH19="NA","NA",(AH19*AI19/(AE19*1000))))) -> 7.667887668 | AS19: 1243.2 | AT19: =IF(M19="simples",AN19,IF(AB19="NA","NA",IF(AE19="NA","NA",(AE19*100/AB19)))) -> 45.75418994
A20: 11 | B20: 2009-07-13 | C20: CF | D20: 3566 | E20: Apocynaceae | F20: APOC | G20: Aspidosperma | H20: ASP | I20: Aspidosperma_oblongum_A._DC. | J20: Aspidosperma oblongum | K20: Aspo | L20: ASPOBL | M20: simples | N20: NA | O20: 9.5 | P20: 11 | Q20: 10.65 | R20: 11 | S20: 10.66 | T20: 10 | U20: 0.15 | V20: 0.16 | W20: 0.17 | X20: 0.15 | Y20: 0.15 | Z20: NA | AA20: 2.367 | AB20: 2.367 | AC20: NA | AD20: 0.819 | AE20: 0.819 | AF20: NA | AG20: 2194 | AH20: 2194 | AI20: 5 | AL20: 13.39438339 | AM20: 2182.2 | AN20: 34.60076046 | AO20: 0.156 | AP20: 0.5214741484 | AR20: =IF(M20="simples",AL20,IF(AE20="NA","NA",IF(AH20="NA","NA",(AH20*AI20/(AE20*1000))))) -> 13.39438339 | AS20: 2182.2 | AT20: =IF(M20="simples",AN20,IF(AB20="NA","NA",IF(AE20="NA","NA",(AE20*100/AB20)))) -> 34.60076046
A21: 11 | B21: 2009-07-13 | C21: CF | D21: 6189 | E21: Apocynaceae | F21: APOC | G21: Aspidosperma | H21: ASP | I21: Aspidosperma_oblongum_A._DC. | J21: Aspidosperma oblongum | K21: Aspo | L21: ASPOBL | M21: simples | N21: NA | O21: 9.51 | P21: 9 | Q21: 11.03 | R21: 10 | S21: 9.41 | T21: 10 | U21: 0.18 | V21: 0.2 | W21: 0.18 | X21: 0.22 | Y21: 0.21 | Z21: NA | AA21: 2.478 | AB21: 2.478 | AC21: NA | AD21: 0.973 | AE21: 0.973 | AF21: NA | AG21: 1950 | AH21: 1950 | AI21: 5 | AL21: 10.02055498 | AM21: 1930.6 | AN21: 39.26553672 | AO21: 0.198 | AP21: 0.4859483016 | AR21: =IF(M21="simples",AL21,IF(AE21="NA","NA",IF(AH21="NA","NA",(AH21*AI21/(AE21*1000))))) -> 10.02055498 | AS21: 1930.6 | AT21: =IF(M21="simples",AN21,IF(AB21="NA","NA",IF(AE21="NA","NA",(AE21*100/AB21)))) -> 39.26553672
A22: 7 | B22: 2009-05-06 | C22: 41 | D22: 107 | E22: Annonaceae | F22: ANNO | G22: Bocageopsis | H22: BOC | I22: Bocageopsis_multiflora_(Mart.)_R._E._Fries | J22: Bocageopsis multiflora | K22: Bocm | L22: BOCMUL | M22: simples | N22: NA | O22: 11.71 | P22: 9 | Q22: 11.41 | R22: 9 | S22: 8.84 | T22: 6 | U22: 0.12 | V22: 0.12 | W22: 0.12 | X22: 0.12 | Y22: 0.11 | Z22: NA | AA22: 1.151 | AB22: 1.151 | AC22: NA | AD22: 0.653 | AE22: 0.653 | AF22: NA | AG22: 1475 | AH22: 1475 | AI22: 5 | AL22: 11.29402757 | AM22: 1465.4 | AN22: 56.73327541 | AO22: 0.118 | AP22: 0.3726814451 | AR22: =IF(M22="simples",AL22,IF(AE22="NA","NA",IF(AH22="NA","NA",(AH22*AI22/(AE22*1000))))) -> 11.29402757 | AS22: 1465.4 | AT22: =IF(M22="simples",AN22,IF(AB22="NA","NA",IF(AE22="NA","NA",(AE22*100/AB22)))) -> 56.73327541
A23: 0 | B23: 2008-04-01 | C23: CF | D23: 1201 | E23: Annonaceae | F23: ANNO | G23: Bocageopsis | H23: BOC | I23: Bocageopsis_multiflora_(Mart.)_R._E._Fries | J23: Bocageopsis multiflora | K23: Bocm | L23: BOCMUL | M23: simples | N23: NA | O23: 10.25 | P23: 9 | Q23: NA | R23: NA | S23: NA | T23: NA | U23: NA | V23: NA | W23: NA | X23: NA | Y23: NA | Z23: NA | AA23: NA | AB23: NA | AC23: NA | AD23: 0.792 | AE23: 0.792 | AF23: NA | AG23: 1870.2 | AH23: 1870.2 | AI23: 5 | AL23: 11.80681818 | AM23: 1863.2 | AN23: NA | AO23: NA | AP23: =(P23*0.5/O23) -> 0.4390243902 | AR23: =IF(M23="simples",AL23,IF(AE23="NA","NA",IF(AH23="NA","NA",(AH23*AI23/(AE23*1000))))) -> 11.80681818 | AS23: 1863.2 | AT23: =IF(M23="simples",AN23,IF(AB23="NA","NA",IF(AE23="NA","NA",(AE23*100/AB23)))) -> NA
A24: 7 | B24: 2009-05-08 | C24: 41 | D24: 1929 | E24: Annonaceae | F24: ANNO | G24: Bocageopsis | H24: BOC | I24: Bocageopsis_multiflora_(Mart.)_R._E._Fries | J24: Bocageopsis multiflora | K24: Bocm | L24: BOCMUL | M24: simples | N24: NA | O24: 10.54 | P24: 9 | Q24: 10.42 | R24: 9 | S24: 10.7 | T24: 9 | U24: 0.12 | V24: 0.11 | W24: 0.12 | X24: 0.11 | Y24: 0.1 | Z24: NA | AA24: 1.217 | AB24: 1.217 | AC24: NA | AD24: 0.635 | AE24: 0.635 | AF24: NA | AG24: 1798 | AH24: 1798 | AI24: 5 | AL24: 14.15748031 | AM24: 1792.8 | AN24: 52.17748562 | AO24: 0.112 | AP24: =((P24*0.5/O24)+(R24*0.5/Q24)+(T24*0.5/S24))/3 -> 0.4264558411 | AR24: =IF(M24="simples",AL24,IF(AE24="NA","NA",IF(AH24="NA","NA",(AH24*AI24/(AE24*1000))))) -> 14.15748031 | AS24: 1792.8 | AT24: =IF(M24="simples",AN24,IF(AB24="NA","NA",IF(AE24="NA","NA",(AE24*100/AB24)))) -> 52.17748562
A25: 6 | B25: 2009-04-22 | C25: 37 | D25: 4412 | E25: Annonaceae | F25: ANNO | G25: Bocageopsis | H25: BOC | I25: Bocageopsis_multiflora_(Mart.)_R._E._Fries | J25: Bocageopsis multiflora | K25: Bocm | L25: BOCMUL | M25: simples | N25: OK | O25: 8.55 | P25: 7 | Q25: 8.83 | R25: 8 | S25: 9.3 | T25: 8 | U25: 0.16 | V25: 0.15 | W25: 0.15 | X25: 0.15 | Y25: 0.13 | Z25: NA | AA25: 1.591 | AB25: 1.591 | AC25: NA | AD25: NA | AE25: NA | AF25: NA | AG25: 2266.8 | AH25: 2266.8 | AI25: 5 | AL25: NA | AM25: 2254.8 | AN25: NA | AO25: 0.148 | AP25: =((P25*0.5/O25)+(R25*0.5/Q25)+(T25*0.5/S25))/3 -> 0.4308217948 | AR25: =IF(M25="simples",AL25,IF(AE25="NA","NA",IF(AH25="NA","NA",(AH25*AI25/(AE25*1000))))) -> NA | AS25: 2254.8 | AT25: =IF(M25="simples",AN25,IF(AB25="NA","NA",IF(AE25="NA","NA",(AE25*100/AB25)))) -> NA
A26: 8 | B26: 2009-05-20 | C26: CF | D26: 6020 | E26: Annonaceae | F26: ANNO | G26: Bocageopsis | H26: BOC | I26: Bocageopsis_multiflora_(Mart.)_R._E._Fries | J26: Bocageopsis multiflora | K26: Bocm | L26: BOCMUL | M26: simples | N26: NA | O26: 8.1 | P26: 7 | Q26: 8.81 | R26: 6 | S26: 8.68 | T26: 8 | U26: 0.09 | V26: 0.1 | W26: 0.11 | X26: 0.12 | Y26: 0.13 | Z26: NA | AA26: 1.601 | AB26: 1.601 | AC26: NA | AD26: 0.83 | AE26: 0.83 | AF26: NA | AG26: 2330.8 | AH26: 2330.8 | AI26: 5 | AK26: coletado 2X (amira e eu); áreas da Amira | AL26: 14.04096386 | AM26: 2320.2 | AN26: 51.84259838 | AO26: 0.11 | AP26: =((P26*0.5/O26)+(R26*0.5/Q26)+(T26*0.5/S26))/3 -> 0.4111501308 | AR26: =IF(M26="simples",AL26,IF(AE26="NA","NA",IF(AH26="NA","NA",(AH26*AI26/(AE26*1000))))) -> 14.04096386 | AS26: 2320.2 | AT26: =IF(M26="simples",AN26,IF(AB26="NA","NA",IF(AE26="NA","NA",(AE26*100/AB26)))) -> 51.84259838
A27: 0 | B27: 2008-04-03 | C27: CF | D27: 6023 | E27: Annonaceae | F27: ANNO | G27: Bocageopsis | H27: BOC | I27: Bocageopsis_multiflora_(Mart.)_R._E._Fries | J27: Bocageopsis multiflora | K27: Bocm | L27: BOCMUL | M27: simples | N27: NA | O27: 10.16 | P27: 5 | Q27: NA | R27: NA | S27: NA | T27: NA | U27: NA | V27: NA | W27: NA | X27: NA | Y27: NA | Z27: NA | AA27: NA | AB27: NA | AC27: NA | AD27: 0.782 | AE27: 0.782 | AF27: NA | AG27: 2523.2 | AH27: 2523.2 | AI27: 5 | AL27: 16.13299233 | AM27: 2514.6 | AN27: NA | AO27: NA | AP27: =(P27*0.5/O27) -> 0.2460629921 | AR27: =IF(M27="simples",AL27,IF(AE27="NA","NA",IF(AH27="NA","NA",(AH27*AI27/(AE27*1000))))) -> 16.13299233 | AS27: 2514.6 | AT27: =IF(M27="simples",AN27,IF(AB27="NA","NA",IF(AE27="NA","NA",(AE27*100/AB27)))) -> NA
A28: 3 | B28: 2009-03-09 | C28: 37 | D28: 111827 | E28: Annonaceae | F28: ANNO | G28: Bocageopsis | H28: BOC | I28: Bocageopsis_multiflora_(Mart.)_R._E._Fries | J28: Bocageopsis multiflora | K28: Bocm | L28: BOCMUL | M28: simples | N28: OK | O28: 9.47 | P28: 7 | Q28: 10.55 | R28: 7 | S28: 9.72 | T28: 8 | U28: 0.16 | V28: 0.16 | W28: 0.17 | X28: 0.17 | Y28: 0.18 | Z28: NA | AA28: 1.555 | AB28: 1.555 | AC28: NA | AD28: 0.833 | AE28: 0.833 | AF28: NA | AG28: 1957.2 | AH28: 1957.2 | AI28: 5 | AL28: 11.74789916 | AM28: 1951.4 | AN28: 53.56913183 | AO28: NA | AP28: =((P28*0.5/O28)+(R28*0.5/Q28)+(T28*0.5/S28))/3 -> 0.3709547871 | AR28: =IF(M28="simples",AL28,IF(AE28="NA","NA",IF(AH28="NA","NA",(AH28*AI28/(AE28*1000))))) -> 11.74789916 | AS28: 1951.4 | AT28: =IF(M28="simples",AN28,IF(AB28="NA","NA",IF(AE28="NA","NA",(AE28*100/AB28)))) -> 53.56913183
A29: 4 | B29: 2009-03-20 | C29: 37 | D29: 113241 | E29: Annonaceae | F29: ANNO | G29: Bocageopsis | H29: BOC | I29: Bocageopsis_multiflora_(Mart.)_R._E._Fries | J29: Bocageopsis multiflora | K29: Bocm | L29: BOCMUL | M29: simples | N29: cf | O29: 10.99 | P29: 10 | Q29: 11.73 | R29: 10 | S29: 12.16 | T29: 11 | U29: 0.1 | V29: 0.11 | W29: 0.11 | X29: 0.11 | Y29: 0.12 | Z29: NA | AA29: 1.465 | AB29: 1.465 | AC29: NA | AD29: 0.796 | AE29: 0.796 | AF29: NA | AG29: 1976.8 | AH29: 1976.8 | AI29: 5 | AL29: 12.41708543 | AM29: 1964.8 | AN29: 54.33447099 | AO29: =IF(U29="NA","NA",IF(V29="NA","NA",AVERAGE(U29:Y29))) -> 0.11 | AP29: =((P29*0.5/O29)+(R29*0.5/Q29)+(T29*0.5/S29))/3 -> 0.4445063816 | AR29: =IF(M29="simples",AL29,IF(AE29="NA","NA",IF(AH29="NA","NA",(AH29*AI29/(AE29*1000))))) -> 12.41708543 | AS29: 1964.8 | AT29: =IF(M29="simples",AN29,IF(AB29="NA","NA",IF(AE29="NA","NA",(AE29*100/AB29)))) -> 54.33447099
A30: 2 | B30: 2009-02-14 | C30: 37 | D30: 146036 | E30: Annonaceae | F30: ANNO | G30: Bocageopsis | H30: BOC | I30: Bocageopsis_multiflora_(Mart.)_R._E._Fries | J30: Bocageopsis multiflora | K30: Bocm | L30: BOCMUL | M30: simples | N30: OK | O30: 12.3 | P30: 12 | Q30: NA | R30: NA | S30: NA | T30: NA | U30: NA | V30: NA | W30: NA | X30: NA | Y30: NA | Z30: NA | AA30: NA | AB30: NA | AC30: NA | AD30: 0.71 | AE30: 0.71 | AF30: NA | AG30: 2444.6 | AH30: 2444.6 | AI30: 5 | AL30: 17.21549296 | AM30: 2436.2 | AN30: NA | AO30: NA | AP30: =(P30*0.5/O30) -> 0.487804878 | AR30: =IF(M30="simples",AL30,IF(AE30="NA","NA",IF(AH30="NA","NA",(AH30*AI30/(AE30*1000))))) -> 17.21549296 | AS30: 2436.2 | AT30: =IF(M30="simples",AN30,IF(AB30="NA","NA",IF(AE30="NA","NA",(AE30*100/AB30)))) -> NA
A31: 8 | B31: 2009-05-19 | C31: CF | D31: 109 | E31: Fabaceae | F31: FABA | G31: Bocoa | H31: BOO | I31: Bocoa_viridiflora_(Ducke)_Cowan | J31: Bocoa viridiflora | K31: Bcov | L31: BOOVIR | M31: composta | N31: NA | O31: 10.33 | P31: 19 | Q31: 9.92 | R31: 17 | S31: 8.92 | T31: 16 | U31: 0.19 | V31: 0.19 | W31: 0.21 | X31: 0.18 | Y31: 0.19 | Z31: 1.819 | AA31: 25.373 | AB31: 23.554 | AC31: 0.7786 | AD31: =0.7786+2*5.084 -> 10.9466 | AE31: 10.168 | AF31: NA | AG31: NA | AH31: NA | AI31: 5 | AL31: NA | AM31: NA | AN31: 43.14271076 | AO31: 0.192 | AP31: =((P31*0.5/O31)+(R31*0.5/Q31)+(T31*0.5/S31))/3 -> 0.8911224419 | AR31: =IF(M31="simples",AL31,IF(AE31="NA","NA",IF(AH31="NA","NA",(AH31*AI31/(AE31*1000))))) -> NA | AS31: NA | AT31: =IF(M31="simples",AN31,IF(AB31="NA","NA",IF(AE31="NA","NA",(AE31*100/AB31)))) -> 43.16888851
A32: 7 | B32: 2009-05-08 | C32: 41 | D32: 1716 | E32: Fabaceae | F32: FABA | G32: Bocoa | H32: BOO | I32: Bocoa_viridiflora_(Ducke)_Cowan | J32: Bocoa viridiflora | K32: Bcov | L32: BOOVIR | M32: composta | N32: NA | O32: 12.78 | P32: 15 | Q32: 11.58 | R32: 23 | S32: 10.82 | T32: 24 | U32: 0.19 | V32: 0.23 | W32: 0.18 | X32: 0.19 | Y32: 0.2 | Z32: 0.474 | AA32: 10.872 | AB32: 10.398 | AC32: 0.249 | AD32: =0.249+2*2.763 -> 5.775 | AE32: 5.526 | AF32: NA | AG32: 13457 | AH32: 13332.8 | AI32: 5 | AL32: 11.65108225 | AM32: 4462.533333 | AN32: 53.11810155 | AO32: 0.198 | AP32: =((P32*0.5/O32)+(R32*0.5/Q32)+(T32*0.5/S32))/3 -> 0.8963344328 | AR32: =IF(M32="simples",AL32,IF(AE32="NA","NA",IF(AH32="NA","NA",(AH32*AI32/(AE32*1000))))) -> 12.06369888 | AS32: 6693.8 | AT32: =IF(M32="simples",AN32,IF(AB32="NA","NA",IF(AE32="NA","NA",(AE32*100/AB32)))) -> 53.14483555
A33: 6 | B33: 2009-04-22 | C33: 37 | D33: 5331 | E33: Fabaceae | F33: FABA | G33: Bocoa | H33: BOO | I33: Bocoa_viridiflora_(Ducke)_Cowan | J33: Bocoa viridiflora | K33: Bcov | L33: BOOVIR | M33: composta | N33: OK | O33: 9.08 | P33: 18 | Q33: 10.28 | R33: 20 | S33: 9.52 | T33: 20 | U33: 0.21 | V33: 0.21 | W33: 0.19 | X33: 0.2 | Y33: 0.21 | Z33: 0.911 | AA33: 13.539 | AB33: 12.628 | AC33: 0.461 | AD33: =2*3.265+0.461 -> 6.991 | AE33: 6.53 | AF33: NA | AG33: 15972 | AH33: 15772.8 | AI33: 5 | AL33: 11.42325848 | AM33: 5258.266667 | AN33: 51.63601448 | AO33: 0.204 | AP33: =((P33*0.5/O33)+(R33*0.5/Q33)+(T33*0.5/S33))/3 -> 1.004790747 | AR33: =IF(M33="simples",AL33,IF(AE33="NA","NA",IF(AH33="NA","NA",(AH33*AI33/(AE33*1000))))) -> 12.07718224 | AS33: 7887.4 | AT33: =IF(M33="simples",AN33,IF(AB33="NA","NA",IF(AE33="NA","NA",(AE33*100/AB33)))) -> 51.71048464
A34: 0 | B34: 2008-04-20 | C34: FL | D34: 5345 | E34: Fabaceae | F34: FABA | G34: Bocoa | H34: BOO | I34: Bocoa_viridiflora_(Ducke)_Cowan | J34: Bocoa viridiflora | K34: Bcov | L34: BOOVIR | M34: composta | N34: NA | O34: 10.5 | P34: 31 | Q34: NA | R34: NA | S34: NA | T34: NA | U34: NA | V34: NA | W34: NA | X34: NA | Y34: NA | Z34: NA | AA34: NA | AB34: NA | AC34: 0.347 | AD34: 4.137 | AE34: 3.79 | AF34: NA | AG34: 10111.8 | AH34: 9929.8 | AI34: 5 | AL34: 12.22117476 | AM34: 3320.866667 | AN34: NA | AO34: NA | AP34: =(P34*0.5/O34) -> 1.476190476 | AR34: =IF(M34="simples",AL34,IF(AE34="NA","NA",IF(AH34="NA","NA",(AH34*AI34/(AE34*1000))))) -> 13.1 | AS34: 9962.6 | AT34: =IF(M34="simples",AN34,IF(AB34="NA","NA",IF(AE34="NA","NA",(AE34*100/AB34)))) -> NA
A35: 0 | B35: 2008-04-19 | C35: FL | D35: 5505 | E35: Fabaceae | F35: FABA | G35: Bocoa | H35: BOO | I35: Bocoa_viridiflora_(Ducke)_Cowan | J35: Bocoa viridiflora | K35: Bcov | L35: BOOVIR | M35: composta | N35: NA | O35: 10.89 | P35: 31 | Q35: NA | R35: NA | S35: NA | T35: NA | U35: NA | V35: NA | W35: NA | X35: NA | Y35: NA | Z35: NA | AA35: NA | AB35: NA | AC35: 0.269 | AD35: 4.501 | AE35: 4.232 | AF35: NA | AG35: 17143 | AH35: 16999.8 | AI35: 5 | AL35: =IF(AG35="NA","NA",IF(AD35="NA","NA",(AG35*AI35/(AD35*1000)))) -> 19.04354588 | AM35: 3869.272727 | AN35: NA | AO35: NA | AP35: =(P35*0.5/O35) -> 1.423324151 | AR35: =IF(M35="simples",AL35,IF(AE35="NA","NA",IF(AH35="NA","NA",(AH35*AI35/(AE35*1000))))) -> 20.08482987 | AS35: 17024.8 | AT35: =IF(M35="simples",AN35,IF(AB35="NA","NA",IF(AE35="NA","NA",(AE35*100/AB35)))) -> NA
A36: 0 | B36: 2008-04-19 | C36: FL | D36: 6573 | E36: Fabaceae | F36: FABA | G36: Bocoa | H36: BOO | I36: Bocoa_viridiflora_(Ducke)_Cowan | J36: Bocoa viridiflora | K36: Bcov | L36: BOOVIR | M36: composta | N36: NA | O36: 10.64 | P36: 29 | Q36: NA | R36: NA | S36: NA | T36: NA | U36: NA | V36: NA | W36: NA | X36: NA | Y36: NA | Z36: NA | AA36: NA | AB36: NA | AC36: 0.565 | AD36: 7.037 | AE36: 6.472 | AF36: NA | AG36: 13886.6 | AH36: 13663.4 | AI36: 5 | AL36: 9.866846668 | AM36: 4554.466667 | AN36: NA | AO36: NA | AP36: =(P36*0.5/O36) -> 1.362781955 | AR36: =IF(M36="simples",AL36,IF(AE36="NA","NA",IF(AH36="NA","NA",(AH36*AI36/(AE36*1000))))) -> 10.55577874 | AS36: 13663.4 | AT36: =IF(M36="simples",AN36,IF(AB36="NA","NA",IF(AE36="NA","NA",(AE36*100/AB36)))) -> NA
A37: 0 | B37: 2008-05-10 | C37: 37 | D37: 51067 | E37: Fabaceae | F37: FABA | G37: Bocoa | H37: BOO | I37: Bocoa_viridiflora_(Ducke)_Cowan | J37: Bocoa viridiflora | K37: Bcov | L37: BOOVIR | M37: composta | N37: não consta | O37: 11.62 | P37: 29 | Q37: NA | R37: NA | S37: NA | T37: NA | U37: NA | V37: NA | W37: NA | X37: NA | Y37: NA | Z37: NA | AA37: NA | AB37: NA | AC37: 0.473 | AD37: 7.216 | AE37: 6.743 | AF37: NA | AG37: 17899.2 | AH37: 17716.2 | AI37: 5 | AL37: 12.40243902 | AM37: 5994.133333 | AN37: NA | AO37: NA | AP37: =(P37*0.5/O37) -> 1.247848537 | AR37: =IF(M37="simples",AL37,IF(AE37="NA","NA",IF(AH37="NA","NA",(AH37*AI37/(AE37*1000))))) -> 13.13673439 | AS37: 17982.4 | AT37: =IF(M37="simples",AN37,IF(AB37="NA","NA",IF(AE37="NA","NA",(AE37*100/AB37)))) -> NA
A38: 5 | B38: 2009-04-04 | C38: 37 | D38: 94373 | E38: Fabaceae | F38: FABA | G38: Bocoa | H38: BOO | I38: Bocoa_viridiflora_(Ducke)_Cowan | J38: Bocoa viridiflora | K38: Bcov | L38: BOOVIR | M38: composta | N38: OK | O38: 9.9 | P38: 18 | Q38: 9.62 | R38: 20 | S38: 10.52 | T38: 14 | U38: 0.16 | V38: 0.16 | W38: 0.14 | X38: 0.14 | Y38: 0.16 | Z38: NA | AA38: NA | AB38: NA | AC38: 0.213 | AD38: =0.213+2*3.004 -> 6.221 | AE38: 6.008 | AF38: NA | AG38: 6618 | AH38: 6557.6 | AI38: 5 | AL38: 5.319080534 | AM38: 2185.866667 | AN38: NA | AO38: 0.152 | AP38: =((P38*0.5/O38)+(R38*0.5/Q38)+(T38*0.5/S38))/3 -> 0.871330396 | AR38: =IF(M38="simples",AL38,IF(AE38="NA","NA",IF(AH38="NA","NA",(AH38*AI38/(AE38*1000))))) -> 5.457390146 | AS38: 3278.8 | AT38: =IF(M38="simples",AN38,IF(AB38="NA","NA",IF(AE38="NA","NA",(AE38*100/AB38)))) -> NA
A39: 5 | B39: 2009-04-05 | C39: 37 | D39: 95037? | E39: Fabaceae | F39: FABA | G39: Bocoa | H39: BOO | I39: Bocoa_viridiflora_(Ducke)_Cowan | J39: Bocoa viridiflora | K39: Bcov | L39: BOOVIR | M39: composta | N39: OK | O39: 8.86 | P39: 22 | Q39: 9.52 | R39: 27 | S39: 9.05 | T39: 23 | U39: 0.2 | V39: 0.2 | W39: 0.2 | X39: 0.2 | Y39: 0.2 | Z39: 0.265 | AA39: 5.093 | AB39: 4.828 | AC39: 0.139 | AD39: =2*1.207+0.139 -> 2.553 | AE39: 2.414 | AF39: NA | AG39: 6723 | AH39: 6627.2 | AI39: 5 | AL39: 13.16686251 | AM39: 2209.066667 | AN39: 50.12762615 | AO39: 0.2 | AP39: =((P39*0.5/O39)+(R39*0.5/Q39)+(T39*0.5/S39))/3 -> 1.310106816 | AR39: =IF(M39="simples",AL39,IF(AE39="NA","NA",IF(AH39="NA","NA",(AH39*AI39/(AE39*1000))))) -> 13.72659486 | AS39: 6627.2 | AT39: =IF(M39="simples",AN39,IF(AB39="NA","NA",IF(AE39="NA","NA",(AE39*100/AB39)))) -> 50
A40: 4 | B40: 2009-03-21 | C40: 37 | D40: 113957 | E40: Fabaceae | F40: FABA | G40: Bocoa | H40: BOO | I40: Bocoa_viridiflora_(Ducke)_Cowan | J40: Bocoa viridiflora | K40: Bcov | L40: BOOVIR | M40: composta | N40: OK | O40: 9.94 | P40: 20 | Q40: 11.31 | R40: 25 | S40: NA | T40: NA | U40: 0.19 | V40: 0.18 | W40: 0.2 | X40: 0.18 | Y40: 0.17 | Z40: NA | AA40: 12.054 | AB40: NA | AC40: NA | AD40: 6.356 | AE40: NA | AF40: NA | AG40: 13028 | AH40: 12909.8 | AI40: 5 | AL40: 10.24858402 | AM40: 4314.8 | AN40: 52.72938444 | AO40: 0.184 | AP40: =(P40*0.5/O40) -> 1.006036217 | AR40: =IF(M40="simples",AL40,IF(AE40="NA","NA",IF(AH40="NA","NA",(AH40*AI40/(AE40*1000))))) -> NA | AS40: 12944.4 | AT40: =IF(M40="simples",AN40,IF(AB40="NA","NA",IF(AE40="NA","NA",(AE40*100/AB40)))) -> NA
A41: 2 | B41: 2009-02-10 | C41: 37 | D41: 144229 | E41: Fabaceae | F41: FABA | G41: Bocoa | H41: BOO | I41: Bocoa_viridiflora_(Ducke)_Cowan | J41: Bocoa viridiflora | K41: Bcov | L41: BOOVIR | M41: composta | N41: cf | O41: 11.43 | P41: 28 | Q41: NA | R41: NA | S41: NA | T41: NA | U41: NA | V41: NA | W41: NA | X41: NA | Y41: NA | Z41: NA | AA41: NA | AB41: NA | AC41: NA | AD41: 5.43 | AE41: NA | AF41: NA | AG41: 7821.8 | AH41: 7691.2 | AI41: 5 | AL41: 7.202394107 | AM41: 2707.6 | AN41: NA | AO41: NA | AP41: =(P41*0.5/O41) -> 1.224846894 | AR41: =IF(M41="simples",AL41,IF(AE41="NA","NA",IF(AH41="NA","NA",(AH41*AI41/(AE41*1000))))) -> NA | AS41: 8122.8 | AT41: =IF(M41="simples",AN41,IF(AB41="NA","NA",IF(AE41="NA","NA",(AE41*100/AB41)))) -> NA
A42: SD | B42: SD | C42: SD | D42: SD | E42: Moraceae | F42: MORA | G42: Brosimum | H42: BRO | I42: Brosimum_acutifolium_Huber | J42: Brosimum acutifolium | K42: Broa | L42: BROACU | M42: simples | N42: NA | O42: NA | P42: NA | Q42: NA | R42: NA | S42: NA | T42: NA | U42: NA | V42: NA | W42: NA | X42: NA | Y42: NA | Z42: NA | AA42: NA | AB42: NA | AC42: NA | AD42: NA | AE42: NA | AF42: NA | AG42: NA | AH42: NA | AI42: 5 | AL42: NA | AM42: NA | AN42: NA | AO42: NA | AP42: NA | AR42: =IF(M42="simples",AL42,IF(AE42="NA","NA",IF(AH42="NA","NA",(AH42*AI42/(AE42*1000))))) -> NA | AS42: NA | AT42: =IF(M42="simples",AN42,IF(AB42="NA","NA",IF(AE42="NA","NA",(AE42*100/AB42)))) -> NA
A43: 7 | B43: 2009-05-07 | C43: 41 | D43: 68 | E43: Moraceae | F43: MORA | G43: Brosimum | H43: BRO | I43: Brosimum_guianense_(Aubl.)_Huber | J43: Brosimum guianense | K43: Brog | L43: BROGUI | M43: simples | N43: NA | O43: 10.88 | P43: 9 | Q43: 10.33 | R43: 11 | S43: 10.15 | T43: 12 | U43: 0.21 | V43: 0.21 | W43: 0.21 | X43: 0.22 | Y43: 0.17 | Z43: NA | AA43: 3.898 | AB43: 3.898 | AC43: NA | AD43: 1.847 | AE43: 1.847 | AF43: NA | AG43: 4034 | AH43: 4034 | AI43: 5 | AL43: 10.92041148 | AM43: 4011 | AN43: =IF(AA43="NA","NA",IF(AD43="NA","NA",(AD43*100/AA43))) -> 47.38327347 | AO43: 0.204 | AP43: =((P43*0.5/O43)+(R43*0.5/Q43)+(T43*0.5/S43))/3 -> 0.5123885874 | AR43: =IF(M43="simples",AL43,IF(AE43="NA","NA",IF(AH43="NA","NA",(AH43*AI43/(AE43*1000))))) -> 10.92041148 | AS43: 4011 | AT43: =IF(M43="simples",AN43,IF(AB43="NA","NA",IF(AE43="NA","NA",(AE43*100/AB43)))) -> 47.38327347
A44: 10 | B44: 2009-06-21 | C44: FL | D44: 1749 | E44: Moraceae | F44: MORA | G44: Brosimum | H44: BRO | I44: Brosimum_guianense_(Aubl.)_Huber | J44: Brosimum guianense | K44: Brog | L44: BROGUI | M44: simples | N44: NA | O44: 9.83 | P44: 7 | Q44: 10.39 | R44: 8 | S44: 10.72 | T44: 10 | U44: 0.2 | V44: 0.19 | W44: 0.19 | X44: 0.24 | Y44: 0.25 | Z44: NA | AA44: 4.005 | AB44: 4.005 | AC44: NA | AD44: 1.745 | AE44: 1.745 | AF44: NA | AG44: 4459.4 | AH44: 4459.4 | AI44: 5 | AL44: 12.77765043 | AM44: 4434.8 | AN44: 43.57053683 | AO44: 0.214 | AP44: =((P44*0.5/O44)+(R44*0.5/Q44)+(T44*0.5/S44))/3 -> 0.4024854576 | AR44: =IF(M44="simples",AL44,IF(AE44="NA","NA",IF(AH44="NA","NA",(AH44*AI44/(AE44*1000))))) -> 12.77765043 | AS44: 4434.8 | AT44: =IF(M44="simples",AN44,IF(AB44="NA","NA",IF(AE44="NA","NA",(AE44*100/AB44)))) -> 43.57053683
A45: 10 | B45: 2009-06-18 | C45: FL | D45: 4290 | E45: Moraceae | F45: MORA | G45: Brosimum | H45: BRO | I45: Brosimum_guianense_(Aubl.)_Huber | J45: Brosimum guianense | K45: Brog | L45: BROGUI | M45: simples | N45: NA | O45: 9.03 | P45: 7 | Q45: 9.75 | R45: 7 | S45: 9.79 | T45: 7 | U45: 0.21 | V45: 0.21 | W45: 0.22 | X45: 0.23 | Y45: 0.25 | Z45: NA | AA45: 3.854 | AB45: 3.854 | AC45: NA | AD45: 1.801 | AE45: 1.801 | AF45: NA | AG45: 3692 | AH45: 3692 | AI45: 5 | AL45: 10.24986119 | AM45: 3672.4 | AN45: 46.73066943 | AO45: 0.224 | AP45: =((P45*0.5/O45)+(R45*0.5/Q45)+(T45*0.5/S45))/3 -> 0.3680263064 | AR45: =IF(M45="simples",AL45,IF(AE45="NA","NA",IF(AH45="NA","NA",(AH45*AI45/(AE45*1000))))) -> 10.24986119 | AS45: 3672.4 | AT45: =IF(M45="simples",AN45,IF(AB45="NA","NA",IF(AE45="NA","NA",(AE45*100/AB45)))) -> 46.73066943
A46: 8 | B46: 2009-05-23 | C46: CF | D46: 4733 | E46: Moraceae | F46: MORA | G46: Brosimum | H46: BRO | I46: Brosimum_guianense_(Aubl.)_Huber | J46: Brosimum guianense | K46: Brog | L46: BROGUI | M46: simples | N46: NA | O46: 8.54 | P46: 11 | Q46: 9.4 | R46: 10 | S46: 10.31 | T46: 9 | U46: 0.23 | V46: 0.24 | W46: 0.24 | X46: 0.22 | Y46: 0.24 | Z46: NA | AA46: 4.858 | AB46: 4.858 | AC46: NA | AD46: 2.383 | AE46: 2.383 | AF46: NA | AG46: 4129.8 | AH46: 4129.8 | AI46: 5 | AL46: 8.66512799 | AM46: 4112.6 | AN46: 49.05310828 | AO46: 0.234 | AP46: =((P46*0.5/O46)+(R46*0.5/Q46)+(T46*0.5/S46))/3 -> 0.5374708146 | AR46: =IF(M46="simples",AL46,IF(AE46="NA","NA",IF(AH46="NA","NA",(AH46*AI46/(AE46*1000))))) -> 8.66512799 | AS46: 4112.6 | AT46: =IF(M46="simples",AN46,IF(AB46="NA","NA",IF(AE46="NA","NA",(AE46*100/AB46)))) -> 49.05310828
A47: 4 | B47: 2009-03-23 | C47: 37 | D47: 102964 | E47: Moraceae | F47: MORA | G47: Brosimum | H47: BRO | I47: Brosimum_guianense_(Aubl.)_Huber | J47: Brosimum guianense | K47: Brog | L47: BROGUI | M47: simples | N47: OK | O47: 15.6 | P47: 14 | Q47: 12.19 | R47: 11 | S47: 12.81 | T47: 13 | U47: 0.17 | V47: 0.19 | W47: 0.19 | X47: 0.2 | Y47: 0.16 | Z47: NA | AA47: 1.557 | AB47: 1.557 | AC47: NA | AD47: NA | AE47: NA | AF47: NA | AG47: 1741.4 | AH47: 1741.4 | AI47: 5 | AL47: NA | AM47: 1721 | AN47: NA | AO47: 0.182 | AP47: =((P47*0.5/O47)+(R47*0.5/Q47)+(T47*0.5/S47))/3 -> 0.4691078432 | AR47: =IF(M47="simples",AL47,IF(AE47="NA","NA",IF(AH47="NA","NA",(AH47*AI47/(AE47*1000))))) -> NA | AS47: 1721 | AT47: =IF(M47="simples",AN47,IF(AB47="NA","NA",IF(AE47="NA","NA",(AE47*100/AB47)))) -> NA
A48: 2 | B48: 2009-02-15 | C48: 37 | D48: 145697 | E48: Moraceae | F48: MORA | G48: Brosimum | H48: BRO | I48: Brosimum_guianense_(Aubl.)_Huber | J48: Brosimum guianense | K48: Brog | L48: BROGUI | M48: simples | N48: OK | O48: 8.34 | P48: 9 | Q48: NA | R48: NA | S48: NA | T48: NA | U48: NA | V48: NA | W48: NA | X48: NA | Y48: NA | Z48: NA | AA48: NA | AB48: NA | AC48: NA | AD48: 0.35 | AE48: 0.35 | AF48: NA | AG48: 946.8 | AH48: 946.8 | AI48: 5 | AL48: 13.52571429 | AM48: 936.6 | AN48: NA | AO48: NA | AP48: =(P48*0.5/O48) -> 0.5395683453 | AR48: =IF(M48="simples",AL48,IF(AE48="NA","NA",IF(AH48="NA","NA",(AH48*AI48/(AE48*1000))))) -> 13.52571429 | AS48: 936.6 | AT48: =IF(M48="simples",AN48,IF(AB48="NA","NA",IF(AE48="NA","NA",(AE48*100/AB48)))) -> NA
A49: 10 | B49: 2009-06-21 | C49: FL | D49: 1753 | E49: Moraceae | F49: MORA | G49: Brosimum | H49: BRO | I49: Brosimum_parinarioides_Ducke | J49: Brosimum parinarioides | K49: Brop | L49: BROPAR | M49: simples | N49: NA | O49: 10.44 | P49: 31 | Q49: 10.26 | R49: 27 | S49: 10.76 | T49: 28 | U49: 0.47 | V49: 0.49 | W49: 0.5 | X49: 0.43 | Y49: 0.53 | Z49: NA | AA49: 38.172 | AB49: 38.172 | AC49: NA | AD49: 17.346 | AE49: 17.346 | AF49: NA | AG49: 22509.2 | AH49: 22509.2 | AI49: 5 | AL49: 6.488297014 | AM49: 22383.4 | AN49: 45.441685 | AO49: 0.484 | AP49: =((P49*0.5/O49)+(R49*0.5/Q49)+(T49*0.5/S49))/3 -> 1.367193015 | AR49: =IF(M49="simples",AL49,IF(AE49="NA","NA",IF(AH49="NA","NA",(AH49*AI49/(AE49*1000))))) -> 6.488297014 | AS49: 22383.4 | AT49: =IF(M49="simples",AN49,IF(AB49="NA","NA",IF(AE49="NA","NA",(AE49*100/AB49)))) -> 45.441685
A50: 9 | B50: 2009-06-09 | C50: CF | D50: 3701 | E50: Moraceae | F50: MORA | G50: Brosimum | H50: BRO | I50: Brosimum_parinarioides_Ducke | J50: Brosimum parinarioides | K50: Brop | L50: BROPAR | M50: simples | N50: NA | O50: 10 | P50: 22 | Q50: 9.27 | R50: 23 | S50: 10.46 | T50: 24 | U50: 0.41 | V50: 0.42 | W50: 0.48 | X50: 0.52 | Y50: 0.48 | Z50: NA | AA50: 49.945 | AB50: 49.945 | AC50: NA | AD50: 23.405 | AE50: 23.405 | AF50: NA | AG50: 31741.2 | AH50: 31741.2 | AI50: 5 | AL50: 6.780858791 | AM50: 31555.6 | AN50: 46.8615477 | AO50: 0.462 | AP50: =((P50*0.5/O50)+(R50*0.5/Q50)+(T50*0.5/S50))/3 -> 1.162596161 | AR50: =IF(M50="simples",AL50,IF(AE50="NA","NA",IF(AH50="NA","NA",(AH50*AI50/(AE50*1000))))) -> 6.780858791 | AS50: 31555.6 | AT50: =IF(M50="simples",AN50,IF(AB50="NA","NA",IF(AE50="NA","NA",(AE50*100/AB50)))) -> 46.8615477
A51: 4 | B51: 2009-03-19 | C51: 37 | D51: 114252 | E51: Moraceae | F51: MORA | G51: Brosimum | H51: BRO | I51: Brosimum_parinarioides_Ducke | J51: Brosimum parinarioides | K51: Brop | L51: BROPAR | M51: simples | N51: OK | O51: 12.8 | P51: 37 | Q51: 7.86 | R51: 18 | S51: 8.61 | T51: 20 | U51: 0.42 | V51: 0.56 | W51: 0.54 | X51: 0.45 | Y51: 0.49 | Z51: NA | AA51: 53.55 | AB51: 53.55 | AC51: NA | AD51: 25.774 | AE51: 25.774 | AF51: NA | AG51: 34649.10555 | AH51: 34648.8 | AI51: 5 | AL51: 6.721716759 | AM51: 34471.51279 | AN51: 48.13071895 | AO51: 0.492 | AP51: =((P51*0.5/O51)+(R51*0.5/Q51)+(T51*0.5/S51))/3 -> 1.250596951 | AR51: =IF(M51="simples",AL51,IF(AE51="NA","NA",IF(AH51="NA","NA",(AH51*AI51/(AE51*1000))))) -> 6.721716759 | AS51: 34471.2 | AT51: =IF(M51="simples",AN51,IF(AB51="NA","NA",IF(AE51="NA","NA",(AE51*100/AB51)))) -> 48.13071895
A52: 8 | B52: 2009-05-21 | C52: CF | D52: 471 | E52: Moraceae | F52: MORA | G52: Brosimum | H52: BRO | I52: Brosimum_rubescens_Taub. | J52: Brosimum rubescens | K52: Bror | L52: BRORUB | M52: simples | N52: NA | O52: 8.33 | P52: 12 | Q52: 8.38 | R52: 12 | S52: 7.82 | T52: 10 | U52: 0.12 | V52: 0.13 | W52: 0.13 | X52: 0.14 | Y52: 0.14 | Z52: NA | AA52: 1.454 | AB52: 1.454 | AC52: NA | AD52: 0.615 | AE52: 0.615 | AF52: NA | AG52: NA | AH52: NA | AI52: 5 | AL52: NA | AM52: NA | AN52: 42.29711142 | AO52: 0.132 | AP52: =((P52*0.5/O52)+(R52*0.5/Q52)+(T52*0.5/S52))/3 -> 0.6918882527 | AR52: =IF(M52="simples",AL52,IF(AE52="NA","NA",IF(AH52="NA","NA",(AH52*AI52/(AE52*1000))))) -> NA | AS52: NA | AT52: =IF(M52="simples",AN52,IF(AB52="NA","NA",IF(AE52="NA","NA",(AE52*100/AB52)))) -> 42.29711142
A53: 7 | B53: 2009-05-09 | C53: 41 | D53: 1149 | E53: Moraceae | F53: MORA | G53: Brosimum | H53: BRO | I53: Brosimum_rubescens_Taub. | J53: Brosimum rubescens | K53: Bror | L53: BRORUB | M53: simples | N53: NA | O53: 8.28 | P53: 11 | Q53: 7.99 | R53: 7 | S53: 8.91 | T53: 13 | U53: 0.15 | V53: 0.15 | W53: 0.14 | X53: 0.19 | Y53: 0.16 | Z53: NA | AA53: 0.728 | AB53: 0.728 | AC53: NA | AD53: 0.347 | AE53: 0.347 | AF53: NA | AG53: 922.2 | AH53: 922.2 | AI53: 5 | AL53: 13.28818444 | AM53: 916 | AN53: 47.66483516 | AO53: 0.158 | AP53: =((P53*0.5/O53)+(R53*0.5/Q53)+(T53*0.5/S53))/3 -> 0.6106053878 | AR53: =IF(M53="simples",AL53,IF(AE53="NA","NA",IF(AH53="NA","NA",(AH53*AI53/(AE53*1000))))) -> 13.28818444 | AS53: 916 | AT53: =IF(M53="simples",AN53,IF(AB53="NA","NA",IF(AE53="NA","NA",(AE53*100/AB53)))) -> 47.66483516
A54: 0 | B54: 2008-04-19 | C54: FL | D54: 3869 | E54: Moraceae | F54: MORA | G54: Brosimum | H54: BRO | I54: Brosimum_rubescens_Taub. | J54: Brosimum rubescens | K54: Bror | L54: BRORUB | M54: simples | N54: NA | O54: 10.66 | P54: 22 | Q54: NA | R54: NA | S54: NA | T54: NA | U54: NA | V54: NA | W54: NA | X54: NA | Y54: NA | Z54: NA | AA54: NA | AB54: NA | AC54: NA | AD54: 3.467 | AE54: 3.467 | AF54: NA | AG54: 7903 | AH54: 7903 | AI54: 5 | AL54: 11.39746178 | AM54: 7865.8 | AN54: NA | AO54: NA | AP54: =(P54*0.5/O54) -> 1.031894934 | AR54: =IF(M54="simples",AL54,IF(AE54="NA","NA",IF(AH54="NA","NA",(AH54*AI54/(AE54*1000))))) -> 11.39746178 | AS54: 7865.8 | AT54: =IF(M54="simples",AN54,IF(AB54="NA","NA",IF(AE54="NA","NA",(AE54*100/AB54)))) -> NA
A55: 0 | B55: 2008-04-18 | C55: FL | D55: 3999 | E55: Moraceae | F55: MORA | G55: Brosimum | H55: BRO | I55: Brosimum_rubescens_Taub. | J55: Brosimum rubescens | K55: Bror | L55: BRORUB | M55: simples | N55: NA | O55: 10.49 | P55: 22 | Q55: NA | R55: NA | S55: NA | T55: NA | U55: NA | V55: NA | W55: NA | X55: NA | Y55: NA | Z55: NA | AA55: NA | AB55: NA | AC55: NA | AD55: 0.768 | AE55: 0.768 | AF55: NA | AG55: 1983 | AH55: 1983 | AI55: 5 | AL55: 12.91015625 | AM55: 1968.8 | AN55: NA | AO55: NA | AP55: =(P55*0.5/O55) -> 1.048617731 | AR55: =IF(M55="simples",AL55,IF(AE55="NA","NA",IF(AH55="NA","NA",(AH55*AI55/(AE55*1000))))) -> 12.91015625 | AS55: 1968.8 | AT55: =IF(M55="simples",AN55,IF(AB55="NA","NA",IF(AE55="NA","NA",(AE55*100/AB55)))) -> NA
A56: 6 | B56: 2009-04-22 | C56: 37 | D56: 4408 | E56: Moraceae | F56: MORA | G56: Brosimum | H56: BRO | I56: Brosimum_rubescens_Taub. | J56: Brosimum rubescens | K56: Bror | L56: BRORUB | M56: simples | N56: OK | O56: 10.86 | P56: 18 | Q56: 10.4 | R56: 20 | S56: 11.07 | T56: 22 | U56: 0.28 | V56: 0.3 | W56: 0.28 | X56: 0.27 | Y56: 0.31 | Z56: NA | AA56: 7.298 | AB56: 7.298 | AC56: NA | AD56: 3.524 | AE56: 3.524 | AF56: NA | AG56: 5721.6 | AH56: 5721.6 | AI56: 5 | AL56: 8.118047673 | AM56: 5694.2 | AN56: 48.28720197 | AO56: 0.288 | AP56: =((P56*0.5/O56)+(R56*0.5/Q56)+(T56*0.5/S56))/3 -> 0.9279814489 | AR56: =IF(M56="simples",AL56,IF(AE56="NA","NA",IF(AH56="NA","NA",(AH56*AI56/(AE56*1000))))) -> 8.118047673 | AS56: 5694.2 | AT56: =IF(M56="simples",AN56,IF(AB56="NA","NA",IF(AE56="NA","NA",(AE56*100/AB56)))) -> 48.28720197
A57: 10 | B57: 2009-06-16 | C57: FL | D57: 5240 | E57: Moraceae | F57: MORA | G57: Brosimum | H57: BRO | I57: Brosimum_rubescens_Taub. | J57: Brosimum rubescens | K57: Bror | L57: BRORUB | M57: simples | N57: NA | O57: 15.32 | P57: 27 | Q57: 12.94 | R57: 19 | S57: 14.1 | T57: 17 | U57: 0.21 | V57: 0.2 | W57: 0.21 | X57: 0.18 | Y57: 0.21 | Z57: NA | AA57: 3.09 | AB57: 3.09 | AC57: NA | AD57: 1.612 | AE57: 1.612 | AF57: NA | AG57: 3070.2 | AH57: 3070.2 | AI57: 5 | AK57: coletado 2X (amira e eu) | AL57: 9.522952854 | AM57: 3052.8 | AN57: 52.16828479 | AO57: 0.202 | AP57: =((P57*0.5/O57)+(R57*0.5/Q57)+(T57*0.5/S57))/3 -> 0.7393985248 | AR57: =IF(M57="simples",AL57,IF(AE57="NA","NA",IF(AH57="NA","NA",(AH57*AI57/(AE57*1000))))) -> 9.522952854 | AS57: 3052.8 | AT57: =IF(M57="simples",AN57,IF(AB57="NA","NA",IF(AE57="NA","NA",(AE57*100/AB57)))) -> 52.16828479
A58: 8 | B58: 2009-05-20 | C58: CF | D58: 5248 | E58: Moraceae | F58: MORA | G58: Brosimum | H58: BRO | I58: Brosimum_rubescens_Taub. | J58: Brosimum rubescens | K58: Bror | L58: BRORUB | M58: simples | N58: NA | O58: 8.22 | P58: 11 | Q58: 8.39 | R58: 10 | S58: 8.27 | T58: 10 | U58: 0.19 | V58: 0.2 | W58: 0.21 | X58: 0.24 | Y58: 0.24 | Z58: NA | AA58: 3.263 | AB58: 3.263 | AC58: NA | AD58: 1.509 | AE58: 1.509 | AF58: NA | AG58: NA | AH58: NA | AI58: 5 | AL58: NA | AM58: NA | AN58: 46.24578609 | AO58: 0.216 | AP58: =((P58*0.5/O58)+(R58*0.5/Q58)+(T58*0.5/S58))/3 -> 0.6232140782 | AR58: =IF(M58="simples",AL58,IF(AE58="NA","NA",IF(AH58="NA","NA",(AH58*AI58/(AE58*1000))))) -> NA | AS58: NA | AT58: =IF(M58="simples",AN58,IF(AB58="NA","NA",IF(AE58="NA","NA",(AE58*100/AB58)))) -> 46.24578609
A59: 4 | B59: 2009-03-22 | C59: 37 | D59: 104327 | E59: Moraceae | F59: MORA | G59: Brosimum | H59: BRO | I59: Brosimum_rubescens_Taub. | J59: Brosimum rubescens | K59: Bror | L59: BRORUB | M59: simples | N59: OK | O59: 7.15 | P59: 7 | Q59: 11.12 | R59: 12 | S59: 7.43 | T59: 10 | U59: 0.14 | V59: 0.14 | W59: 0.16 | X59: 0.16 | Y59: 0.14 | Z59: NA | AA59: =1.427/2 -> 0.7135 | AB59: 0.7135 | AC59: NA | AD59: =0.711/2 -> 0.3555 | AE59: 0.3555 | AF59: NA | AG59: 827 | AH59: 827 | AI59: 5 | AL59: 11.63150492 | AM59: 820 | AN59: 49.82480729 | AO59: 0.148 | AP59: =((P59*0.5/O59)+(R59*0.5/Q59)+(T59*0.5/S59))/3 -> 0.567342115 | AR59: =IF(M59="simples",AL59,IF(AE59="NA","NA",IF(AH59="NA","NA",(AH59*AI59/(AE59*1000))))) -> 11.63150492 | AS59: 820 | AT59: =IF(M59="simples",AN59,IF(AB59="NA","NA",IF(AE59="NA","NA",(AE59*100/AB59)))) -> 49.82480729
A60: 2 | B60: 2009-02-10 | C60: 37 | D60: 144117 | E60: Moraceae | F60: MORA | G60: Brosimum | H60: BRO | I60: Brosimum_rubescens_Taub. | J60: Brosimum rubescens | K60: Bror | L60: BRORUB | M60: simples | N60: cf | O60: 10.86 | P60: 15 | Q60: NA | R60: NA | S60: NA | T60: NA | U60: NA | V60: NA | W60: NA | X60: NA | Y60: NA | Z60: NA | AA60: NA | AB60: NA | AC60: NA | AD60: 0.333 | AE60: 0.333 | AF60: NA | AG60: 917.4 | AH60: 917.4 | AI60: 5 | AL60: 13.77477477 | AM60: 929.2 | AN60: NA | AO60: NA | AP60: =(P60*0.5/O60) -> 0.6906077348 | AR60: =IF(M60="simples",AL60,IF(AE60="NA","NA",IF(AH60="NA","NA",(AH60*AI60/(AE60*1000))))) -> 13.77477477 | AS60: 929.2 | AT60: =IF(M60="simples",AN60,IF(AB60="NA","NA",IF(AE60="NA","NA",(AE60*100/AB60)))) -> NA
A61: 0 | B61: 2008-05-27 | C61: 37 | D61: 252214 | E61: Moraceae | F61: MORA | G61: Brosimum | H61: BRO | I61: Brosimum_rubescens_Taub. | J61: Brosimum rubescens | K61: Bror | L61: BRORUB | M61: simples | N61: não consta | O61: 10.76 | P61: 23 | Q61: NA | R61: NA | S61: NA | T61: NA | U61: NA | V61: NA | W61: NA | X61: NA | Y61: NA | Z61: NA | AA61: NA | AB61: NA | AC61: NA | AD61: 5.572 | AE61: 5.572 | AF61: NA | AG61: 9044.6 | AH61: 9044.6 | AI61: 5 | AL61: 8.116116296 | AM61: 8997.4 | AN61: NA | AO61: NA | AP61: =(P61*0.5/O61) -> 1.068773234 | AR61: =IF(M61="simples",AL61,IF(AE61="NA","NA",IF(AH61="NA","NA",(AH61*AI61/(AE61*1000))))) -> 8.116116296 | AS61: 8997.4 | AT61: =IF(M61="simples",AN61,IF(AB61="NA","NA",IF(AE61="NA","NA",(AE61*100/AB61)))) -> NA
A62: 10 | B62: 2009-06-17 | C62: FL | D62: 5774 | E62: Combretaceae | F62: COMB | G62: Buchenavia | H62: BUC | I62: Buchenavia_grandis_Ducke | J62: Buchenavia grandis | K62: Bucg | L62: BUCGRA | M62: simples | N62: NA | O62: 9.61 | P62: 6 | Q62: 10.47 | R62: 6 | S62: 10.08 | T62: 6 | U62: 0.16 | V62: 0.16 | W62: 0.16 | X62: 0.17 | Y62: 0.17 | Z62: NA | AA62: 6.621 | AB62: 6.621 | AC62: NA | AD62: 2.691 | AE62: 2.691 | AF62: NA | AG62: 8461.8 | AH62: 8461.8 | AI62: 5 | AL62: 15.72240803 | AM62: 8376.6 | AN62: 40.64340734 | AO62: 0.164 | AP62: =((P62*0.5/O62)+(R62*0.5/Q62)+(T62*0.5/S62))/3 -> 0.2987756056 | AR62: =IF(M62="simples",AL62,IF(AE62="NA","NA",IF(AH62="NA","NA",(AH62*AI62/(AE62*1000))))) -> 15.72240803 | AS62: 8376.6 | AT62: =IF(M62="simples",AN62,IF(AB62="NA","NA",IF(AE62="NA","NA",(AE62*100/AB62)))) -> 40.64340734
A63: 6 | B63: 2009-04-18 | C63: 37 | D63: 80394 | E63: Combretaceae | F63: COMB | G63: Buchenavia | H63: BUC | I63: Buchenavia_grandis_Ducke | J63: Buchenavia grandis | K63: Bucg | L63: BUCGRA | M63: simples | N63: cf | O63: 7.3 | P63: 10 | Q63: 7.19 | R63: 8 | S63: 7.34 | T63: 8 | U63: 0.23 | V63: 0.25 | W63: 0.26 | X63: 0.27 | Y63: 0.23 | Z63: NA | AA63: 3.696 | AB63: 3.696 | AC63: NA | AD63: 1.621 | AE63: 1.621 | AF63: NA | AG63: 3197.2 | AH63: 3197.2 | AI63: 5 | AL63: 9.861813695 | AM63: 3130 | AN63: 43.85822511 | AO63: 0.248 | AP63: 0.5954062895 | AR63: =IF(M63="simples",AL63,IF(AE63="NA","NA",IF(AH63="NA","NA",(AH63*AI63/(AE63*1000))))) -> 9.861813695 | AS63: 3130 | AT63: =IF(M63="simples",AN63,IF(AB63="NA","NA",IF(AE63="NA","NA",(AE63*100/AB63)))) -> 43.85822511
A64: 3 | B64: 2009-03-07 | C64: 37 | D64: 131548 | E64: Combretaceae | F64: COMB | G64: Buchenavia | H64: BUC | I64: Buchenavia_grandis_Ducke | J64: Buchenavia grandis | K64: Bucg | L64: BUCGRA | M64: simples | N64: OK | O64: 11.06 | P64: 8 | Q64: 11.2 | R64: 8 | S64: 11.27 | T64: 6 | U64: 0.33 | V64: 0.38 | W64: 0.33 | X64: 0.36 | Y64: 0.42 | Z64: NA | AA64: 5.03 | AB64: 5.03 | AC64: NA | AD64: 2.115 | AE64: 2.115 | AF64: NA | AG64: 5608.6 | AH64: 5608.6 | AI64: 5 | AK64: lt_remov | AL64: 13.25910165 | AM64: 5571.8 | AN64: 42.04771372 | AO64: NA | AP64: 0.3283333146 | AR64: =IF(M64="simples",AL64,IF(AE64="NA","NA",IF(AH64="NA","NA",(AH64*AI64/(AE64*1000))))) -> 13.25910165 | AS64: 5571.8 | AT64: =IF(M64="simples",AN64,IF(AB64="NA","NA",IF(AE64="NA","NA",(AE64*100/AB64)))) -> 42.04771372
A65: 10 | B65: 2009-06-18 | C65: FL | D65: 4320 | E65: Lecythidaceae | F65: LECY | G65: Cariniana | H65: CAN | I65: Cariniana_decandra_Ducke | J65: Cariniana decandra | K65: Card | L65: CANDEC | M65: simples | N65: NA | O65: 10.16 | P65: 11 | Q65: 10.27 | R65: 8 | S65: 10.48 | T65: 10 | U65: 0.18 | V65: 0.19 | W65: 0.17 | X65: 0.12 | Y65: 0.17 | Z65: NA | AA65: 9.243 | AB65: 9.243 | AC65: NA | AD65: 4.888 | AE65: 4.888 | AF65: NA | AG65: 9302.8 | AH65: 9302.8 | AI65: 5 | AL65: 9.515957447 | AM65: 9230.8 | AN65: 52.88326301 | AO65: =IF(U65="NA","NA",IF(V65="NA","NA",AVERAGE(U65:Y65))) -> 0.166 | AP65: 0.469307251 | AR65: =IF(M65="simples",AL65,IF(AE65="NA","NA",IF(AH65="NA","NA",(AH65*AI65/(AE65*1000))))) -> 9.515957447 | AS65: 9230.8 | AT65: =IF(M65="simples",AN65,IF(AB65="NA","NA",IF(AE65="NA","NA",(AE65*100/AB65)))) -> 52.88326301
A66: 11 | B66: 2009-07-13 | C66: CF | D66: 277 | E66: Caryocaraceae | F66: CARY | G66: Caryocar | H66: CAR | I66: Caryocar_pallidum_A._C._Smith | J66: Caryocar pallidum | K66: Cryp | L66: CARPAL | M66: composta | N66: NA | O66: 10.54 | P66: 6 | Q66: 11.78 | R66: 5 | S66: 11.22 | T66: 5 | U66: 0.15 | V66: 0.17 | W66: 0.15 | X66: 0.16 | Y66: 0.15 | Z66: NA | AA66: 7.823 | AB66: NA | AC66: NA | AD66: 3.292 | AE66: NA | AF66: NA | AG66: 8846.6 | AH66: 8744.4 | AI66: 5 | AL66: 13.43651276 | AM66: 2937.333333 | AN66: 42.08104308 | AO66: 0.156 | AP66: 0.239890163 | AR66: =IF(M66="simples",AL66,IF(AE66="NA","NA",IF(AH66="NA","NA",(AH66*AI66/(AE66*1000))))) -> NA | AS66: 8812 | AT66: =IF(M66="simples",AN66,IF(AB66="NA","NA",IF(AE66="NA","NA",(AE66*100/AB66)))) -> NA
A67: 7 | B67: 2009-05-09 | C67: 41 | D67: 2078 | E67: Caryocaraceae | F67: CARY | G67: Caryocar | H67: CAR | I67: Caryocar_pallidum_A._C._Smith | J67: Caryocar pallidum | K67: Cryp | L67: CARPAL | M67: composta | N67: NA | O67: 13.76 | P67: 8 | Q67: 11.58 | R67: 10 | S67: 13.04 | T67: 6 | U67: 0.19 | V67: 0.19 | W67: 0.21 | X67: 0.15 | Y67: 0.15 | Z67: NA | AA67: 14.519 | AB67: NA | AC67: NA | AD67: 6.753 | AE67: NA | AF67: NA | AG67: 21411 | AH67: 21105.6 | AI67: 5 | AL67: =IF(AG67="NA","NA",IF(AD67="NA","NA",(AG67*AI67/(AD67*1000)))) -> 15.85295424 | AM67: 7007.466667 | AN67: 46.51146773 | AO67: 0.178 | AP67: 0.3175126511 | AR67: =IF(M67="simples",AL67,IF(AE67="NA","NA",IF(AH67="NA","NA",(AH67*AI67/(AE67*1000))))) -> NA | AS67: 21022.4 | AT67: =IF(M67="simples",AN67,IF(AB67="NA","NA",IF(AE67="NA","NA",(AE67*100/AB67)))) -> NA
A68: 6 | B68: 2009-04-18 | C68: 37 | D68: 80250 | E68: Caryocaraceae | F68: CARY | G68: Caryocar | H68: CAR | I68: Caryocar_pallidum_A._C._Smith | J68: Caryocar pallidum | K68: Cryp | L68: CARPAL | M68: composta | N68: cf | O68: 8.34 | P68: 3 | Q68: 8.46 | R68: 5 | S68: 8.25 | T68: 6 | U68: 0.16 | V68: 0.18 | W68: 0.19 | X68: 0.15 | Y68: 0.17 | Z68: NA | AA68: 17.779 | AB68: NA | AC68: NA | AD68: 9.006 | AE68: NA | AF68: NA | AG68: 15067.8 | AH68: 14817.8 | AI68: 5 | AL68: 8.365423051 | AM68: 4951.133333 | AN68: 50.65526745 | AO68: 0.17 | AP68: 0.2796669177 | AR68: =IF(M68="simples",AL68,IF(AE68="NA","NA",IF(AH68="NA","NA",(AH68*AI68/(AE68*1000))))) -> NA | AS68: 14853.4 | AT68: =IF(M68="simples",AN68,IF(AB68="NA","NA",IF(AE68="NA","NA",(AE68*100/AB68)))) -> NA
A69: 11 | B69: 2009-07-09 | C69: FL | D69: 2242 | E69: Caryocaraceae | F69: CARY | G69: Caryocar | H69: CAR | I69: Caryocar_villosum_(Aubl.)_Pers. | J69: Caryocar villosum | K69: Cryv | L69: CARVIL | M69: composta | N69: NA | O69: 10.61 | P69: 6 | Q69: 11.54 | R69: 8 | S69: 12.09 | T69: 9 | U69: 0.3 | V69: 0.3 | W69: 0.31 | X69: 0.3 | Y69: 0.33 | Z69: NA | AA69: 18.04 | AB69: NA | AC69: NA | AD69: 8.181 | AE69: NA | AF69: NA | AG69: 11459 | AH69: 11152.6 | AI69: 5 | AL69: 7.003422564 | AM69: 4035.866667 | AN69: 45.34922395 | AO69: 0.308 | AP69: 0.333860336 | AR69: =IF(M69="simples",AL69,IF(AE69="NA","NA",IF(AH69="NA","NA",(AH69*AI69/(AE69*1000))))) -> NA | AS69: 12107.6 | AT69: =IF(M69="simples",AN69,IF(AB69="NA","NA",IF(AE69="NA","NA",(AE69*100/AB69)))) -> NA
A70: 11 | B70: 2009-07-09 | C70: FL | D70: 2396 | E70: Caryocaraceae | F70: CARY | G70: Caryocar | H70: CAR | I70: Caryocar_villosum_(Aubl.)_Pers. | J70: Caryocar villosum | K70: Cryv | L70: CARVIL | M70: composta | N70: NA | O70: 14.03 | P70: 4 | Q70: 13.11 | R70: 4 | S70: 11.58 | T70: 4 | U70: 0.22 | V70: 0.23 | W70: 0.24 | X70: 0.24 | Y70: 0.24 | Z70: NA | AA70: 18.318 | AB70: NA | AC70: NA | AD70: 7.416 | AE70: NA | AF70: NA | AG70: 15741 | AH70: 15468.4 | AI70: 5 | AL70: 10.61286408 | AM70: 5190.933333 | AN70: 40.48476908 | AO70: 0.234 | AP70: 0.155939516 | AR70: =IF(M70="simples",AL70,IF(AE70="NA","NA",IF(AH70="NA","NA",(AH70*AI70/(AE70*1000))))) -> NA | AS70: 15572.8 | AT70: =IF(M70="simples",AN70,IF(AB70="NA","NA",IF(AE70="NA","NA",(AE70*100/AB70)))) -> NA
A71: 6 | B71: 2009-04-18 | C71: 37 | D71: 80569 | E71: Caryocaraceae | F71: CARY | G71: Caryocar | H71: CAR | I71: Caryocar_villosum_(Aubl.)_Pers. | J71: Caryocar villosum | K71: Cryv | L71: CARVIL | M71: composta | N71: cf | O71: 10.02 | P71: 9 | Q71: 10.37 | R71: 10 | S71: 11.25 | T71: 10 | U71: 0.2 | V71: 0.2 | W71: 0.18 | X71: 0.19 | Y71: 0.19 | Z71: NA | AA71: 17.153 | AB71: NA | AC71: NA | AD71: 7.428 | AE71: NA | AF71: NA | AG71: NA | AH71: NA | AI71: 5 | AL71: NA | AM71: NA | AN71: 43.30437824 | AO71: 0.192 | AP71: 0.4585687727 | AR71: =IF(M71="simples",AL71,IF(AE71="NA","NA",IF(AH71="NA","NA",(AH71*AI71/(AE71*1000))))) -> NA | AS71: NA | AT71: =IF(M71="simples",AN71,IF(AB71="NA","NA",IF(AE71="NA","NA",(AE71*100/AB71)))) -> NA
A72: 2 | B72: 2009-02-13 | C72: 37 | D72: 145140 | E72: Caryocaraceae | F72: CARY | G72: Caryocar | H72: CAR | I72: Caryocar_villosum_(Aubl.)_Pers. | J72: Caryocar villosum | K72: Cryv | L72: CARVIL | M72: composta | N72: cf | O72: 10.38 | P72: 9 | Q72: NA | R72: NA | S72: NA | T72: NA | U72: NA | V72: NA | W72: NA | X72: NA | Y72: NA | Z72: NA | AA72: NA | AB72: =IF(AA72="NA","NA",IF(M72="simples",AA72,IF(Z72="NA","NA",AA72-Z72))) -> NA | AC72: NA | AD72: 6.136 | AE72: =IF(AD72="NA","NA",IF(M72="simples",AD72,IF(AC72="NA","NA",AD72-AC72))) -> NA | AF72: NA | AG72: 12388.2 | AH72: 12219.4 | AI72: 5 | AL72: 10.09468709 | AM72: 4181.933333 | AN72: NA | AO72: NA | AP72: =(P72*0.5/O72) -> 0.4335260116 | AR72: =IF(M72="simples",AL72,IF(AE72="NA","NA",IF(AH72="NA","NA",(AH72*AI72/(AE72*1000))))) -> NA | AS72: 12545.8 | AT72: =IF(M72="simples",AN72,IF(AB72="NA","NA",IF(AE72="NA","NA",(AE72*100/AB72)))) -> NA
A73: 0 | B73: 2008-04-01 | C73: CF | D73: 1189 | E73: Flacourtiaceae | F73: FLAC | G73: Casearia | H73: CAS | I73: Casearia_javitensis_Kunth | J73: Casearia javitensis | K73: Casj | L73: CASJAV | M73: simples | N73: NA | O73: 10.5 | P73: 9 | Q73: NA | R73: NA | S73: NA | T73: NA | U73: NA | V73: NA | W73: NA | X73: NA | Y73: NA | Z73: NA | AA73: NA | AB73: NA | AC73: NA | AD73: 4.877 | AE73: 4.877 | AF73: NA | AG73: 11360.6 | AH73: 11360.6 | AI73: 5 | AL73: 11.64711913 | AM73: 11320.8 | AN73: NA | AO73: NA | AP73: =(P73*0.5/O73) -> 0.4285714286 | AR73: =IF(M73="simples",AL73,IF(AE73="NA","NA",IF(AH73="NA","NA",(AH73*AI73/(AE73*1000))))) -> 11.64711913 | AS73: 11320.8 | AT73: =IF(M73="simples",AN73,IF(AB73="NA","NA",IF(AE73="NA","NA",(AE73*100/AB73)))) -> NA
A74: 0 | B74: 2008-04-01 | C74: CF | D74: 1193 | E74: Flacourtiaceae | F74: FLAC | G74: Casearia | H74: CAS | I74: Casearia_javitensis_Kunth | J74: Casearia javitensis | K74: Casj | L74: CASJAV | M74: simples | N74: NA | O74: 10.38 | P74: 17 | Q74: NA | R74: NA | S74: NA | T74: NA | U74: NA | V74: NA | W74: NA | X74: NA | Y74: NA | Z74: NA | AA74: NA | AB74: NA | AC74: NA | AD74: 7.375 | AE74: 7.375 | AF74: NA | AG74: 15306.4 | AH74: 15306.4 | AI74: 5 | AL74: 10.37722034 | AM74: 15247.6 | AN74: NA | AO74: NA | AP74: =(P74*0.5/O74) -> 0.8188824663 | AR74: =IF(M74="simples",AL74,IF(AE74="NA","NA",IF(AH74="NA","NA",(AH74*AI74/(AE74*1000))))) -> 10.37722034 | AS74: 15247.6 | AT74: =IF(M74="simples",AN74,IF(AB74="NA","NA",IF(AE74="NA","NA",(AE74*100/AB74)))) -> NA
A75: 0 | B75: 2008-04-02 | C75: CF | D75: 1304 | E75: Flacourtiaceae | F75: FLAC | G75: Casearia | H75: CAS | I75: Casearia_javitensis_Kunth | J75: Casearia javitensis | K75: Casj | L75: CASJAV | M75: simples | N75: NA | O75: 11.38 | P75: 11 | Q75: NA | R75: NA | S75: NA | T75: NA | U75: NA | V75: NA | W75: NA | X75: NA | Y75: NA | Z75: NA | AA75: NA | AB75: NA | AC75: NA | AD75: 4.158 | AE75: 4.158 | AF75: NA | AG75: 9108.8 | AH75: 9108.8 | AI75: 5 | AL75: 10.95334295 | AM75: 9065.8 | AN75: =IF(AA75="NA","NA",IF(AD75="NA","NA",(AD75*100/AA75))) -> NA | AO75: NA | AP75: =(P75*0.5/O75) -> 0.4833040422 | AR75: =IF(M75="simples",AL75,IF(AE75="NA","NA",IF(AH75="NA","NA",(AH75*AI75/(AE75*1000))))) -> 10.95334295 | AS75: 9065.8 | AT75: =IF(M75="simples",AN75,IF(AB75="NA","NA",IF(AE75="NA","NA",(AE75*100/AB75)))) -> NA
A76: 0 | B76: 2008-04-02 | C76: CF | D76: 1388 | E76: Flacourtiaceae | F76: FLAC | G76: Casearia | H76: CAS | I76: Casearia_javitensis_Kunth | J76: Casearia javitensis | K76: Casj | L76: CASJAV | M76: simples | N76: NA | O76: 10.9 | P76: 12 | Q76: NA | R76: NA | S76: NA | T76: NA | U76: NA | V76: NA | W76: NA | X76: NA | Y76: NA | Z76: NA | AA76: NA | AB76: NA | AC76: NA | AD76: 4.664 | AE76: 4.664 | AF76: NA | AG76: 10821.8 | AH76: 10821.8 | AI76: 5 | AL76: 11.60141509 | AM76: 10772.2 | AN76: NA | AO76: NA | AP76: =(P76*0.5/O76) -> 0.5504587156 | AR76: =IF(M76="simples",AL76,IF(AE76="NA","NA",IF(AH76="NA","NA",(AH76*AI76/(AE76*1000))))) -> 11.60141509 | AS76: 10772.2 | AT76: =IF(M76="simples",AN76,IF(AB76="NA","NA",IF(AE76="NA","NA",(AE76*100/AB76)))) -> NA
A77: 8 | B77: 2009-05-23 | C77: CF | D77: 4738 | E77: Flacourtiaceae | F77: FLAC | G77: Casearia | H77: CAS | I77: Casearia_javitensis_Kunth | J77: Casearia javitensis | K77: Casj | L77: CASJAV | M77: simples | N77: NA | O77: 8.91 | P77: 11 | Q77: 10.45 | R77: 13 | S77: 9.74 | T77: 13 | U77: 0.18 | V77: 0.19 | W77: 0.18 | X77: 0.19 | Y77: 0.18 | Z77: NA | AA77: 13.651 | AB77: 13.651 | AC77: NA | AD77: 6.673 | AE77: 6.673 | AF77: NA | AG77: NA | AH77: NA | AI77: 5 | AL77: NA | AM77: NA | AN77: 48.88286572 | AO77: 0.184 | AP77: =((P77*0.5/O77)+(R77*0.5/Q77)+(T77*0.5/S77))/3 -> 0.6355482165 | AR77: =IF(M77="simples",AL77,IF(AE77="NA","NA",IF(AH77="NA","NA",(AH77*AI77/(AE77*1000))))) -> NA | AS77: NA | AT77: =IF(M77="simples",AN77,IF(AB77="NA","NA",IF(AE77="NA","NA",(AE77*100/AB77)))) -> 48.88286572
A78: 9 | B78: 2009-06-04 | C78: CF | D78: 5025 | E78: Flacourtiaceae | F78: FLAC | G78: Casearia | H78: CAS | I78: Casearia_javitensis_Kunth | J78: Casearia javitensis | K78: Casj | L78: CASJAV | M78: simples | N78: NA | O78: 8.64 | P78: 9 | Q78: 8.66 | R78: 10 | S78: 8.96 | T78: 16 | U78: 0.15 | V78: 0.17 | W78: 0.17 | X78: 0.18 | Y78: 0.19 | Z78: NA | AA78: 13.678 | AB78: 13.678 | AC78: NA | AD78: 6.734 | AE78: 6.734 | AF78: NA | AG78: NA | AH78: NA | AI78: 5 | AL78: NA | AM78: NA | AN78: 49.23234391 | AO78: 0.172 | AP78: =((P78*0.5/O78)+(R78*0.5/Q78)+(T78*0.5/S78))/3 -> 0.6636858939 | AR78: =IF(M78="simples",AL78,IF(AE78="NA","NA",IF(AH78="NA","NA",(AH78*AI78/(AE78*1000))))) -> NA | AS78: NA | AT78: =IF(M78="simples",AN78,IF(AB78="NA","NA",IF(AE78="NA","NA",(AE78*100/AB78)))) -> 49.23234391
A79: 0 | B79: 2008-04-02 | C79: CF | D79: 5135 | E79: Flacourtiaceae | F79: FLAC | G79: Casearia | H79: CAS | I79: Casearia_javitensis_Kunth | J79: Casearia javitensis | K79: Casj | L79: CASJAV | M79: simples | N79: NA | O79: 10.64 | P79: 19 | Q79: NA | R79: NA | S79: NA | T79: NA | U79: NA | V79: NA | W79: NA | X79: NA | Y79: NA | Z79: NA | AA79: NA | AB79: NA | AC79: NA | AD79: 6.082 | AE79: 6.082 | AF79: NA | AG79: 11503 | AH79: 11503 | AI79: 5 | AL79: 9.456593226 | AM79: 11441.8 | AN79: NA | AO79: NA | AP79: =(P79*0.5/O79) -> 0.8928571429 | AR79: =IF(M79="simples",AL79,IF(AE79="NA","NA",IF(AH79="NA","NA",(AH79*AI79/(AE79*1000))))) -> 9.456593226 | AS79: 11441.8 | AT79: =IF(M79="simples",AN79,IF(AB79="NA","NA",IF(AE79="NA","NA",(AE79*100/AB79)))) -> NA
A80: 9 | B80: 2009-06-06 | C80: CF | D80: 5212 | E80: Flacourtiaceae | F80: FLAC | G80: Casearia | H80: CAS | I80: Casearia_javitensis_Kunth | J80: Casearia javitensis | K80: Casj | L80: CASJAV | M80: simples | N80: NA | O80: 9.91 | P80: 18 | Q80: 9.43 | R80: 18 | S80: 10.13 | T80: 18 | U80: 0.19 | V80: 0.19 | W80: 0.19 | X80: 0.2 | Y80: 0.24 | Z80: NA | AA80: 11.158 | AB80: 11.158 | AC80: NA | AD80: 5.883 | AE80: 5.883 | AF80: NA | AG80: NA | AH80: NA | AI80: 5 | AL80: NA | AM80: NA | AN80: 52.7245026 | AO80: 0.202 | AP80: =((P80*0.5/O80)+(R80*0.5/Q80)+(T80*0.5/S80))/3 -> 0.9170081862 | AR80: =IF(M80="simples",AL80,IF(AE80="NA","NA",IF(AH80="NA","NA",(AH80*AI80/(AE80*1000))))) -> NA | AS80: NA | AT80: =IF(M80="simples",AN80,IF(AB80="NA","NA",IF(AE80="NA","NA",(AE80*100/AB80)))) -> 52.7245026
A81: 10 | B81: 2009-06-16 | C81: FL | D81: 5270 | E81: Flacourtiaceae | F81: FLAC | G81: Casearia | H81: CAS | I81: Casearia_javitensis_Kunth | J81: Casearia javitensis | K81: Casj | L81: CASJAV | M81: simples | N81: NA | O81: 10.15 | P81: 11 | Q81: 9.96 | R81: 12 | S81: 12.17 | T81: 12 | U81: 0.15 | V81: 0.14 | W81: 0.14 | X81: 0.13 | Y81: 0.14 | Z81: NA | AA81: 9.646 | AB81: 9.646 | AC81: NA | AD81: 4.99 | AE81: 4.99 | AF81: NA | AG81: 11790.2 | AH81: 11790.2 | AI81: 5 | AL81: 11.81382766 | AM81: 11747.6 | AN81: 51.73128758 | AO81: 0.14 | AP81: 0.545765724 | AR81: =IF(M81="simples",AL81,IF(AE81="NA","NA",IF(AH81="NA","NA",(AH81*AI81/(AE81*1000))))) -> 11.81382766 | AS81: 11747.6 | AT81: =IF(M81="simples",AN81,IF(AB81="NA","NA",IF(AE81="NA","NA",(AE81*100/AB81)))) -> 51.73128758
A82: 8 | B82: 2009-05-24 | C82: CF | D82: 6484 | E82: Flacourtiaceae | F82: FLAC | G82: Casearia | H82: CAS | I82: Casearia_javitensis_Kunth | J82: Casearia javitensis | K82: Casj | L82: CASJAV | M82: simples | N82: NA | O82: 10.45 | P82: 13 | Q82: 9.97 | R82: 11 | S82: 9.85 | T82: 10 | U82: 0.16 | V82: 0.16 | W82: 0.17 | X82: 0.16 | Y82: 0.16 | Z82: NA | AA82: 13.062 | AB82: 13.062 | AC82: NA | AD82: 5.866 | AE82: 5.866 | AF82: NA | AG82: NA | AH82: NA | AI82: 5 | AL82: NA | AM82: NA | AN82: 44.90889603 | AO82: 0.162 | AP82: 0.5604262492 | AR82: =IF(M82="simples",AL82,IF(AE82="NA","NA",IF(AH82="NA","NA",(AH82*AI82/(AE82*1000))))) -> NA | AS82: NA | AT82: =IF(M82="simples",AN82,IF(AB82="NA","NA",IF(AE82="NA","NA",(AE82*100/AB82)))) -> 44.90889603
A83: 4 | B83: 2009-03-23 | C83: 37 | D83: 115519 | E83: Flacourtiaceae | F83: FLAC | G83: Casearia | H83: CAS | I83: Casearia_javitensis_Kunth | J83: Casearia javitensis | K83: Casj | L83: CASJAV | M83: simples | N83: cf | O83: 12.69 | P83: 15 | Q83: 12.55 | R83: 15 | S83: 14.9 | T83: 19 | U83: 0.38 | V83: 0.32 | W83: 0.46 | X83: 0.41 | Y83: 0.4 | Z83: NA | AA83: 16.087 | AB83: 16.087 | AC83: NA | AD83: NA | AE83: NA | AF83: NA | AG83: 34396 | AH83: 34396 | AI83: 5 | AL83: NA | AM83: 34419 | AN83: NA | AO83: 0.394 | AP83: 0.6087366676 | AR83: =IF(M83="simples",AL83,IF(AE83="NA","NA",IF(AH83="NA","NA",(AH83*AI83/(AE83*1000))))) -> NA | AS83: 34419 | AT83: =IF(M83="simples",AN83,IF(AB83="NA","NA",IF(AE83="NA","NA",(AE83*100/AB83)))) -> NA
A84: 11 | B84: 2009-07-08 | C84: FL | D84: 6681 | E84: Olacaceae | F84: OLAC | G84: Chaunochiton | H84: CHA | I84: Chaunochiton_kappleri_(Engl.)_Ducke | J84: Chaunochiton kappleri | K84: Chak | L84: CHAKAP | M84: simples | N84: NA | O84: 13.12 | P84: 12 | Q84: 12.81 | R84: 11 | S84: 13.12 | T84: 13 | U84: 0.24 | V84: 0.25 | W84: 0.24 | X84: 0.24 | Y84: 0.23 | Z84: NA | AA84: 4.025 | AB84: 4.025 | AC84: NA | AD84: 1.357 | AE84: 1.357 | AF84: NA | AG84: 2833 | AH84: 2833 | AI84: 5 | AL84: 10.43846721 | AM84: 2817.4 | AN84: 33.71428571 | AO84: 0.24 | AP84: 0.460698657 | AR84: =IF(M84="simples",AL84,IF(AE84="NA","NA",IF(AH84="NA","NA",(AH84*AI84/(AE84*1000))))) -> 10.43846721 | AS84: 2817.4 | AT84: =IF(M84="simples",AN84,IF(AB84="NA","NA",IF(AE84="NA","NA",(AE84*100/AB84)))) -> 33.71428571
A85: 11 | B85: 2009-07-07 | C85: FL | D85: 50 | E85: Sapotaceae | F85: SAPO | G85: Chrysophyllum | H85: CHR | I85: Chrysophyllum_lucentifolium_Cronquist | J85: Chrysophyllum lucentifolium | K85: Chrl | L85: CHRLUC | M85: simples | N85: NA | O85: 10.77 | P85: 24 | Q85: 11.52 | R85: 31 | S85: 10.99 | T85: 28 | U85: 0.31 | V85: 0.32 | W85: 0.33 | X85: 0.34 | Y85: 0.31 | Z85: NA | AA85: 9.667 | AB85: 9.667 | AC85: NA | AD85: 4.949 | AE85: 4.949 | AF85: NA | AG85: 5733 | AH85: 5733 | AI85: 5 | AL85: 5.792079208 | AM85: 5678.4 | AN85: 51.19478639 | AO85: 0.322 | AP85: 1.244525863 | AR85: =IF(M85="simples",AL85,IF(AE85="NA","NA",IF(AH85="NA","NA",(AH85*AI85/(AE85*1000))))) -> 5.792079208 | AS85: 5678.4 | AT85: =IF(M85="simples",AN85,IF(AB85="NA","NA",IF(AE85="NA","NA",(AE85*100/AB85)))) -> 51.19478639
A86: 11 | B86: 2009-07-13 | C86: CF | D86: 996 | E86: Sapotaceae | F86: SAPO | G86: Chrysophyllum | H86: CHR | I86: Chrysophyllum_pomiferum_(Eyma)_T._D._Penn. | J86: Chrysophyllum pomiferum | K86: Chrp | L86: CHRPOM | M86: simples | N86: NA | O86: 11.63 | P86: 16 | Q86: 12.16 | R86: 10 | S86: 10.38 | T86: 13 | U86: 0.34 | V86: 0.35 | W86: 0.25 | X86: 0.27 | Y86: 0.27 | Z86: NA | AA86: 24.978 | AB86: 24.978 | AC86: NA | AD86: 9.347 | AE86: 9.347 | AF86: NA | AG86: 16203.4 | AH86: 16203.4 | AI86: 5 | AL86: 8.667700867 | AM86: 16153 | AN86: 37.42093042 | AO86: 0.296 | AP86: 0.5750882106 | AR86: =IF(M86="simples",AL86,IF(AE86="NA","NA",IF(AH86="NA","NA",(AH86*AI86/(AE86*1000))))) -> 8.667700867 | AS86: 16153 | AT86: =IF(M86="simples",AN86,IF(AB86="NA","NA",IF(AE86="NA","NA",(AE86*100/AB86)))) -> 37.42093042
A87: 11 | B87: 2009-07-11 | C87: FL | D87: 3442 | E87: Sapotaceae | F87: SAPO | G87: Chrysophyllum | H87: CHR | I87: Chrysophyllum_pomiferum_(Eyma)_T._D._Penn. | J87: Chrysophyllum pomiferum | K87: Chrp | L87: CHRPOM | M87: simples | N87: NA | O87: 11.54 | P87: 15 | Q87: 13.07 | R87: 18 | S87: 11.67 | T87: 10 | U87: 0.25 | V87: 0.31 | W87: 0.27 | X87: 0.25 | Y87: 0.24 | Z87: NA | AA87: 7.946 | AB87: 7.946 | AC87: NA | AD87: 3.26 | AE87: 3.26 | AF87: NA | AG87: 4620 | AH87: 4620 | AI87: 5 | AL87: 7.085889571 | AM87: 4575.6 | AN87: 41.02693179 | AO87: 0.264 | AP87: 0.5889874021 | AR87: =IF(M87="simples",AL87,IF(AE87="NA","NA",IF(AH87="NA","NA",(AH87*AI87/(AE87*1000))))) -> 7.085889571 | AS87: 4575.6 | AT87: =IF(M87="simples",AN87,IF(AB87="NA","NA",IF(AE87="NA","NA",(AE87*100/AB87)))) -> 41.02693179
A88: 11 | B88: 2009-07-10 | C88: FL | D88: 4833 | E88: Sapotaceae | F88: SAPO | G88: Chrysophyllum | H88: CHR | I88: Chrysophyllum_pomiferum_(Eyma)_T._D._Penn. | J88: Chrysophyllum pomiferum | K88: Chrp | L88: CHRPOM | M88: simples | N88: NA | O88: 10.83 | P88: 12 | Q88: 9.32 | R88: 10 | S88: 9.91 | T88: 13 | U88: 0.19 | V88: 0.21 | W88: 0.18 | X88: 0.19 | Y88: 0.19 | Z88: NA | AA88: 4.078 | AB88: 4.078 | AC88: NA | AD88: 1.58 | AE88: 1.58 | AF88: NA | AG88: 2931 | AH88: 2931 | AI88: 5 | AL88: 9.275316456 | AM88: 2899.6 | AN88: 38.74448259 | AO88: 0.192 | AP88: 0.5821334784 | AR88: =IF(M88="simples",AL88,IF(AE88="NA","NA",IF(AH88="NA","NA",(AH88*AI88/(AE88*1000))))) -> 9.275316456 | AS88: 2899.6 | AT88: =IF(M88="simples",AN88,IF(AB88="NA","NA",IF(AE88="NA","NA",(AE88*100/AB88)))) -> 38.74448259
A89: 10 | B89: 2009-06-19 | C89: FL | D89: 4229 | E89: Sapotaceae | F89: SAPO | G89: Chrysophyllum | H89: CHR | I89: Chrysophyllum_wilsonii_Penn. | J89: Chrysophyllum wilsonii | K89: Chrw | L89: CHRWIL | M89: simples | N89: NA | O89: 8.25 | P89: 11 | Q89: NA | R89: NA | S89: NA | T89: NA | U89: 0.24 | V89: 0.26 | W89: 0.25 | X89: 0.27 | Y89: 0.26 | Z89: NA | AA89: 6.27 | AB89: 6.27 | AC89: NA | AD89: 2.866 | AE89: 2.866 | AF89: NA | AG89: 4819.4 | AH89: 4819.4 | AI89: 5 | AL89: 8.407885555 | AM89: 4789.2 | AN89: 45.70972887 | AO89: 0.256 | AP89: =(P89*0.5/O89) -> 0.6666666667 | AR89: =IF(M89="simples",AL89,IF(AE89="NA","NA",IF(AH89="NA","NA",(AH89*AI89/(AE89*1000))))) -> 8.407885555 | AS89: 4789.2 | AT89: =IF(M89="simples",AN89,IF(AB89="NA","NA",IF(AE89="NA","NA",(AE89*100/AB89)))) -> 45.70972887
A90: 11 | B90: 2009-07-08 | C90: FL | D90: 5818 | E90: Sapotaceae | F90: SAPO | G90: Chrysophyllum | H90: CHR | I90: Chrysophyllum_wilsonii_Penn. | J90: Chrysophyllum wilsonii | K90: Chrw | L90: CHRWIL | M90: simples | N90: NA | O90: 12.78 | P90: 11 | Q90: 11.63 | R90: 10 | S90: 13.52 | T90: 10 | U90: 0.19 | V90: 0.23 | W90: 0.25 | X90: 0.19 | Y90: 0.2 | Z90: NA | AA90: 8.284 | AB90: 8.284 | AC90: NA | AD90: 2.69 | AE90: 2.69 | AF90: NA | AG90: 7407.4 | AH90: 7407.4 | AI90: 5 | AL90: 13.76840149 | AM90: 7370.4 | AN90: 32.47223563 | AO90: 0.212 | AP90: =((P90*0.5/O90)+(R90*0.5/Q90)+(T90*0.5/S90))/3 -> 0.4100350122 | AR90: =IF(M90="simples",AL90,IF(AE90="NA","NA",IF(AH90="NA","NA",(AH90*AI90/(AE90*1000))))) -> 13.76840149 | AS90: 7370.4 | AT90: =IF(M90="simples",AN90,IF(AB90="NA","NA",IF(AE90="NA","NA",(AE90*100/AB90)))) -> 32.47223563
A91: 10 | B91: 2009-06-20 | C91: FL | D91: 6212 | E91: Sapotaceae | F91: SAPO | G91: Chrysophyllum | H91: CHR | I91: Chrysophyllum_wilsonii_Penn. | J91: Chrysophyllum wilsonii | K91: Chrw | L91: CHRWIL | M91: simples | N91: NA | O91: 9.16 | P91: 16 | Q91: 9.39 | R91: 19 | S91: 8.77 | T91: 15 | U91: 0.25 | V91: 0.22 | W91: 0.23 | X91: 0.25 | Y91: 0.22 | Z91: NA | AA91: 5.051 | AB91: 5.051 | AC91: NA | AD91: 1.882 | AE91: 1.882 | AF91: NA | AG91: 4085.6 | AH91: 4085.6 | AI91: 5 | AL91: 10.8544102 | AM91: 4059.4 | AN91: 37.25994853 | AO91: 0.234 | AP91: =((P91*0.5/O91)+(R91*0.5/Q91)+(T91*0.5/S91))/3 -> 0.9134217256 | AR91: =IF(M91="simples",AL91,IF(AE91="NA","NA",IF(AH91="NA","NA",(AH91*AI91/(AE91*1000))))) -> 10.8544102 | AS91: 4059.4 | AT91: =IF(M91="simples",AN91,IF(AB91="NA","NA",IF(AE91="NA","NA",(AE91*100/AB91)))) -> 37.25994853
A92: 11 | B92: 2009-07-09 | C92: FL | D92: 1898 | E92: Moraceae | F92: MORA | G92: Clarisia | H92: CLA | I92: Clarisia_racemosa_Ruiz_&_Pav. | J92: Clarisia racemosa | K92: Clar | L92: CLARAC | M92: simples | N92: NA | O92: 10.64 | P92: 9 | Q92: 11.39 | R92: 9 | S92: 11.04 | T92: 9 | U92: 0.18 | V92: 0.19 | W92: 0.17 | X92: 0.18 | Y92: 0.16 | Z92: NA | AA92: 2.43 | AB92: 2.43 | AC92: NA | AD92: 1.092 | AE92: 1.092 | AF92: NA | AG92: 2972.4 | AH92: 2972.4 | AI92: 5 | AL92: 13.60989011 | AM92: 2960.8 | AN92: 44.9382716 | AO92: 0.176 | AP92: =((P92*0.5/O92)+(R92*0.5/Q92)+(T92*0.5/S92))/3 -> 0.4085414777 | AR92: =IF(M92="simples",AL92,IF(AE92="NA","NA",IF(AH92="NA","NA",(AH92*AI92/(AE92*1000))))) -> 13.60989011 | AS92: 2960.8 | AT92: =IF(M92="simples",AN92,IF(AB92="NA","NA",IF(AE92="NA","NA",(AE92*100/AB92)))) -> 44.9382716
A93: 3 | B93: 2009-03-08 | C93: 37 | D93: 111240 | E93: Moraceae | F93: MORA | G93: Clarisia | H93: CLA | I93: Clarisia_racemosa_Ruiz_&_Pav. | J93: Clarisia racemosa | K93: Clar | L93: CLARAC | M93: simples | N93: OK | O93: 11.87 | P93: 13 | Q93: 11.24 | R93: 15 | S93: 12.31 | T93: 14 | U93: 0.24 | V93: 0.28 | W93: 0.26 | X93: 0.27 | Y93: 0.24 | Z93: NA | AA93: 4.942 | AB93: 4.942 | AC93: NA | AD93: NA | AE93: NA | AF93: NA | AG93: 4184.4 | AH93: 4184.4 | AI93: 5 | AL93: NA | AM93: 4148.2 | AN93: NA | AO93: NA | AP93: =((P93*0.5/O93)+(R93*0.5/Q93)+(T93*0.5/S93))/3 -> 0.5945007183 | AR93: =IF(M93="simples",AL93,IF(AE93="NA","NA",IF(AH93="NA","NA",(AH93*AI93/(AE93*1000))))) -> NA | AS93: 4148.2 | AT93: =IF(M93="simples",AN93,IF(AB93="NA","NA",IF(AE93="NA","NA",(AE93*100/AB93)))) -> NA
A94: 8 | B94: 2009-05-19 | C94: CF | D94: 87 | E94: Euphorbiaceae | F94: EUPH | G94: Conceveiba | H94: CON | I94: Conceveiba_hostmannii_Benth. | J94: Conceveiba hostmannii | K94: Conh | L94: CONHOS | M94: simples | N94: NA | O94: 10.73 | P94: 9 | Q94: 10.18 | R94: 11 | S94: 10.59 | T94: 11 | U94: 0.3 | V94: 0.31 | W94: 0.31 | X94: 0.32 | Y94: 0.29 | Z94: NA | AA94: 14.592 | AB94: 14.592 | AC94: NA | AD94: 6.911 | AE94: 6.911 | AF94: NA | AG94: 14105.2 | AH94: 14105.2 | AI94: 5 | AL94: 10.20489075 | AM94: 13928.4 | AN94: 47.36156798 | AO94: =IF(U94="NA","NA",IF(V94="NA","NA",AVERAGE(U94:Y94))) -> 0.306 | AP94: =((P94*0.5/O94)+(R94*0.5/Q94)+(T94*0.5/S94))/3 -> 0.4930059454 | AR94: =IF(M94="simples",AL94,IF(AE94="NA","NA",IF(AH94="NA","NA",(AH94*AI94/(AE94*1000))))) -> 10.20489075 | AS94: 13928.4 | AT94: =IF(M94="simples",AN94,IF(AB94="NA","NA",IF(AE94="NA","NA",(AE94*100/AB94)))) -> 47.36156798
A95: 0 | B95: 2008-02-25 | C95: 41 | D95: 1417 | E95: Euphorbiaceae | F95: EUPH | G95: Conceveiba | H95: CON | I95: Conceveiba_hostmannii_Benth. | J95: Conceveiba hostmannii | K95: Conh | L95: CONHOS | M95: simples | N95: NA | O95: 10.73 | P95: 14 | Q95: NA | R95: NA | S95: NA | T95: NA | U95: NA | V95: NA | W95: NA | X95: NA | Y95: NA | Z95: NA | AA95: NA | AB95: NA | AC95: NA | AD95: 11.287 | AE95: 11.287 | AF95: NA | AG95: 27253.4 | AH95: 27253.4 | AI95: 5 | AL95: 12.07291574 | AM95: 26624.8 | AN95: NA | AO95: NA | AP95: =(P95*0.5/O95) -> 0.6523765144 | AR95: =IF(M95="simples",AL95,IF(AE95="NA","NA",IF(AH95="NA","NA",(AH95*AI95/(AE95*1000))))) -> 12.07291574 | AS95: 26624.8 | AT95: =IF(M95="simples",AN95,IF(AB95="NA","NA",IF(AE95="NA","NA",(AE95*100/AB95)))) -> NA
A96: 10 | B96: 2009-06-21 | C96: FL | D96: 1802 | E96: Euphorbiaceae | F96: EUPH | G96: Conceveiba | H96: CON | I96: Conceveiba_hostmannii_Benth. | J96: Conceveiba hostmannii | K96: Conh | L96: CONHOS | M96: simples | N96: NA | O96: 11.47 | P96: 10 | Q96: 11.19 | R96: 13 | S96: 9.39 | T96: 11 | U96: 0.24 | V96: 0.3 | W96: 0.29 | X96: 0.32 | Y96: 0.33 | Z96: NA | AA96: 24.743 | AB96: 24.743 | AC96: NA | AD96: 11.868 | AE96: 11.868 | AF96: NA | AG96: 23728.6 | AH96: 23728.6 | AI96: 5 | AL96: 9.996882373 | AM96: 23320.4 | AN96: 47.96508103 | AO96: 0.296 | AP96: =((P96*0.5/O96)+(R96*0.5/Q96)+(T96*0.5/S96))/3 -> 0.5341750241 | AR96: =IF(M96="simples",AL96,IF(AE96="NA","NA",IF(AH96="NA","NA",(AH96*AI96/(AE96*1000))))) -> 9.996882373 | AS96: 23320.4 | AT96: =IF(M96="simples",AN96,IF(AB96="NA","NA",IF(AE96="NA","NA",(AE96*100/AB96)))) -> 47.96508103
A97: 10 | B97: 2009-06-17 | C97: FL | D97: 5181 | E97: Euphorbiaceae | F97: EUPH | G97: Conceveiba | H97: CON | I97: Conceveiba_hostmannii_Benth. | J97: Conceveiba hostmannii | K97: Conh | L97: CONHOS | M97: simples | N97: NA | O97: 10.78 | P97: 12 | Q97: 10.63 | R97: 12 | S97: 9.76 | T97: 11 | U97: 0.26 | V97: 0.25 | W97: 0.28 | X97: 0.31 | Y97: 0.25 | Z97: NA | AA97: 28.989 | AB97: 28.989 | AC97: NA | AD97: 13.305 | AE97: 13.305 | AF97: NA | AG97: 29024.8 | AH97: 29024.8 | AI97: 5 | AL97: 10.90747839 | AM97: 28805.8 | AN97: 45.89671945 | AO97: 0.27 | AP97: =((P97*0.5/O97)+(R97*0.5/Q97)+(T97*0.5/S97))/3 -> 0.5615170415 | AR97: =IF(M97="simples",AL97,IF(AE97="NA","NA",IF(AH97="NA","NA",(AH97*AI97/(AE97*1000))))) -> 10.90747839 | AS97: 28805.8 | AT97: =IF(M97="simples",AN97,IF(AB97="NA","NA",IF(AE97="NA","NA",(AE97*100/AB97)))) -> 45.89671945
A98: 8 | B98: 2009-05-24 | C98: CF | D98: 5232 | E98: Euphorbiaceae | F98: EUPH | G98: Conceveiba | H98: CON | I98: Conceveiba_hostmannii_Benth. | J98: Conceveiba hostmannii | K98: Conh | L98: CONHOS | M98: simples | N98: NA | O98: 11.1 | P98: 11 | Q98: 12.13 | R98: 9 | S98: 11.36 | T98: 11 | U98: 0.48 | V98: 0.26 | W98: 0.36 | X98: 0.33 | Y98: 0.34 | Z98: NA | AA98: 39.525 | AB98: 39.525 | AC98: NA | AD98: 19.108 | AE98: 19.108 | AF98: NA | AG98: 33827.2 | AH98: 33827.2 | AI98: 5 | AL98: 8.85158049 | AM98: 33661.4 | AN98: 48.34408602 | AO98: 0.354 | AP98: =((P98*0.5/O98)+(R98*0.5/Q98)+(T98*0.5/S98))/3 -> 0.4502104879 | AR98: =IF(M98="simples",AL98,IF(AE98="NA","NA",IF(AH98="NA","NA",(AH98*AI98/(AE98*1000))))) -> 8.85158049 | AS98: 33661.4 | AT98: =IF(M98="simples",AN98,IF(AB98="NA","NA",IF(AE98="NA","NA",(AE98*100/AB98)))) -> 48.34408602
A99: 9 | B99: 2009-06-05 | C99: CF | D99: 5650 | E99: Euphorbiaceae | F99: EUPH | G99: Conceveiba | H99: CON | I99: Conceveiba_hostmannii_Benth. | J99: Conceveiba hostmannii | K99: Conh | L99: CONHOS | M99: simples | N99: NA | O99: 11.45 | P99: 14 | Q99: 11.92 | R99: 11 | S99: 10.95 | T99: 10 | U99: 0.25 | V99: 0.27 | W99: 0.29 | X99: 0.33 | Y99: 0.33 | Z99: NA | AA99: 33.907 | AB99: 33.907 | AC99: NA | AD99: 14.746 | AE99: 14.746 | AF99: NA | AG99: 35590.2 | AH99: 35590.2 | AI99: 5 | AL99: =IF(AG99="NA","NA",IF(AD99="NA","NA",(AG99*AI99/(AD99*1000)))) -> 12.06774719 | AM99: 35201.2 | AN99: 43.48954493 | AO99: 0.294 | AP99: =((P99*0.5/O99)+(R99*0.5/Q99)+(T99*0.5/S99))/3 -> 0.5097947041 | AR99: =IF(M99="simples",AL99,IF(AE99="NA","NA",IF(AH99="NA","NA",(AH99*AI99/(AE99*1000))))) -> 12.06774719 | AS99: 35201.2 | AT99: =IF(M99="simples",AN99,IF(AB99="NA","NA",IF(AE99="NA","NA",(AE99*100/AB99)))) -> 43.48954493
A100: 10 | B100: 2009-06-19 | C100: FL | D100: 6517 | E100: Euphorbiaceae | F100: EUPH | G100: Conceveiba | H100: CON | I100: Conceveiba_hostmannii_Benth. | J100: Conceveiba hostmannii | K100: Conh | L100: CONHOS | M100: simples | N100: NA | O100: 12.1 | P100: 12 | Q100: 11.58 | R100: 12 | S100: 11.6 | T100: 14 | U100: 0.29 | V100: 0.28 | W100: 0.28 | X100: 0.23 | Y100: 0.26 | Z100: NA | AA100: 29.067 | AB100: 29.067 | AC100: NA | AD100: 12.856 | AE100: 12.856 | AF100: NA | AG100: 35188 | AH100: 35188 | AI100: 5 | AK100: coletado 2X (amira e eu) | AL100: 13.68543871 | AM100: 34652.2 | AN100: 44.22885059 | AO100: 0.268 | AP100: =((P100*0.5/O100)+(R100*0.5/Q100)+(T100*0.5/S100))/3 -> 0.5391502532 | AR100: =IF(M100="simples",AL100,IF(AE100="NA","NA",IF(AH100="NA","NA",(AH100*AI100/(AE100*1000))))) -> 13.68543871 | AS100: 34652.2 | AT100: =IF(M100="simples",AN100,IF(AB100="NA","NA",IF(AE100="NA","NA",(AE100*100/AB100)))) -> 44.22885059
A101: 0 | B101: 2008-02-23 | C101: 37 | D101: 231907 | E101: Euphorbiaceae | F101: EUPH | G101: Conceveiba | H101: CON | I101: Conceveiba_hostmannii_Benth. | J101: Conceveiba hostmannii | K101: Conh | L101: CONHOS | M101: simples | N101: não consta | O101: NA | P101: NA | Q101: NA | R101: NA | S101: NA | T101: NA | U101: NA | V101: NA | W101: NA | X101: NA | Y101: NA | Z101: NA | AA101: NA | AB101: NA | AC101: NA | AD101: 12.527 | AE101: 12.527 | AF101: NA | AG101: 20146.4 | AH101: 20146.4 | AI101: 5 | AK101: lts_remov | AL101: 8.041191027 | AM101: 19709.4 | AN101: NA | AO101: NA | AP101: NA | AR101: =IF(M101="simples",AL101,IF(AE101="NA","NA",IF(AH101="NA","NA",(AH101*AI101/(AE101*1000))))) -> 8.041191027 | AS101: 19709.4 | AT101: =IF(M101="simples",AN101,IF(AB101="NA","NA",IF(AE101="NA","NA",(AE101*100/AB101)))) -> NA
A102: 7 | B102: 2009-05-07 | C102: 41 | D102: 24 | E102: Lecythidaceae | F102: LECY | G102: Corythophora | H102: COR | I102: Corythophora_alta_R._Knuth | J102: Corythophora alta | K102: Cora | L102: CORALT | M102: simples | N102: NA | O102: 10.9 | P102: 13 | Q102: 10.72 | R102: 12 | S102: 9.51 | T102: 12 | U102: 0.16 | V102: 0.17 | W102: 0.15 | X102: 0.18 | Y102: 0.19 | Z102: NA | AA102: 11.691 | AB102: 11.691 | AC102: NA | AD102: 6.009 | AE102: 6.009 | AF102: NA | AG102: 13980.8 | AH102: 13980.8 | AI102: 5 | AK102: coletado 2X (amira e eu) | AL102: 11.63321684 | AM102: 14068.6 | AN102: 51.39851168 | AO102: 0.17 | AP102: =((P102*0.5/O102)+(R102*0.5/Q102)+(T102*0.5/S102))/3 -> 0.5956488648 | AR102: =IF(M102="simples",AL102,IF(AE102="NA","NA",IF(AH102="NA","NA",(AH102*AI102/(AE102*1000))))) -> 11.63321684 | AS102: 14068.6 | AT102: =IF(M102="simples",AN102,IF(AB102="NA","NA",IF(AE102="NA","NA",(AE102*100/AB102)))) -> 51.39851168
A103: 7 | B103: 2009-05-07 | C103: 41 | D103: 162 | E103: Lecythidaceae | F103: LECY | G103: Corythophora | H103: COR | I103: Corythophora_alta_R._Knuth | J103: Corythophora alta | K103: Cora | L103: CORALT | M103: simples | N103: NA | O103: 11.62 | P103: 14 | Q103: 9.6 | R103: 13 | S103: 10.53 | T103: 13 | U103: 0.15 | V103: 0.17 | W103: 0.17 | X103: 0.19 | Y103: 0.19 | Z103: NA | AA103: 4.605 | AB103: 4.605 | AC103: NA | AD103: 2.443 | AE103: 2.443 | AF103: NA | AG103: 5540.4 | AH103: 5540.4 | AI103: 5 | AL103: 11.33933688 | AM103: 5532.4 | AN103: 53.05103149 | AO103: 0.174 | AP103: =((P103*0.5/O103)+(R103*0.5/Q103)+(T103*0.5/S103))/3 -> 0.6322589742 | AR103: =IF(M103="simples",AL103,IF(AE103="NA","NA",IF(AH103="NA","NA",(AH103*AI103/(AE103*1000))))) -> 11.33933688 | AS103: 5532.4 | AT103: =IF(M103="simples",AN103,IF(AB103="NA","NA",IF(AE103="NA","NA",(AE103*100/AB103)))) -> 53.05103149
A104: 7 | B104: 2009-05-06 | C104: 41 | D104: 231 | E104: Lecythidaceae | F104: LECY | G104: Corythophora | H104: COR | I104: Corythophora_alta_R._Knuth | J104: Corythophora alta | K104: Cora | L104: CORALT | M104: simples | N104: NA | O104: 10.06 | P104: 12 | Q104: 11.23 | R104: 12 | S104: 10.5 | T104: 16 | U104: 0.18 | V104: 0.22 | W104: 0.24 | X104: 0.24 | Y104: 0.24 | Z104: NA | AA104: 5.52 | AB104: 5.52 | AC104: NA | AD104: 2.805 | AE104: 2.805 | AF104: NA | AG104: 6315.6 | AH104: 6315.6 | AI104: 5 | AL104: 11.25775401 | AM104: 6319.6 | AN104: 50.81521739 | AO104: 0.224 | AP104: =((P104*0.5/O104)+(R104*0.5/Q104)+(T104*0.5/S104))/3 -> 0.6308698011 | AR104: =IF(M104="simples",AL104,IF(AE104="NA","NA",IF(AH104="NA","NA",(AH104*AI104/(AE104*1000))))) -> 11.25775401 | AS104: 6319.6 | AT104: =IF(M104="simples",AN104,IF(AB104="NA","NA",IF(AE104="NA","NA",(AE104*100/AB104)))) -> 50.81521739
A105: 0 | B105: 2008-03-12 | C105: CF | D105: 421 | E105: Lecythidaceae | F105: LECY | G105: Corythophora | H105: COR | I105: Corythophora_alta_R._Knuth | J105: Corythophora alta | K105: Cora | L105: CORALT | M105: simples | N105: NA | O105: 10.34 | P105: 10 | Q105: NA | R105: NA | S105: NA | T105: NA | U105: NA | V105: NA | W105: NA | X105: NA | Y105: NA | Z105: NA | AA105: NA | AB105: NA | AC105: NA | AD105: 3.967 | AE105: 3.967 | AF105: NA | AG105: 8350.8 | AH105: 8350.8 | AI105: 5 | AL105: 10.52533401 | AM105: 8297.8 | AN105: NA | AO105: NA | AP105: =(P105*0.5/O105) -> 0.4835589942 | AR105: =IF(M105="simples",AL105,IF(AE105="NA","NA",IF(AH105="NA","NA",(AH105*AI105/(AE105*1000))))) -> 10.52533401 | AS105: 8297.8 | AT105: =IF(M105="simples",AN105,IF(AB105="NA","NA",IF(AE105="NA","NA",(AE105*100/AB105)))) -> NA
A106: 0 | B106: 2008-03-14 | C106: CF | D106: 684 | E106: Lecythidaceae | F106: LECY | G106: Corythophora | H106: COR | I106: Corythophora_alta_R._Knuth | J106: Corythophora alta | K106: Cora | L106: CORALT | M106: simples | N106: NA | O106: 10.82 | P106: 8 | Q106: NA | R106: NA | S106: NA | T106: NA | U106: NA | V106: NA | W106: NA | X106: NA | Y106: NA | Z106: NA | AA106: NA | AB106: NA | AC106: NA | AD106: 3.121 | AE106: 3.121 | AF106: NA | AG106: 8621.2 | AH106: 8621.2 | AI106: 5 | AL106: 13.81159885 | AM106: 8583.2 | AN106: NA | AO106: NA | AP106: =(P106*0.5/O106) -> 0.3696857671 | AR106: =IF(M106="simples",AL106,IF(AE106="NA","NA",IF(AH106="NA","NA",(AH106*AI106/(AE106*1000))))) -> 13.81159885 | AS106: 8583.2 | AT106: =IF(M106="simples",AN106,IF(AB106="NA","NA",IF(AE106="NA","NA",(AE106*100/AB106)))) -> NA
A107: 0 | B107: 2008-03-14 | C107: CF | D107: 882 | E107: Lecythidaceae | F107: LECY | G107: Corythophora | H107: COR | I107: Corythophora_alta_R._Knuth | J107: Corythophora alta | K107: Cora | L107: CORALT | M107: simples | N107: NA | O107: 10.75 | P107: 10 | Q107: NA | R107: NA | S107: NA | T107: NA | U107: NA | V107: NA | W107: NA | X107: NA | Y107: NA | Z107: NA | AA107: NA | AB107: NA | AC107: NA | AD107: 2.226 | AE107: 2.226 | AF107: NA | AG107: 6843.2 | AH107: 6843.2 | AI107: 5 | AL107: 15.37106918 | AM107: 6813.2 | AN107: =IF(AA107="NA","NA",IF(AD107="NA","NA",(AD107*100/AA107))) -> NA | AO107: NA | AP107: =(P107*0.5/O107) -> 0.4651162791 | AR107: =IF(M107="simples",AL107,IF(AE107="NA","NA",IF(AH107="NA","NA",(AH107*AI107/(AE107*1000))))) -> 15.37106918 | AS107: 6813.2 | AT107: =IF(M107="simples",AN107,IF(AB107="NA","NA",IF(AE107="NA","NA",(AE107*100/AB107)))) -> NA
A108: 0 | B108: 2008-01-27 | C108: 41 | D108: 1323 | E108: Lecythidaceae | F108: LECY | G108: Corythophora | H108: COR | I108: Corythophora_alta_R._Knuth | J108: Corythophora alta | K108: Cora | L108: CORALT | M108: simples | N108: NA | O108: 11.53 | P108: 12 | Q108: NA | R108: NA | S108: NA | T108: NA | U108: NA | V108: NA | W108: NA | X108: NA | Y108: NA | Z108: NA | AA108: NA | AB108: NA | AC108: NA | AD108: 3.06 | AE108: 3.06 | AF108: NA | AG108: 8600 | AH108: 8600 | AI108: 5 | AL108: 14.05228758 | AM108: 8545 | AN108: NA | AO108: NA | AP108: =(P108*0.5/O108) -> 0.5203816132 | AR108: =IF(M108="simples",AL108,IF(AE108="NA","NA",IF(AH108="NA","NA",(AH108*AI108/(AE108*1000))))) -> 14.05228758 | AS108: 8545 | AT108: =IF(M108="simples",AN108,IF(AB108="NA","NA",IF(AE108="NA","NA",(AE108*100/AB108)))) -> NA
A109: 0 | B109: 2008-04-01 | C109: CF | D109: 2395 | E109: Lecythidaceae | F109: LECY | G109: Corythophora | H109: COR | I109: Corythophora_alta_R._Knuth | J109: Corythophora alta | K109: Cora | L109: CORALT | M109: simples | N109: NA | O109: 10.98 | P109: 15 | Q109: NA | R109: NA | S109: NA | T109: NA | U109: NA | V109: NA | W109: NA | X109: NA | Y109: NA | Z109: NA | AA109: NA | AB109: NA | AC109: NA | AD109: 2.803 | AE109: 2.803 | AF109: NA | AG109: 7759 | AH109: 7759 | AI109: 5 | AL109: 13.84052801 | AM109: 7743 | AN109: NA | AO109: NA | AP109: =(P109*0.5/O109) -> 0.6830601093 | AR109: =IF(M109="simples",AL109,IF(AE109="NA","NA",IF(AH109="NA","NA",(AH109*AI109/(AE109*1000))))) -> 13.84052801 | AS109: 7743 | AT109: =IF(M109="simples",AN109,IF(AB109="NA","NA",IF(AE109="NA","NA",(AE109*100/AB109)))) -> NA
A110: 5 | B110: 2009-04-05 | C110: 37 | D110: 105080 | E110: Lecythidaceae | F110: LECY | G110: Corythophora | H110: COR | I110: Corythophora_alta_R._Knuth | J110: Corythophora alta | K110: Cora | L110: CORALT | M110: simples | N110: OK | O110: 9.46 | P110: 17 | Q110: 9.36 | R110: 15 | S110: 9.35 | T110: 14 | U110: 0.18 | V110: 0.19 | W110: 0.21 | X110: 0.19 | Y110: 0.2 | Z110: NA | AA110: 3.868 | AB110: 3.868 | AC110: NA | AD110: 2.031 | AE110: 2.031 | AF110: NA | AG110: 4496.2 | AH110: 4496.2 | AI110: 5 | AL110: 11.06893156 | AM110: 4466.6 | AN110: 52.50775595 | AO110: 0.194 | AP110: =((P110*0.5/O110)+(R110*0.5/Q110)+(T110*0.5/S110))/3 -> 0.8161550792 | AR110: =IF(M110="simples",AL110,IF(AE110="NA","NA",IF(AH110="NA","NA",(AH110*AI110/(AE110*1000))))) -> 11.06893156 | AS110: 4466.6 | AT110: =IF(M110="simples",AN110,IF(AB110="NA","NA",IF(AE110="NA","NA",(AE110*100/AB110)))) -> 52.50775595
A111: 3 | B111: 2009-03-08 | C111: 37 | D111: 120295 | E111: Lecythidaceae | F111: LECY | G111: Corythophora | H111: COR | I111: Corythophora_alta_R._Knuth | J111: Corythophora alta | K111: Cora | L111: CORALT | M111: simples | N111: OK | O111: 10.06 | P111: 15 | Q111: 10.86 | R111: 13 | S111: 10.99 | T111: 16 | U111: 0.38 | V111: 0.43 | W111: 0.38 | X111: 0.42 | Y111: 0.36 | Z111: NA | AA111: 4.789 | AB111: 4.789 | AC111: NA | AD111: 2.572 | AE111: 2.572 | AF111: NA | AG111: 5046.4 | AH111: 5046.4 | AI111: 5 | AK111: lt_remov | AL111: 9.810264386 | AM111: 5008 | AN111: 53.70641052 | AO111: NA | AP111: =((P111*0.5/O111)+(R111*0.5/Q111)+(T111*0.5/S111))/3 -> 0.6906626761 | AR111: =IF(M111="simples",AL111,IF(AE111="NA","NA",IF(AH111="NA","NA",(AH111*AI111/(AE111*1000))))) -> 9.810264386 | AS111: 5008 | AT111: =IF(M111="simples",AN111,IF(AB111="NA","NA",IF(AE111="NA","NA",(AE111*100/AB111)))) -> 53.70641052
A112: 0 | B112: 2007-10-27 | C112: 37 | D112: 230545 | E112: Lecythidaceae | F112: LECY | G112: Corythophora | H112: COR | I112: Corythophora_alta_R._Knuth | J112: Corythophora alta | K112: Cora | L112: CORALT | M112: simples | N112: não consta | O112: 12.96 | P112: 14 | Q112: NA | R112: NA | S112: NA | T112: NA | U112: NA | V112: NA | W112: NA | X112: NA | Y112: NA | Z112: NA | AA112: NA | AB112: NA | AC112: NA | AD112: 2.44 | AE112: 2.44 | AF112: NA | AG112: 5745.4 | AH112: 5745.4 | AI112: 5 | AL112: 11.77336066 | AM112: 5708.4 | AN112: NA | AO112: =IF(U112="NA","NA",IF(V112="NA","NA",AVERAGE(U112:Y112))) -> NA | AP112: =(P112*0.5/O112) -> 0.5401234568 | AR112: =IF(M112="simples",AL112,IF(AE112="NA","NA",IF(AH112="NA","NA",(AH112*AI112/(AE112*1000))))) -> 11.77336066 | AS112: 5708.4 | AT112: =IF(M112="simples",AN112,IF(AB112="NA","NA",IF(AE112="NA","NA",(AE112*100/AB112)))) -> NA
A113: 7 | B113: 2009-05-10 | C113: 41 | D113: L1687 | E113: Lecythidaceae | F113: LECY | G113: Corythophora | H113: COR | I113: Corythophora_alta_R._Knuth | J113: Corythophora alta | K113: Cora | L113: CORALT | M113: simples | N113: NA | O113: 10.73 | P113: 11 | Q113: 10.7 | R113: 10 | S113: 10.26 | T113: 9 | U113: 0.15 | V113: 0.17 | W113: 0.18 | X113: 0.17 | Y113: 0.16 | Z113: NA | AA113: 6.529 | AB113: 6.529 | AC113: NA | AD113: 3.509 | AE113: 3.509 | AF113: NA | AG113: 8889.6 | AH113: 8889.6 | AI113: 5 | AL113: 12.66685665 | AM113: 8884.6 | AN113: 53.74483076 | AO113: 0.166 | AP113: =((P113*0.5/O113)+(R113*0.5/Q113)+(T113*0.5/S113))/3 -> 0.472822586 | AR113: =IF(M113="simples",AL113,IF(AE113="NA","NA",IF(AH113="NA","NA",(AH113*AI113/(AE113*1000))))) -> 12.66685665 | AS113: 8884.6 | AT113: =IF(M113="simples",AN113,IF(AB113="NA","NA",IF(AE113="NA","NA",(AE113*100/AB113)))) -> 53.74483076
A114: 7 | B114: 2009-05-12 | C114: 41 | D114: L1828 | E114: Lecythidaceae | F114: LECY | G114: Corythophora | H114: COR | I114: Corythophora_alta_R._Knuth | J114: Corythophora alta | K114: Cora | L114: CORALT | M114: simples | N114: NA | O114: 11.44 | P114: 15 | Q114: 11.34 | R114: 11 | S114: 11.93 | T114: 11 | U114: 0.11 | V114: 0.16 | W114: 0.18 | X114: 0.19 | Y114: 0.17 | Z114: NA | AA114: 3.892 | AB114: 3.892 | AC114: NA | AD114: 1.897 | AE114: 1.897 | AF114: NA | AG114: 5763.6 | AH114: 5763.6 | AI114: 5 | AL114: 15.19135477 | AM114: 5750.6 | AN114: 48.74100719 | AO114: 0.162 | AP114: =((P114*0.5/O114)+(R114*0.5/Q114)+(T114*0.5/S114))/3 -> 0.5338752853 | AR114: =IF(M114="simples",AL114,IF(AE114="NA","NA",IF(AH114="NA","NA",(AH114*AI114/(AE114*1000))))) -> 15.19135477 | AS114: 5750.6 | AT114: =IF(M114="simples",AN114,IF(AB114="NA","NA",IF(AE114="NA","NA",(AE114*100/AB114)))) -> 48.74100719
A115: 7 | B115: 2009-05-10 | C115: 41 | D115: L2378 | E115: Lecythidaceae | F115: LECY | G115: Corythophora | H115: COR | I115: Corythophora_alta_R._Knuth | J115: Corythophora alta | K115: Cora | L115: CORALT | M115: simples | N115: NA | O115: 9.85 | P115: 10 | Q115: 10.95 | R115: 12 | S115: 11.59 | T115: 11 | U115: 0.16 | V115: 0.17 | W115: 0.2 | X115: 0.21 | Y115: 0.22 | Z115: NA | AA115: 6.117 | AB115: 6.117 | AC115: NA | AD115: 3.113 | AE115: 3.113 | AF115: NA | AG115: 8167 | AH115: 8167 | AI115: 5 | AL115: 13.11757147 | AM115: 8137.4 | AN115: 50.89095962 | AO115: 0.192 | AP115: =((P115*0.5/O115)+(R115*0.5/Q115)+(T115*0.5/S115))/3 -> 0.5100354807 | AR115: =IF(M115="simples",AL115,IF(AE115="NA","NA",IF(AH115="NA","NA",(AH115*AI115/(AE115*1000))))) -> 13.11757147 | AS115: 8137.4 | AT115: =IF(M115="simples",AN115,IF(AB115="NA","NA",IF(AE115="NA","NA",(AE115*100/AB115)))) -> 50.89095962
A116: 11 | B116: 2009-07-07 | C116: FL | D116: 10 | E116: Lecythidaceae | F116: LECY | G116: Corythophora | H116: COR | I116: Corythophora_rimosa_W._A._Rodrigues | J116: Corythophora rimosa | K116: Corr | L116: CORRIM | M116: simples | N116: NA | O116: 9.99 | P116: 12 | Q116: 11.7 | R116: 18 | S116: 10.93 | T116: 16 | U116: 0.23 | V116: 0.29 | W116: 0.29 | X116: 0.25 | Y116: 0.27 | Z116: NA | AA116: 5.399 | AB116: 5.399 | AC116: NA | AD116: 2.707 | AE116: 2.707 | AF116: NA | AG116: 2801.8 | AH116: 2801.8 | AI116: 5 | AL116: 5.175101588 | AM116: 2812 | AN116: 50.13891461 | AO116: 0.266 | AP116: =((P116*0.5/O116)+(R116*0.5/Q116)+(T116*0.5/S116))/3 -> 0.7005872788 | AR116: =IF(M116="simples",AL116,IF(AE116="NA","NA",IF(AH116="NA","NA",(AH116*AI116/(AE116*1000))))) -> 5.175101588 | AS116: 2812 | AT116: =IF(M116="simples",AN116,IF(AB116="NA","NA",IF(AE116="NA","NA",(AE116*100/AB116)))) -> 50.13891461
A117: 11 | B117: 2009-07-07 | C117: FL | D117: 44 | E117: Lecythidaceae | F117: LECY | G117: Corythophora | H117: COR | I117: Corythophora_rimosa_W._A._Rodrigues | J117: Corythophora rimosa | K117: Corr | L117: CORRIM | M117: simples | N117: NA | O117: 13.58 | P117: 17 | Q117: 13.27 | R117: 17 | S117: 12.91 | T117: 18 | U117: 0.18 | V117: 0.18 | W117: 0.18 | X117: 0.23 | Y117: 0.2 | Z117: NA | AA117: 6.799 | AB117: 6.799 | AC117: NA | AD117: 3.395 | AE117: 3.395 | AF117: NA | AG117: 4639.8 | AH117: 4639.8 | AI117: 5 | AL117: 6.833284242 | AM117: 4599 | AN117: 49.9338138 | AO117: 0.194 | AP117: =((P117*0.5/O117)+(R117*0.5/Q117)+(T117*0.5/S117))/3 -> 0.6545323511 | AR117: =IF(M117="simples",AL117,IF(AE117="NA","NA",IF(AH117="NA","NA",(AH117*AI117/(AE117*1000))))) -> 6.833284242 | AS117: 4599 | AT117: =IF(M117="simples",AN117,IF(AB117="NA","NA",IF(AE117="NA","NA",(AE117*100/AB117)))) -> 49.9338138
A118: 0 | B118: 2008-02-26 | C118: 41 | D118: 1773 | E118: Lecythidaceae | F118: LECY | G118: Corythophora | H118: COR | I118: Corythophora_rimosa_W._A._Rodrigues | J118: Corythophora rimosa | K118: Corr | L118: CORRIM | M118: simples | N118: NA | O118: 10.82 | P118: 14 | Q118: NA | R118: NA | S118: NA | T118: NA | U118: NA | V118: NA | W118: NA | X118: NA | Y118: NA | Z118: NA | AA118: NA | AB118: NA | AC118: NA | AD118: 4.601 | AE118: 4.601 | AF118: NA | AG118: 11464.8 | AH118: 11464.8 | AI118: 5 | AL118: 12.45903065 | AM118: 11477.4 | AN118: NA | AO118: NA | AP118: =(P118*0.5/O118) -> 0.6469500924 | AR118: =IF(M118="simples",AL118,IF(AE118="NA","NA",IF(AH118="NA","NA",(AH118*AI118/(AE118*1000))))) -> 12.45903065 | AS118: 11477.4 | AT118: =IF(M118="simples",AN118,IF(AB118="NA","NA",IF(AE118="NA","NA",(AE118*100/AB118)))) -> NA
A119: 9 | B119: 2009-06-09 | C119: CF | D119: 5395 | E119: Lecythidaceae | F119: LECY | G119: Corythophora | H119: COR | I119: Corythophora_rimosa_W._A._Rodrigues | J119: Corythophora rimosa | K119: Corr | L119: CORRIM | M119: simples | N119: NA | O119: 12.33 | P119: 15 | Q119: 11.96 | R119: 7 | S119: 11.43 | T119: 15 | U119: 0.16 | V119: 0.2 | W119: 0.18 | X119: 0.14 | Y119: 0.16 | Z119: NA | AA119: 8.531 | AB119: 8.531 | AC119: NA | AD119: 4.21 | AE119: 4.21 | AF119: NA | AG119: 10103.2 | AH119: 10103.2 | AI119: 5 | AL119: 11.99904988 | AM119: 10052.8 | AN119: 49.34943149 | AO119: 0.168 | AP119: =((P119*0.5/O119)+(R119*0.5/Q119)+(T119*0.5/S119))/3 -> 0.5190275419 | AR119: =IF(M119="simples",AL119,IF(AE119="NA","NA",IF(AH119="NA","NA",(AH119*AI119/(AE119*1000))))) -> 11.99904988 | AS119: 10052.8 | AT119: =IF(M119="simples",AN119,IF(AB119="NA","NA",IF(AE119="NA","NA",(AE119*100/AB119)))) -> 49.34943149
A120: 11 | B120: 2009-07-13 | C120: CF | D120: 933 | E120: Chrysobalanaceae | F120: CHRY | G120: Couepia | H120: COU | I120: Couepia_excelsa_Ducke | J120: Couepia excelsa | K120: Coue | L120: COUEXC | M120: simples | N120: NA | O120: 10.17 | P120: 21 | Q120: 11.04 | R120: 28 | S120: 11.84 | T120: 22 | U120: 0.24 | V120: 0.24 | W120: 0.23 | X120: 0.24 | Y120: 0.23 | Z120: NA | AA120: 16.584 | AB120: 16.584 | AC120: NA | AD120: 7.969 | AE120: 7.969 | AF120: NA | AG120: 10588.4 | AH120: 10588.4 | AI120: 5 | AL120: 6.643493537 | AM120: 10648 | AN120: 48.0523396 | AO120: 0.236 | AP120: 1.076539458 | AR120: =IF(M120="simples",AL120,IF(AE120="NA","NA",IF(AH120="NA","NA",(AH120*AI120/(AE120*1000))))) -> 6.643493537 | AS120: 10648 | AT120: =IF(M120="simples",AN120,IF(AB120="NA","NA",IF(AE120="NA","NA",(AE120*100/AB120)))) -> 48.0523396
A121: 10 | B121: 2009-06-21 | C121: FL | D121: 1722 | E121: Chrysobalanaceae | F121: CHRY | G121: Couepia | H121: COU | I121: Couepia_excelsa_Ducke | J121: Couepia excelsa | K121: Coue | L121: COUEXC | M121: simples | N121: NA | O121: 8.15 | P121: 17 | Q121: 8.92 | R121: 20 | S121: 7.98 | T121: 18 | U121: 0.23 | V121: 0.25 | W121: 0.24 | X121: 0.27 | Y121: 0.28 | Z121: NA | AA121: 16.225 | AB121: 16.225 | AC121: NA | AD121: 8.492 | AE121: 8.492 | AF121: NA | AG121: 11355 | AH121: 11355 | AI121: 5 | AL121: 6.685704192 | AM121: 11347.2 | AN121: 52.33898305 | AO121: 0.254 | AP121: 1.097280189 | AR121: =IF(M121="simples",AL121,IF(AE121="NA","NA",IF(AH121="NA","NA",(AH121*AI121/(AE121*1000))))) -> 6.685704192 | AS121: 11347.2 | AT121: =IF(M121="simples",AN121,IF(AB121="NA","NA",IF(AE121="NA","NA",(AE121*100/AB121)))) -> 52.33898305
A122: 9 | B122: 2009-06-07 | C122: CF | D122: 3562 | E122: Chrysobalanaceae | F122: CHRY | G122: Couepia | H122: COU | I122: Couepia_excelsa_Ducke | J122: Couepia excelsa | K122: Coue | L122: COUEXC | M122: simples | N122: NA | O122: 10.35 | P122: 26 | Q122: 10.1 | R122: 21 | S122: 10.67 | T122: 24 | U122: 0.26 | V122: 0.22 | W122: 0.28 | X122: 0.25 | Y122: 0.26 | Z122: NA | AA122: 17.761 | AB122: 17.761 | AC122: NA | AD122: 9.512 | AE122: 9.512 | AF122: NA | AG122: 13309.6 | AH122: 13309.6 | AI122: 5 | AL122: 6.996215307 | AM122: 13437 | AN122: 53.55554304 | AO122: 0.254 | AP122: 1.140097052 | AR122: =IF(M122="simples",AL122,IF(AE122="NA","NA",IF(AH122="NA","NA",(AH122*AI122/(AE122*1000))))) -> 6.996215307 | AS122: 13437 | AT122: =IF(M122="simples",AN122,IF(AB122="NA","NA",IF(AE122="NA","NA",(AE122*100/AB122)))) -> 53.55554304
A123: 7 | B123: 2009-05-07 | C123: 41 | D123: 27 | E123: Chrysobalanaceae | F123: CHRY | G123: Couepia | H123: COU | I123: Couepia_longipendula_Pilger | J123: Couepia longipendula | K123: Coul | L123: COULON | M123: simples | N123: NA | O123: 11.06 | P123: 21 | Q123: 10.36 | R123: 17 | S123: 11.54 | T123: 18 | U123: 0.26 | V123: 0.24 | W123: 0.24 | X123: 0.23 | Y123: 0.23 | Z123: NA | AA123: 9.178 | AB123: 9.178 | AC123: NA | AD123: 5.03 | AE123: 5.03 | AF123: NA | AG123: 7837.2 | AH123: 7837.2 | AI123: 5 | AL123: 7.790457256 | AM123: 7809.8 | AN123: 54.8049684 | AO123: 0.24 | AP123: 0.8499088076 | AR123: =IF(M123="simples",AL123,IF(AE123="NA","NA",IF(AH123="NA","NA",(AH123*AI123/(AE123*1000))))) -> 7.790457256 | AS123: 7809.8 | AT123: =IF(M123="simples",AN123,IF(AB123="NA","NA",IF(AE123="NA","NA",(AE123*100/AB123)))) -> 54.8049684
A124: 11 | B124: 2009-07-07 | C124: FL | D124: 51 | E124: Chrysobalanaceae | F124: CHRY | G124: Couepia | H124: COU | I124: Couepia_longipendula_Pilger | J124: Couepia longipendula | K124: Coul | L124: COULON | M124: simples | N124: NA | O124: 10.73 | P124: 21 | Q124: 11.05 | R124: 19 | S124: 10.81 | T124: 21 | U124: 0.28 | V124: 0.28 | W124: 0.31 | X124: 0.26 | Y124: 0.3 | Z124: NA | AA124: 5.633 | AB124: 5.633 | AC124: NA | AD124: 2.83 | AE124: 2.83 | AF124: NA | AG124: 3160.6 | AH124: 3160.6 | AI124: 5 | AL124: 5.58409894 | AM124: 3143.4 | AN124: 50.23965915 | AO124: 0.286 | AP124: 0.9365387092 | AR124: =IF(M124="simples",AL124,IF(AE124="NA","NA",IF(AH124="NA","NA",(AH124*AI124/(AE124*1000))))) -> 5.58409894 | AS124: 3143.4 | AT124: =IF(M124="simples",AN124,IF(AB124="NA","NA",IF(AE124="NA","NA",(AE124*100/AB124)))) -> 50.23965915
A125: 9 | B125: 2009-06-04 | C125: CF | D125: 4986 | E125: Chrysobalanaceae | F125: CHRY | G125: Couepia | H125: COU | I125: Couepia_longipendula_Pilger | J125: Couepia longipendula | K125: Coul | L125: COULON | M125: simples | N125: NA | O125: 9.35 | P125: 16 | Q125: 8.69 | R125: 16 | S125: 7.57 | T125: 10 | U125: 0.24 | V125: 0.25 | W125: 0.24 | X125: 0.27 | Y125: 0.24 | Z125: NA | AA125: 7.007 | AB125: 7.007 | AC125: NA | AD125: 3.634 | AE125: 3.634 | AF125: NA | AG125: NA | AH125: NA | AI125: 5 | AL125: NA | AM125: NA | AN125: 51.86242329 | AO125: 0.248 | AP125: 0.8122384479 | AR125: =IF(M125="simples",AL125,IF(AE125="NA","NA",IF(AH125="NA","NA",(AH125*AI125/(AE125*1000))))) -> NA | AS125: NA | AT125: =IF(M125="simples",AN125,IF(AB125="NA","NA",IF(AE125="NA","NA",(AE125*100/AB125)))) -> 51.86242329
A126: 10 | B126: 2009-06-17 | C126: FL | D126: 5192 | E126: Chrysobalanaceae | F126: CHRY | G126: Couepia | H126: COU | I126: Couepia_longipendula_Pilger | J126: Couepia longipendula | K126: Coul | L126: COULON | M126: simples | N126: NA | O126: 8.38 | P126: 12 | Q126: 8.15 | R126: 11 | S126: 9.24 | T126: 16 | U126: 0.3 | V126: 0.29 | W126: 0.3 | X126: 0.3 | Y126: 0.33 | Z126: NA | AA126: 5.771 | AB126: 5.771 | AC126: NA | AD126: 2.67 | AE126: 2.67 | AF126: NA | AG126: 4011.6 | AH126: 4011.6 | AI126: 5 | AL126: 7.512359551 | AM126: 3989 | AN126: 46.26581182 | AO126: 0.304 | AP126: 0.7522126483 | AR126: =IF(M126="simples",AL126,IF(AE126="NA","NA",IF(AH126="NA","NA",(AH126*AI126/(AE126*1000))))) -> 7.512359551 | AS126: 3989 | AT126: =IF(M126="simples",AN126,IF(AB126="NA","NA",IF(AE126="NA","NA",(AE126*100/AB126)))) -> 46.26581182
A127: 4 | B127: 2009-03-25 | C127: 37 | D127: 116918 | E127: Chrysobalanaceae | F127: CHRY | G127: Couepia | H127: COU | I127: Couepia_longipendula_Pilger | J127: Couepia longipendula | K127: Coul | L127: COULON | M127: simples | N127: cf | O127: 10.61 | P127: 22 | Q127: 9.84 | R127: 17 | S127: 11.31 | T127: 18 | U127: 0.27 | V127: 0.27 | W127: 0.28 | X127: 0.28 | Y127: 0.27 | Z127: NA | AA127: 3.802 | AB127: 3.802 | AC127: NA | AD127: NA | AE127: NA | AF127: NA | AG127: NA | AH127: NA | AI127: 5 | AL127: NA | AM127: NA | AN127: NA | AO127: 0.274 | AP127: 0.898778294 | AR127: =IF(M127="simples",AL127,IF(AE127="NA","NA",IF(AH127="NA","NA",(AH127*AI127/(AE127*1000))))) -> NA | AS127: NA | AT127: =IF(M127="simples",AN127,IF(AB127="NA","NA",IF(AE127="NA","NA",(AE127*100/AB127)))) -> NA
A128: 1 | B128: 2009-01-27 | C128: 37 | D128: 154347 | E128: Chrysobalanaceae | F128: CHRY | G128: Couepia | H128: COU | I128: Couepia_longipendula_Pilger | J128: Couepia longipendula | K128: Coul | L128: COULON | M128: simples | N128: cf | O128: 14.8 | P128: 22 | Q128: NA | R128: NA | S128: NA | T128: NA | U128: NA | V128: NA | W128: NA | X128: NA | Y128: NA | Z128: NA | AA128: NA | AB128: NA | AC128: NA | AD128: 0.8152 | AE128: 0.8152 | AF128: NA | AG128: NA | AH128: NA | AI128: 5 | AL128: NA | AM128: NA | AN128: NA | AO128: NA | AP128: =(P128*0.5/O128) -> 0.7432432432 | AR128: =IF(M128="simples",AL128,IF(AE128="NA","NA",IF(AH128="NA","NA",(AH128*AI128/(AE128*1000))))) -> NA | AS128: NA | AT128: =IF(M128="simples",AN128,IF(AB128="NA","NA",IF(AE128="NA","NA",(AE128*100/AB128)))) -> NA
A129: 0 | B129: 2008-05-27 | C129: 37 | D129: 252693 | E129: Chrysobalanaceae | F129: CHRY | G129: Couepia | H129: COU | I129: Couepia_longipendula_Pilger | J129: Couepia longipendula | K129: Coul | L129: COULON | M129: simples | N129: não consta | O129: 10.39 | P129: 26 | Q129: NA | R129: NA | S129: NA | T129: NA | U129: NA | V129: NA | W129: NA | X129: NA | Y129: NA | Z129: NA | AA129: NA | AB129: NA | AC129: NA | AD129: 2.608 | AE129: 2.608 | AF129: NA | AG129: 3613 | AH129: 3613 | AI129: 5 | AL129: 6.926763804 | AM129: 3583.8 | AN129: NA | AO129: NA | AP129: =(P129*0.5/O129) -> 1.25120308 | AR129: =IF(M129="simples",AL129,IF(AE129="NA","NA",IF(AH129="NA","NA",(AH129*AI129/(AE129*1000))))) -> 6.926763804 | AS129: 3583.8 | AT129: =IF(M129="simples",AN129,IF(AB129="NA","NA",IF(AE129="NA","NA",(AE129*100/AB129)))) -> NA
A130: 7 | B130: 2009-05-05 | C130: 41 | D130: 488 | E130: Lecythidaceae | F130: LECY | G130: Couratari | H130: CRT | I130: Couratari_stellata_A._C._Smith | J130: Couratari stellata | K130: Curs | L130: CRTSTE | M130: simples | N130: NA | O130: 11.51 | P130: 20 | Q130: 10.25 | R130: 18 | S130: 9.94 | T130: 18 | U130: 0.24 | V130: 0.25 | W130: 0.26 | X130: 0.27 | Y130: 0.22 | Z130: NA | AA130: 6.007 | AB130: 6.007 | AC130: NA | AD130: 2.688 | AE130: 2.688 | AF130: NA | AG130: 4253 | AH130: 4253 | AI130: 5 | AL130: 7.91108631 | AM130: 4209 | AN130: 44.74779424 | AO130: 0.248 | AP130: =((P130*0.5/O130)+(R130*0.5/Q130)+(T130*0.5/S130))/3 -> 0.8840970356 | AR130: =IF(M130="simples",AL130,IF(AE130="NA","NA",IF(AH130="NA","NA",(AH130*AI130/(AE130*1000))))) -> 7.91108631 | AS130: 4209 | AT130: =IF(M130="simples",AN130,IF(AB130="NA","NA",IF(AE130="NA","NA",(AE130*100/AB130)))) -> 44.74779424
A131: 10 | B131: 2009-06-16 | C131: FL | D131: 6553 | E131: Lecythidaceae | F131: LECY | G131: Couratari | H131: CRT | I131: Couratari_stellata_A._C._Smith | J131: Couratari stellata | K131: Curs | L131: CRTSTE | M131: simples | N131: NA | O131: 16.4 | P131: 17 | Q131: 15.73 | R131: 17 | S131: 14.79 | T131: 16 | U131: 0.18 | V131: 0.19 | W131: 0.17 | X131: 0.19 | Y131: 0.19 | Z131: NA | AA131: 6.099 | AB131: 6.099 | AC131: NA | AD131: 1.984 | AE131: 1.984 | AF131: NA | AG131: 6326.4 | AH131: 6326.4 | AI131: 5 | AK131: folhas novas-sla/ldmc/lt/lts_remov | AL131: NA | AM131: 6291.8 | AN131: NA | AO131: NA | AP131: NA | AR131: =IF(M131="simples",AL131,IF(AE131="NA","NA",IF(AH131="NA","NA",(AH131*AI131/(AE131*1000))))) -> NA | AS131: 6291.8 | AT131: =IF(M131="simples",AN131,IF(AB131="NA","NA",IF(AE131="NA","NA",(AE131*100/AB131)))) -> NA
A132: 7 | B132: 2009-05-12 | C132: 41 | D132: L1623 | E132: Lecythidaceae | F132: LECY | G132: Couratari | H132: CRT | I132: Couratari_stellata_A._C._Smith | J132: Couratari stellata | K132: Curs | L132: CRTSTE | M132: simples | N132: NA | O132: 8.04 | P132: 9 | Q132: 9.33 | R132: 11 | S132: 10.02 | T132: 17 | U132: 0.15 | V132: 0.16 | W132: 0.2 | X132: 0.2 | Y132: 0.18 | Z132: NA | AA132: 5.037 | AB132: 5.037 | AC132: NA | AD132: 1.382 | AE132: 1.382 | AF132: NA | AG132: 4173.6 | AH132: 4173.6 | AI132: 5 | AK132: folhas novas-sla/ldmc/lt/lts_remov | AL132: NA | AM132: 4149 | AN132: NA | AO132: NA | AP132: NA | AR132: =IF(M132="simples",AL132,IF(AE132="NA","NA",IF(AH132="NA","NA",(AH132*AI132/(AE132*1000))))) -> NA | AS132: 4149 | AT132: =IF(M132="simples",AN132,IF(AB132="NA","NA",IF(AE132="NA","NA",(AE132*100/AB132)))) -> NA
A133: 8 | B133: 2009-05-21 | C133: CF | D133: 412 | E133: Fabaceae | F133: FABA | G133: Cynometra | H133: CYN | I133: Cynometra_longicuspis_Ducke | J133: Cynometra longicuspis | K133: Cynl | L133: CYNLON | M133: composta | N133: NA | O133: 6.18 | P133: 12 | Q133: 6.29 | R133: 12 | S133: 7.95 | T133: 18 | U133: 0.13 | V133: 0.14 | W133: 0.15 | X133: 0.13 | Y133: 0.12 | Z133: NA | AA133: 1.871 | AB133: NA | AC133: NA | AD133: 0.958 | AE133: NA | AF133: NA | AG133: 2395.4 | AH133: 2386.8 | AI133: 5 | AK133: coletado 2X (amira e eu) | AL133: =IF(AG133="NA","NA",IF(AD133="NA","NA",(AG133*AI133/(AD133*1000)))) -> 12.50208768 | AM133: 1198 | AN133: =IF(AA133="NA","NA",IF(AD133="NA","NA",(AD133*100/AA133))) -> 51.20256547 | AO133: =IF(U133="NA","NA",IF(V133="NA","NA",AVERAGE(U133:Y133))) -> 0.134 | AP133: =((P133*0.5/O133)+(R133*0.5/Q133)+(T133*0.5/S133))/3 -> 1.01894811 | AR133: =IF(M133="simples",AL133,IF(AE133="NA","NA",IF(AH133="NA","NA",(AH133*AI133/(AE133*1000))))) -> NA | AS133: 2396 | AT133: =IF(M133="simples",AN133,IF(AB133="NA","NA",IF(AE133="NA","NA",(AE133*100/AB133)))) -> NA
A134: 0 | B134: 2008-03-13 | C134: CF | D134: 722 | E134: Fabaceae | F134: FABA | G134: Cynometra | H134: CYN | I134: Cynometra_longicuspis_Ducke | J134: Cynometra longicuspis | K134: Cynl | L134: CYNLON | M134: composta | N134: NA | O134: 10.86 | P134: 18 | Q134: NA | R134: NA | S134: NA | T134: NA | U134: NA | V134: NA | W134: NA | X134: NA | Y134: NA | Z134: NA | AA134: NA | AB134: NA | AC134: 0.02 | AD134: 0.912 | AE134: 0.892 | AF134: NA | AG134: 1884.6 | AH134: 1871.8 | AI134: 5 | AL134: 10.33223684 | AM134: 937 | AN134: =IF(AA134="NA","NA",IF(AD134="NA","NA",(AD134*100/AA134))) -> NA | AO134: NA | AP134: =(P134*0.5/O134) -> 0.8287292818 | AR134: =IF(M134="simples",AL134,IF(AE134="NA","NA",IF(AH134="NA","NA",(AH134*AI134/(AE134*1000))))) -> 10.49215247 | AS134: 1874 | AT134: =IF(M134="simples",AN134,IF(AB134="NA","NA",IF(AE134="NA","NA",(AE134*100/AB134)))) -> NA
A135: 0 | B135: 2008-03-13 | C135: CF | D135: 723 | E135: Fabaceae | F135: FABA | G135: Cynometra | H135: CYN | I135: Cynometra_longicuspis_Ducke | J135: Cynometra longicuspis | K135: Cynl | L135: CYNLON | M135: composta | N135: NA | O135: 10.61 | P135: 16 | Q135: NA | R135: NA | S135: NA | T135: NA | U135: NA | V135: NA | W135: NA | X135: NA | Y135: NA | Z135: NA | AA135: NA | AB135: NA | AC135: 0.013 | AD135: 0.628 | AE135: 0.615 | AF135: NA | AG135: 1490 | AH135: 1480.6 | AI135: 5 | AL135: 11.86305732 | AM135: 751.1 | AN135: =IF(AA135="NA","NA",IF(AD135="NA","NA",(AD135*100/AA135))) -> NA | AO135: NA | AP135: =(P135*0.5/O135) -> 0.754005655 | AR135: =IF(M135="simples",AL135,IF(AE135="NA","NA",IF(AH135="NA","NA",(AH135*AI135/(AE135*1000))))) -> 12.03739837 | AS135: 1502.2 | AT135: =IF(M135="simples",AN135,IF(AB135="NA","NA",IF(AE135="NA","NA",(AE135*100/AB135)))) -> NA
A136: 0 | B136: 2008-03-27 | C136: CF | D136: 4581 | E136: Fabaceae | F136: FABA | G136: Cynometra | H136: CYN | I136: Cynometra_longicuspis_Ducke | J136: Cynometra longicuspis | K136: Cynl | L136: CYNLON | M136: composta | N136: NA | O136: 11.12 | P136: 23 | Q136: NA | R136: NA | S136: NA | T136: NA | U136: NA | V136: NA | W136: NA | X136: NA | Y136: NA | Z136: NA | AA136: NA | AB136: =IF(AA136="NA","NA",IF(M136="simples",AA136,IF(Z136="NA","NA",AA136-Z136))) -> NA | AC136: 0.022 | AD136: 1.005 | AE136: =IF(AD136="NA","NA",IF(M136="simples",AD136,IF(AC136="NA","NA",AD136-AC136))) -> 0.983 | AF136: NA | AG136: 2161.6 | AH136: 2150 | AI136: 5 | AL136: 10.75422886 | AM136: 1075.1 | AN136: =IF(AA136="NA","NA",IF(AD136="NA","NA",(AD136*100/AA136))) -> NA | AO136: NA | AP136: =(P136*0.5/O136) -> 1.034172662 | AR136: =IF(M136="simples",AL136,IF(AE136="NA","NA",IF(AH136="NA","NA",(AH136*AI136/(AE136*1000))))) -> 10.93591048 | AS136: 2150.2 | AT136: =IF(M136="simples",AN136,IF(AB136="NA","NA",IF(AE136="NA","NA",(AE136*100/AB136)))) -> NA
A137: 9 | B137: 2009-06-02 | C137: CF | D137: 4859 | E137: Fabaceae | F137: FABA | G137: Cynometra | H137: CYN | I137: Cynometra_longicuspis_Ducke | J137: Cynometra longicuspis | K137: Cynl | L137: CYNLON | M137: composta | N137: NA | O137: 8.58 | P137: 13 | Q137: 7.55 | R137: 14 | S137: 8.18 | T137: 16 | U137: 0.16 | V137: 0.16 | W137: 0.15 | X137: 0.15 | Y137: 0.17 | Z137: NA | AA137: 1.444 | AB137: NA | AC137: NA | AD137: 0.805 | AE137: NA | AF137: NA | AG137: NA | AH137: NA | AI137: 5 | AL137: NA | AM137: NA | AN137: =IF(AA137="NA","NA",IF(AD137="NA","NA",(AD137*100/AA137))) -> 55.74792244 | AO137: 0.158 | AP137: =((P137*0.5/O137)+(R137*0.5/Q137)+(T137*0.5/S137))/3 -> 0.8875743952 | AR137: =IF(M137="simples",AL137,IF(AE137="NA","NA",IF(AH137="NA","NA",(AH137*AI137/(AE137*1000))))) -> NA | AS137: NA | AT137: =IF(M137="simples",AN137,IF(AB137="NA","NA",IF(AE137="NA","NA",(AE137*100/AB137)))) -> NA
A138: 9 | B138: 2009-06-04 | C138: CF | D138: 5063 | E138: Fabaceae | F138: FABA | G138: Cynometra | H138: CYN | I138: Cynometra_longicuspis_Ducke | J138: Cynometra longicuspis | K138: Cynl | L138: CYNLON | M138: composta | N138: NA | O138: 7.31 | P138: 13 | Q138: 7.82 | R138: 16 | S138: 7.85 | T138: 15 | U138: 0.15 | V138: 0.16 | W138: 0.16 | X138: 0.15 | Y138: 0.14 | Z138: NA | AA138: 1.734 | AB138: NA | AC138: NA | AD138: 0.785 | AE138: NA | AF138: NA | AG138: NA | AH138: NA | AI138: 5 | AL138: NA | AM138: NA | AN138: =IF(AA138="NA","NA",IF(AD138="NA","NA",(AD138*100/AA138))) -> 45.2710496 | AO138: 0.152 | AP138: =((P138*0.5/O138)+(R138*0.5/Q138)+(T138*0.5/S138))/3 -> 0.955874934 | AR138: =IF(M138="simples",AL138,IF(AE138="NA","NA",IF(AH138="NA","NA",(AH138*AI138/(AE138*1000))))) -> NA | AS138: NA | AT138: =IF(M138="simples",AN138,IF(AB138="NA","NA",IF(AE138="NA","NA",(AE138*100/AB138)))) -> NA
A139: 8 | B139: 2009-05-21 | C139: CF | D139: 5260 | E139: Fabaceae | F139: FABA | G139: Cynometra | H139: CYN | I139: Cynometra_longicuspis_Ducke | J139: Cynometra longicuspis | K139: Cynl | L139: CYNLON | M139: composta | N139: NA | O139: 7.02 | P139: 14 | Q139: 7.28 | R139: 12 | S139: 8.14 | T139: 12 | U139: 0.09 | V139: 0.11 | W139: 0.12 | X139: 0.1 | Y139: 0.11 | Z139: NA | AA139: 1.921 | AB139: NA | AC139: NA | AD139: 1.056 | AE139: NA | AF139: NA | AG139: 2574.6 | AH139: 2566.4 | AI139: 5 | AL139: 12.19034091 | AM139: 1291.1 | AN139: =IF(AA139="NA","NA",IF(AD139="NA","NA",(AD139*100/AA139))) -> 54.97136908 | AO139: 0.106 | AP139: =((P139*0.5/O139)+(R139*0.5/Q139)+(T139*0.5/S139))/3 -> 0.8528091861 | AR139: =IF(M139="simples",AL139,IF(AE139="NA","NA",IF(AH139="NA","NA",(AH139*AI139/(AE139*1000))))) -> NA | AS139: 2582.2 | AT139: =IF(M139="simples",AN139,IF(AB139="NA","NA",IF(AE139="NA","NA",(AE139*100/AB139)))) -> NA
A140: 9 | B140: 2009-06-04 | C140: CF | D140: 6521 | E140: Fabaceae | F140: FABA | G140: Cynometra | H140: CYN | I140: Cynometra_longicuspis_Ducke | J140: Cynometra longicuspis | K140: Cynl | L140: CYNLON | M140: composta | N140: NA | O140: 8.14 | P140: 19 | Q140: 8.58 | R140: 17 | S140: 8.53 | T140: 18 | U140: 0.15 | V140: 0.15 | W140: 0.16 | X140: 0.13 | Y140: 0.15 | Z140: NA | AA140: 1.364 | AB140: NA | AC140: NA | AD140: 0.746 | AE140: NA | AF140: 0.657 | AG140: 1651.8 | AH140: 1640.4 | AI140: 5 | AK140: coletado 2X (areas-amira) | AL140: 12.57077626 | AM140: 820.5 | AN140: =IF(AA140="NA","NA",IF(AD140="NA","NA",(AD140*100/AA140))) -> 54.69208211 | AO140: 0.148 | AP140: =((P140*0.5/O140)+(R140*0.5/Q140)+(T140*0.5/S140))/3 -> 1.070950602 | AR140: =IF(M140="simples",AL140,IF(AE140="NA","NA",IF(AH140="NA","NA",(AH140*AI140/(AE140*1000))))) -> NA | AS140: 1641 | AT140: =IF(M140="simples",AN140,IF(AB140="NA","NA",IF(AE140="NA","NA",(AE140*100/AB140)))) -> NA
A141: 8 | B141: 2009-05-22 | C141: CF | D141: CLCF-1 | E141: Fabaceae | F141: FABA | G141: Cynometra | H141: CYN | I141: Cynometra_longicuspis_Ducke | J141: Cynometra longicuspis | K141: Cynl | L141: CYNLON | M141: composta | N141: NA | O141: 8.58 | P141: 19 | Q141: 8.35 | R141: 18 | S141: 8.09 | T141: 15 | U141: 0.14 | V141: 0.12 | W141: 0.11 | X141: 0.11 | Y141: 0.11 | Z141: NA | AA141: 2.915 | AB141: NA | AC141: NA | AD141: 1.577 | AE141: NA | AF141: NA | AG141: NA | AH141: NA | AI141: 5 | AK141: SEM PLACA! | AL141: =IF(AG141="NA","NA",IF(AD141="NA","NA",(AG141*AI141/(AD141*1000)))) -> NA | AM141: NA | AN141: =IF(AA141="NA","NA",IF(AD141="NA","NA",(AD141*100/AA141))) -> 54.09948542 | AO141: 0.118 | AP141: =((P141*0.5/O141)+(R141*0.5/Q141)+(T141*0.5/S141))/3 -> 1.037380292 | AR141: =IF(M141="simples",AL141,IF(AE141="NA","NA",IF(AH141="NA","NA",(AH141*AI141/(AE141*1000))))) -> NA | AS141: NA | AT141: =IF(M141="simples",AN141,IF(AB141="NA","NA",IF(AE141="NA","NA",(AE141*100/AB141)))) -> NA
A142: 10 | B142: 2009-06-22 | C142: FL | D142: 1389 | E142: Fabaceae | F142: FABA | G142: Dicorynia | H142: DIC | I142: Dicorynia_guianensis_Amshoff | J142: Dicorynia guianensis | K142: Dicg | L142: DICGUI | M142: composta | N142: NA | O142: 9.81 | P142: 11 | Q142: 8.77 | R142: 9 | S142: 10.01 | T142: 10 | U142: 0.14 | V142: 0.13 | W142: 0.12 | X142: 0.15 | Y142: 0.16 | Z142: NA | AA142: 16.428 | AB142: NA | AC142: NA | AD142: 8.924 | AE142: NA | AF142: NA | AG142: 24299 | AH142: 24015.6 | AI142: 5 | AL142: =IF(AG142="NA","NA",IF(AD142="NA","NA",(AG142*AI142/(AD142*1000)))) -> 13.61441058 | AM142: 3266.189189 | AN142: =IF(AA142="NA","NA",IF(AD142="NA","NA",(AD142*100/AA142))) -> 54.32188946 | AO142: 0.14 | AP142: =((P142*0.5/O142)+(R142*0.5/Q142)+(T142*0.5/S142))/3 -> 0.5244219266 | AR142: =IF(M142="simples",AL142,IF(AE142="NA","NA",IF(AH142="NA","NA",(AH142*AI142/(AE142*1000))))) -> NA | AS142: 24169.8 | AT142: =IF(M142="simples",AN142,IF(AB142="NA","NA",IF(AE142="NA","NA",(AE142*100/AB142)))) -> NA
A143: 11 | B143: 2009-07-13 | C143: CF | D143: 5137 | E143: Fabaceae | F143: FABA | G143: Dicorynia | H143: DIC | I143: Dicorynia_guianensis_Amshoff | J143: Dicorynia guianensis | K143: Dicg | L143: DICGUI | M143: composta | N143: NA | O143: 10.98 | P143: 10 | Q143: 11.38 | R143: 9 | S143: 10.51 | T143: 7 | U143: 0.13 | V143: 0.15 | W143: 0.16 | X143: 0.15 | Y143: 0.16 | Z143: 3.333 | AA143: 32.523 | AB143: 29.19 | AC143: 1.093 | AD143: =2*3.724+1.093 -> 8.541 | AE143: 7.448 | AF143: NA | AG143: 37305.2 | AH143: 36946.4 | AI143: 5 | AK143: folhas novas-sla/ldmc/lt/lts_remov | AL143: NA | AM143: 4296.093023 | AN143: NA | AO143: 0.15 | AP143: NA | AR143: NA | AS143: 18473.2 | AT143: NA
A144: 9 | B144: 2009-06-02 | C144: CF | D144: 6495 | E144: Fabaceae | F144: FABA | G144: Dicorynia | H144: DIC | I144: Dicorynia_guianensis_Amshoff | J144: Dicorynia guianensis | K144: Dicg | L144: DICGUI | M144: composta | N144: NA | O144: 10.09 | P144: 9 | Q144: 10.7 | R144: 9 | S144: 10.61 | T144: 9 | U144: 0.18 | V144: 0.18 | W144: 0.19 | X144: 0.16 | Y144: 0.17 | Z144: 4.746 | AA144: 43.55 | AB144: 38.804 | AC144: 1.828 | AD144: =7.656*2+1.828 -> 17.14 | AE144: 15.312 | AF144: NA | AG144: 62945 | AH144: 62326.4 | AI144: 5 | AL144: =IF(AG144="NA","NA",IF(AD144="NA","NA",(AG144*AI144/(AD144*1000)))) -> 18.36201867 | AM144: 9168.823529 | AN144: =IF(AA144="NA","NA",IF(AD144="NA","NA",(AD144*100/AA144))) -> 39.35706085 | AO144: 0.176 | AP144: =((P144*0.5/O144)+(R144*0.5/Q144)+(T144*0.5/S144))/3 -> 0.4302250178 | AR144: =IF(M144="simples",AL144,IF(AE144="NA","NA",IF(AH144="NA","NA",(AH144*AI144/(AE144*1000))))) -> 20.35214211 | AS144: 31174 | AT144: =IF(M144="simples",AN144,IF(AB144="NA","NA",IF(AE144="NA","NA",(AE144*100/AB144)))) -> 39.4598495
A145: 6 | B145: 2009-04-17 | C145: 37 | D145: 81258 | E145: Fabaceae | F145: FABA | G145: Dicorynia | H145: DIC | I145: Dicorynia_guianensis_Amshoff | J145: Dicorynia guianensis | K145: Dicg | L145: DICGUI | M145: composta | N145: OK | O145: 8.19 | P145: 9 | Q145: 8.84 | R145: 11 | S145: 8.01 | T145: 9 | U145: 0.2 | V145: 0.2 | W145: 0.2 | X145: 0.2 | Y145: 0.2 | Z145: 1.744 | AA145: 20.838 | AB145: 19.094 | AC145: 0.761 | AD145: =0.761+2*4.606 -> 9.973 | AE145: 9.212 | AF145: NA | AG145: 31658.5 | AH145: 30690.5 | AI145: 4 | AK145: 4 FOLHAS! | AL145: =IF(AG145="NA","NA",IF(AD145="NA","NA",(AG145*AI145/(AD145*1000)))) -> 12.69768375 | AM145: 4384.357143 | AN145: =IF(AA145="NA","NA",IF(AD145="NA","NA",(AD145*100/AA145))) -> 47.85967943 | AO145: 0.2 | AP145: =((P145*0.5/O145)+(R145*0.5/Q145)+(T145*0.5/S145))/3 -> 0.5778067493 | AR145: =IF(M145="simples",AL145,IF(AE145="NA","NA",IF(AH145="NA","NA",(AH145*AI145/(AE145*1000))))) -> 13.3263135 | AS145: 15345.25 | AT145: =IF(M145="simples",AN145,IF(AB145="NA","NA",IF(AE145="NA","NA",(AE145*100/AB145)))) -> 48.24552215
A146: 11 | B146: 2009-07-10 | C146: FL | D146: 4606 | E146: Fabaceae | F146: FABA | G146: Dinizia | H146: DIN | I146: Dinizia_excelsa_Ducke | J146: Dinizia excelsa | K146: Dine | L146: DINEXC | M146: composta | N146: NA | O146: 8.27 | P146: 4 | Q146: 7.76 | R146: 3 | S146: 7.23 | T146: 6 | U146: 0.1 | V146: 0.15 | W146: 0.16 | X146: 0.11 | Y146: 0.14 | Z146: 1.605 | AA146: 12.843 | AB146: 11.238 | AC146: 0.71 | AD146: =0.71+2*2.749 -> 6.208 | AE146: 5.498 | AF146: NA | AG146: 14534.8 | AH146: 14299.6 | AI146: 5 | AL146: =IF(AG146="NA","NA",IF(AD146="NA","NA",(AG146*AI146/(AD146*1000)))) -> 11.70650773 | AM146: 48.3 | AN146: =IF(AA146="NA","NA",IF(AD146="NA","NA",(AD146*100/AA146))) -> 48.33761582 | AO146: 0.132 | AP146: =((P146*0.5/O146)+(R146*0.5/Q146)+(T146*0.5/S146))/3 -> 0.2833582323 | AR146: =IF(M146="simples",AL146,IF(AE146="NA","NA",IF(AH146="NA","NA",(AH146*AI146/(AE146*1000))))) -> 13.00436522 | AS146: 14299.6 | AT146: =IF(M146="simples",AN146,IF(AB146="NA","NA",IF(AE146="NA","NA",(AE146*100/AB146)))) -> 48.92329596
A147: 6 | B147: 2009-04-18 | C147: 37 | D147: 80319 | E147: Fabaceae | F147: FABA | G147: Dinizia | H147: DIN | I147: Dinizia_excelsa_Ducke | J147: Dinizia excelsa | K147: Dine | L147: DINEXC | M147: composta | N147: cf | O147: 8.53 | P147: 9 | Q147: 8.14 | R147: 7 | S147: 8.5 | T147: 7 | U147: 0.12 | V147: 0.12 | W147: 0.13 | X147: 0.14 | Y147: 0.13 | Z147: 3.548 | AA147: 18.494 | AB147: 14.946 | AC147: 1.624 | AD147: =1.624+2*3.835 -> 9.294 | AE147: 7.67 | AF147: NA | AG147: 20240.4 | AH147: 19682 | AI147: 5 | AL147: =IF(AG147="NA","NA",IF(AD147="NA","NA",(AG147*AI147/(AD147*1000)))) -> 10.88896062 | AM147: 65.4 | AN147: =IF(AA147="NA","NA",IF(AD147="NA","NA",(AD147*100/AA147))) -> 50.25413648 | AO147: 0.128 | AP147: =((P147*0.5/O147)+(R147*0.5/Q147)+(T147*0.5/S147))/3 -> 0.4564299867 | AR147: =IF(M147="simples",AL147,IF(AE147="NA","NA",IF(AH147="NA","NA",(AH147*AI147/(AE147*1000))))) -> 12.83050847 | AS147: 19682 | AT147: =IF(M147="simples",AN147,IF(AB147="NA","NA",IF(AE147="NA","NA",(AE147*100/AB147)))) -> 51.31807842
A148: 10 | B148: 2009-06-24 | C148: FL | D148: DEFL-1 | E148: Fabaceae | F148: FABA | G148: Dinizia | H148: DIN | I148: Dinizia_excelsa_Ducke | J148: Dinizia excelsa | K148: Dine | L148: DINEXC | M148: composta | N148: NA | O148: 6.42 | P148: 7 | Q148: 7.58 | R148: 9 | S148: 6.39 | T148: 8 | U148: 0.18 | V148: 0.16 | W148: 0.15 | X148: 0.19 | Y148: 0.18 | Z148: NA | AA148: 14.077 | AB148: NA | AC148: 0.919 | AD148: 7.933 | AE148: 7.014 | AF148: NA | AG148: 12859.8 | AH148: 12542.8 | AI148: 5 | AL148: =IF(AG148="NA","NA",IF(AD148="NA","NA",(AG148*AI148/(AD148*1000)))) -> 8.105256523 | AM148: 87.2 | AN148: =IF(AA148="NA","NA",IF(AD148="NA","NA",(AD148*100/AA148))) -> 56.35433686 | AO148: 0.172 | AP148: =((P148*0.5/O148)+(R148*0.5/Q148)+(T148*0.5/S148))/3 -> 0.5882723255 | AR148: =IF(M148="simples",AL148,IF(AE148="NA","NA",IF(AH148="NA","NA",(AH148*AI148/(AE148*1000))))) -> 8.941260336 | AS148: 12542.8 | AT148: =IF(M148="simples",AN148,IF(AB148="NA","NA",IF(AE148="NA","NA",(AE148*100/AB148)))) -> NA
A149: 7 | B149: 2009-05-07 | C149: 41 | D149: 12 | E149: Fabaceae | F149: FABA | G149: Dipteryx | H149: DIP | I149: Dipteryx_magnifica_(Ducke)_Ducke | J149: Dipteryx magnifica | K149: Dipm | L149: DIPMAG | M149: composta | N149: NA | O149: 9.33 | P149: 23 | Q149: 10.03 | R149: 23 | S149: 10.45 | T149: 21 | U149: 0.22 | V149: 0.23 | W149: 0.21 | X149: 0.24 | Y149: 0.26 | Z149: 0.537 | AA149: 13.693 | AB149: 13.156 | AC149: 0.26 | AD149: =0.26+2*3.511 -> 7.282 | AE149: 7.022 | AF149: NA | AG149: 12129 | AH149: 12035.2 | AI149: 5 | AL149: =IF(AG149="NA","NA",IF(AD149="NA","NA",(AG149*AI149/(AD149*1000)))) -> 8.328069212 | AM149: 3557.294118 | AN149: =IF(AA149="NA","NA",IF(AD149="NA","NA",(AD149*100/AA149))) -> 53.18045717 | AO149: 0.232 | AP149: =((P149*0.5/O149)+(R149*0.5/Q149)+(T149*0.5/S149))/3 -> 1.127976024 | AR149: =IF(M149="simples",AL149,IF(AE149="NA","NA",IF(AH149="NA","NA",(AH149*AI149/(AE149*1000))))) -> 8.56963828 | AS149: 6047.4 | AT149: =IF(M149="simples",AN149,IF(AB149="NA","NA",IF(AE149="NA","NA",(AE149*100/AB149)))) -> 53.37488598
A150: 10 | B150: 2009-06-21 | C150: FL | D150: 1822 | E150: Fabaceae | F150: FABA | G150: Dipteryx | H150: DIP | I150: Dipteryx_magnifica_(Ducke)_Ducke | J150: Dipteryx magnifica | K150: Dipm | L150: DIPMAG | M150: composta | N150: NA | O150: 10.02 | P150: 10 | Q150: 8.59 | R150: 7 | S150: 8.87 | T150: 12 | U150: 0.16 | V150: 0.14 | W150: 0.16 | X150: 0.16 | Y150: 0.16 | Z150: 5.392 | AA150: 24.568 | AB150: 19.176 | AC150: 2.11 | AD150: 12.876 | AE150: 10.766 | AF150: NA | AG150: 39798 | AH150: 38991.6 | AI150: 5 | AL150: =IF(AG150="NA","NA",IF(AD150="NA","NA",(AG150*AI150/(AD150*1000)))) -> 15.45433364 | AM150: 3293.387097 | AN150: =IF(AA150="NA","NA",IF(AD150="NA","NA",(AD150*100/AA150))) -> 52.40963855 | AO150: 0.156 | AP150: =((P150*0.5/O150)+(R150*0.5/Q150)+(T150*0.5/S150))/3 -> 0.5276299831 | AR150: =IF(M150="simples",AL150,IF(AE150="NA","NA",IF(AH150="NA","NA",(AH150*AI150/(AE150*1000))))) -> 18.10867546 | AS150: 20419 | AT150: =IF(M150="simples",AN150,IF(AB150="NA","NA",IF(AE150="NA","NA",(AE150*100/AB150)))) -> 56.14309554
A151: 5 | B151: 2009-04-05 | C151: 37 | D151: 105362 | E151: Fabaceae | F151: FABA | G151: Dipteryx | H151: DIP | I151: Dipteryx_magnifica_(Ducke)_Ducke | J151: Dipteryx magnifica | K151: Dipm | L151: DIPMAG | M151: composta | N151: OK | O151: 8.5 | P151: 11 | Q151: 9.36 | R151: 10 | S151: 7.86 | T151: 8 | U151: 0.14 | V151: 0.15 | W151: 0.16 | X151: 0.15 | Y151: 0.15 | Z151: 5.877 | AA151: 30.123 | AB151: 24.246 | AC151: 2.54 | AD151: =2.54+2*5.41 -> 13.36 | AE151: 10.82 | AF151: NA | AG151: 36335 | AH151: 35478 | AI151: 5 | AL151: =IF(AG151="NA","NA",IF(AD151="NA","NA",(AG151*AI151/(AD151*1000)))) -> 13.59842814 | AM151: 2891.548387 | AN151: =IF(AA151="NA","NA",IF(AD151="NA","NA",(AD151*100/AA151))) -> 44.35149222 | AO151: 0.15 | AP151: =((P151*0.5/O151)+(R151*0.5/Q151)+(T151*0.5/S151))/3 -> 0.5633842367 | AR151: =IF(M151="simples",AL151,IF(AE151="NA","NA",IF(AH151="NA","NA",(AH151*AI151/(AE151*1000))))) -> 16.39463956 | AS151: 17927.6 | AT151: =IF(M151="simples",AN151,IF(AB151="NA","NA",IF(AE151="NA","NA",(AE151*100/AB151)))) -> 44.62591768
A152: 10 | B152: 2009-06-22 | C152: FL | D152: 1374 | E152: Fabaceae | F152: FABA | G152: Dipteryx | H152: DIP | I152: Dipteryx_odorata_(Aubl.)_Willd. | J152: Dipteryx odorata | K152: Dipo | L152: DIPODO | M152: composta | N152: NA | O152: 9.53 | P152: 15 | Q152: 9.37 | R152: 12 | S152: 8.96 | T152: 11 | U152: 0.17 | V152: 0.17 | W152: 0.2 | X152: 0.17 | Y152: 0.16 | Z152: NA | AA152: 50.022 | AB152: NA | AC152: NA | AD152: 22.289 | AE152: NA | AF152: NA | AG152: 45332.4 | AH152: 44208.2 | AI152: 5 | AL152: =IF(AG152="NA","NA",IF(AD152="NA","NA",(AG152*AI152/(AD152*1000)))) -> 10.16923146 | AM152: 9419.916667 | AN152: =IF(AA152="NA","NA",IF(AD152="NA","NA",(AD152*100/AA152))) -> 44.55839431 | AO152: 0.174 | AP152: =((P152*0.5/O152)+(R152*0.5/Q152)+(T152*0.5/S152))/3 -> 0.6803897529 | AR152: =IF(M152="simples",AL152,IF(AE152="NA","NA",IF(AH152="NA","NA",(AH152*AI152/(AE152*1000))))) -> NA | AS152: 45215.6 | AT152: =IF(M152="simples",AN152,IF(AB152="NA","NA",IF(AE152="NA","NA",(AE152*100/AB152)))) -> NA
A153: 10 | B153: 2009-06-21 | C153: FL | D153: 1734 | E153: Fabaceae | F153: FABA | G153: Dipteryx | H153: DIP | I153: Dipteryx_odorata_(Aubl.)_Willd. | J153: Dipteryx odorata | K153: Dipo | L153: DIPODO | M153: composta | N153: NA | O153: 8.91 | P153: 13 | Q153: 9.26 | R153: 15 | S153: 9.11 | T153: 14 | U153: 0.24 | V153: 0.26 | W153: 0.23 | X153: 0.23 | Y153: 0.25 | Z153: 11.418 | AA153: 71.426 | AB153: 60.008 | AC153: 5.709 | AD153: 33.209 | AE153: 27.5 | AF153: NA | AG153: 55996.6 | AH153: 54626.4 | AI153: 5 | AK153: msf_estim | AL153: =IF(AG153="NA","NA",IF(AD153="NA","NA",(AG153*AI153/(AD153*1000)))) -> 8.430937396 | AM153: 9261 | AN153: =IF(AA153="NA","NA",IF(AD153="NA","NA",(AD153*100/AA153))) -> 46.49427379 | AO153: 0.242 | AP153: =((P153*0.5/O153)+(R153*0.5/Q153)+(T153*0.5/S153))/3 -> 0.7692796633 | AR153: =IF(M153="simples",AL153,IF(AE153="NA","NA",IF(AH153="NA","NA",(AH153*AI153/(AE153*1000))))) -> 9.932072727 | AS153: 27783 | AT153: =IF(M153="simples",AN153,IF(AB153="NA","NA",IF(AE153="NA","NA",(AE153*100/AB153)))) -> 45.82722304
A154: 9 | B154: 2009-06-04 | C154: CF | D154: 5013 | E154: Fabaceae | F154: FABA | G154: Dipteryx | H154: DIP | I154: Dipteryx_odorata_(Aubl.)_Willd. | J154: Dipteryx odorata | K154: Dipo | L154: DIPODO | M154: composta | N154: NA | O154: 11.42 | P154: 16 | Q154: 10.65 | R154: 17 | S154: 9.47 | T154: 15 | U154: 0.22 | V154: 0.2 | W154: 0.19 | X154: 0.23 | Y154: 0.23 | Z154: 28.86 | AA154: 178.53 | AB154: 149.67 | AC154: 0.911 | AD154: =0.911+2*32.972 -> 66.855 | AE154: 65.944 | AF154: NA | AG154: 134388.4 | AH154: 131669.2 | AI154: 5 | AL154: =IF(AG154="NA","NA",IF(AD154="NA","NA",(AG154*AI154/(AD154*1000)))) -> 10.05073667 | AM154: 18495 | AN154: =IF(AA154="NA","NA",IF(AD154="NA","NA",(AD154*100/AA154))) -> 37.44748782 | AO154: 0.214 | AP154: =((P154*0.5/O154)+(R154*0.5/Q154)+(T154*0.5/S154))/3 -> 0.7635407055 | AR154: =IF(M154="simples",AL154,IF(AE154="NA","NA",IF(AH154="NA","NA",(AH154*AI154/(AE154*1000))))) -> 9.983410166 | AS154: 66582 | AT154: =IF(M154="simples",AN154,IF(AB154="NA","NA",IF(AE154="NA","NA",(AE154*100/AB154)))) -> 44.05959778
A155: 5 | B155: 2009-04-03 | C155: 37 | D155: 30971 | E155: Fabaceae | F155: FABA | G155: Dipteryx | H155: DIP | I155: Dipteryx_odorata_(Aubl.)_Willd. | J155: Dipteryx odorata | K155: Dipo | L155: DIPODO | M155: composta | N155: OK | O155: 9.42 | P155: 12 | Q155: 8.55 | R155: 11 | S155: 9.94 | T155: 16 | U155: 0.22 | V155: 0.24 | W155: 0.2 | X155: 0.29 | Y155: 0.25 | Z155: 11.925 | AA155: =11.925+2*32.283 -> 76.491 | AB155: 64.566 | AC155: 5.699 | AD155: =5.699+2*17.573 -> 40.845 | AE155: 35.146 | AF155: NA | AG155: 62197.2 | AH155: 60906.8 | AI155: 5 | AL155: =IF(AG155="NA","NA",IF(AD155="NA","NA",(AG155*AI155/(AD155*1000)))) -> 7.6138083 | AM155: 10382.66667 | AN155: =IF(AA155="NA","NA",IF(AD155="NA","NA",(AD155*100/AA155))) -> 53.39843903 | AO155: 0.24 | AP155: =((P155*0.5/O155)+(R155*0.5/Q155)+(T155*0.5/S155))/3 -> 0.6950155009 | AR155: =IF(M155="simples",AL155,IF(AE155="NA","NA",IF(AH155="NA","NA",(AH155*AI155/(AE155*1000))))) -> 8.664826723 | AS155: 31148 | AT155: =IF(M155="simples",AN155,IF(AB155="NA","NA",IF(AE155="NA","NA",(AE155*100/AB155)))) -> 54.43422235
A156: 8 | B156: 2009-05-19 | C156: CF | D156: 15 | E156: Euphorbiaceae | F156: EUPH | G156: Drypetes | H156: DRY | I156: Drypetes_variabilis_Uittien | J156: Drypetes variabilis | K156: Dryv | L156: DRYVAR | M156: simples | N156: NA | O156: 10.74 | P156: 10 | Q156: 11.57 | R156: 12 | S156: 10.02 | T156: 11 | U156: 0.25 | V156: 0.26 | W156: 0.26 | X156: 0.27 | Y156: 0.26 | Z156: NA | AA156: 7.987 | AB156: 7.987 | AC156: NA | AD156: 3.436 | AE156: 3.436 | AF156: NA | AG156: 6073.2 | AH156: 6073.2 | AI156: 5 | AL156: =IF(AG156="NA","NA",IF(AD156="NA","NA",(AG156*AI156/(AD156*1000)))) -> 8.837601863 | AM156: 6061 | AN156: =IF(AA156="NA","NA",IF(AD156="NA","NA",(AD156*100/AA156))) -> 43.01990735 | AO156: 0.26 | AP156: =((P156*0.5/O156)+(R156*0.5/Q156)+(T156*0.5/S156))/3 -> 0.5110113616 | AR156: =IF(M156="simples",AL156,IF(AE156="NA","NA",IF(AH156="NA","NA",(AH156*AI156/(AE156*1000))))) -> 8.837601863 | AS156: 6061 | AT156: =IF(M156="simples",AN156,IF(AB156="NA","NA",IF(AE156="NA","NA",(AE156*100/AB156)))) -> 43.01990735
A157: 9 | B157: 2009-06-07 | C157: CF | D157: 3568 | E157: Euphorbiaceae | F157: EUPH | G157: Drypetes | H157: DRY | I157: Drypetes_variabilis_Uittien | J157: Drypetes variabilis | K157: Dryv | L157: DRYVAR | M157: simples | N157: NA | O157: 9.53 | P157: 12 | Q157: 10.47 | R157: 12 | S157: 10.62 | T157: 12 | U157: 0.23 | V157: 0.27 | W157: 0.27 | X157: 0.24 | Y157: 0.24 | Z157: NA | AA157: 7.348 | AB157: 7.348 | AC157: NA | AD157: 3.151 | AE157: 3.151 | AF157: NA | AG157: NA | AH157: NA | AI157: 5 | AL157: =IF(AG157="NA","NA",IF(AD157="NA","NA",(AG157*AI157/(AD157*1000)))) -> NA | AM157: NA | AN157: =IF(AA157="NA","NA",IF(AD157="NA","NA",(AD157*100/AA157))) -> 42.88241698 | AO157: 0.25 | AP157: =((P157*0.5/O157)+(R157*0.5/Q157)+(T157*0.5/S157))/3 -> 0.5892094733 | AR157: =IF(M157="simples",AL157,IF(AE157="NA","NA",IF(AH157="NA","NA",(AH157*AI157/(AE157*1000))))) -> NA | AS157: NA | AT157: =IF(M157="simples",AN157,IF(AB157="NA","NA",IF(AE157="NA","NA",(AE157*100/AB157)))) -> 42.88241698
A158: 9 | B158: 2009-06-06 | C158: CF | D158: 4151 | E158: Euphorbiaceae | F158: EUPH | G158: Drypetes | H158: DRY | I158: Drypetes_variabilis_Uittien | J158: Drypetes variabilis | K158: Dryv | L158: DRYVAR | M158: simples | N158: NA | O158: 10.76 | P158: 15 | Q158: 10.21 | R158: 14 | S158: 10.19 | T158: 9 | U158: 0.23 | V158: 0.23 | W158: 0.24 | X158: 0.23 | Y158: 0.25 | Z158: NA | AA158: 10.564 | AB158: 10.564 | AC158: NA | AD158: 3.925 | AE158: 3.925 | AF158: NA | AG158: NA | AH158: NA | AI158: 5 | AL158: =IF(AG158="NA","NA",IF(AD158="NA","NA",(AG158*AI158/(AD158*1000)))) -> NA | AM158: NA | AN158: =IF(AA158="NA","NA",IF(AD158="NA","NA",(AD158*100/AA158))) -> 37.15448694 | AO158: 0.236 | AP158: =((P158*0.5/O158)+(R158*0.5/Q158)+(T158*0.5/S158))/3 -> 0.6080792646 | AR158: =IF(M158="simples",AL158,IF(AE158="NA","NA",IF(AH158="NA","NA",(AH158*AI158/(AE158*1000))))) -> NA | AS158: NA | AT158: =IF(M158="simples",AN158,IF(AB158="NA","NA",IF(AE158="NA","NA",(AE158*100/AB158)))) -> 37.15448694
A159: 8 | B159: 2009-05-24 | C159: CF | D159: 5236 | E159: Euphorbiaceae | F159: EUPH | G159: Drypetes | H159: DRY | I159: Drypetes_variabilis_Uittien | J159: Drypetes variabilis | K159: Dryv | L159: DRYVAR | M159: simples | N159: NA | O159: 9.62 | P159: 13 | Q159: 9.85 | R159: 13 | S159: 9.59 | T159: 12 | U159: 0.25 | V159: 0.24 | W159: 0.23 | X159: 0.27 | Y159: 0.26 | Z159: NA | AA159: 8.778 | AB159: 8.778 | AC159: NA | AD159: 3.496 | AE159: 3.496 | AF159: NA | AG159: 7346.6 | AH159: 7346.6 | AI159: 5 | AL159: =IF(AG159="NA","NA",IF(AD159="NA","NA",(AG159*AI159/(AD159*1000)))) -> 10.50715103 | AM159: 7315.6 | AN159: =IF(AA159="NA","NA",IF(AD159="NA","NA",(AD159*100/AA159))) -> 39.82683983 | AO159: 0.25 | AP159: =((P159*0.5/O159)+(R159*0.5/Q159)+(T159*0.5/S159))/3 -> 0.6537419578 | AR159: =IF(M159="simples",AL159,IF(AE159="NA","NA",IF(AH159="NA","NA",(AH159*AI159/(AE159*1000))))) -> 10.50715103 | AS159: 7315.6 | AT159: =IF(M159="simples",AN159,IF(AB159="NA","NA",IF(AE159="NA","NA",(AE159*100/AB159)))) -> 39.82683983
A160: 6 | B160: 2009-04-17 | C160: 37 | D160: 81268 | E160: Euphorbiaceae | F160: EUPH | G160: Drypetes | H160: DRY | I160: Drypetes_variabilis_Uittien | J160: Drypetes variabilis | K160: Dryv | L160: DRYVAR | M160: simples | N160: OK | O160: 10.01 | P160: 14 | Q160: 9.37 | R160: 11 | S160: 9.21 | T160: 8 | U160: 0.21 | V160: 0.2 | W160: 0.21 | X160: 0.22 | Y160: 0.22 | Z160: NA | AA160: 7.207 | AB160: 7.207 | AC160: NA | AD160: 3.209 | AE160: 3.209 | AF160: NA | AG160: 5512.6 | AH160: 5512.6 | AI160: 5 | AL160: =IF(AG160="NA","NA",IF(AD160="NA","NA",(AG160*AI160/(AD160*1000)))) -> 8.58928015 | AM160: 5479.8 | AN160: =IF(AA160="NA","NA",IF(AD160="NA","NA",(AD160*100/AA160))) -> 44.52615513 | AO160: 0.212 | AP160: =((P160*0.5/O160)+(R160*0.5/Q160)+(T160*0.5/S160))/3 -> 0.5735303179 | AR160: =IF(M160="simples",AL160,IF(AE160="NA","NA",IF(AH160="NA","NA",(AH160*AI160/(AE160*1000))))) -> 8.58928015 | AS160: 5479.8 | AT160: =IF(M160="simples",AN160,IF(AB160="NA","NA",IF(AE160="NA","NA",(AE160*100/AB160)))) -> 44.52615513
A161: 3 | B161: 2009-03-10 | C161: 37 | D161: 100884 | E161: Euphorbiaceae | F161: EUPH | G161: Drypetes | H161: DRY | I161: Drypetes_variabilis_Uittien | J161: Drypetes variabilis | K161: Dryv | L161: DRYVAR | M161: simples | N161: OK | O161: 12.59 | P161: 18 | Q161: 12.61 | R161: 14 | S161: 12.45 | T161: 18 | U161: 0.29 | V161: 0.32 | W161: 0.31 | X161: 0.33 | Y161: 0.35 | Z161: NA | AA161: 7.797 | AB161: 7.797 | AC161: NA | AD161: 3.537 | AE161: 3.537 | AF161: NA | AG161: 5560.8 | AH161: 5560.8 | AI161: 5 | AL161: =IF(AG161="NA","NA",IF(AD161="NA","NA",(AG161*AI161/(AD161*1000)))) -> 7.860899067 | AM161: 5524.2 | AN161: =IF(AA161="NA","NA",IF(AD161="NA","NA",(AD161*100/AA161))) -> 45.36360139 | AO161: NA | AP161: =((P161*0.5/O161)+(R161*0.5/Q161)+(T161*0.5/S161))/3 -> 0.6642865375 | AR161: =IF(M161="simples",AL161,IF(AE161="NA","NA",IF(AH161="NA","NA",(AH161*AI161/(AE161*1000))))) -> 7.860899067 | AS161: 5524.2 | AT161: =IF(M161="simples",AN161,IF(AB161="NA","NA",IF(AE161="NA","NA",(AE161*100/AB161)))) -> 45.36360139
A162: 2 | B162: 2009-02-12 | C162: 37 | D162: 145039 | E162: Euphorbiaceae | F162: EUPH | G162: Drypetes | H162: DRY | I162: Drypetes_variabilis_Uittien | J162: Drypetes variabilis | K162: Dryv | L162: DRYVAR | M162: simples | N162: cf | O162: 12.14 | P162: 20 | Q162: NA | R162: NA | S162: NA | T162: NA | U162: NA | V162: NA | W162: NA | X162: NA | Y162: NA | Z162: NA | AA162: NA | AB162: NA | AC162: NA | AD162: 2.888 | AE162: 2.888 | AF162: NA | AG162: 3821.6 | AH162: 3821.6 | AI162: 5 | AL162: =IF(AG162="NA","NA",IF(AD162="NA","NA",(AG162*AI162/(AD162*1000)))) -> 6.61634349 | AM162: 4004.6 | AN162: =IF(AA162="NA","NA",IF(AD162="NA","NA",(AD162*100/AA162))) -> NA | AO162: =IF(U162="NA","NA",IF(V162="NA","NA",AVERAGE(U162:Y162))) -> NA | AP162: =(P162*0.5/O162) -> 0.823723229 | AR162: =IF(M162="simples",AL162,IF(AE162="NA","NA",IF(AH162="NA","NA",(AH162*AI162/(AE162*1000))))) -> 6.61634349 | AS162: 4004.6 | AT162: =IF(M162="simples",AN162,IF(AB162="NA","NA",IF(AE162="NA","NA",(AE162*100/AB162)))) -> NA
A163: 10 | B163: 2009-06-19 | C163: FL | D163: 4241 | E163: Duckeodendraceae | F163: DUCK | G163: Duckeodendron | H163: DUC | I163: Duckeodendron_cestroides_Kuhlm. | J163: Duckeodendron cestroides | K163: Ducc | L163: DUCCES | M163: simples | N163: NA | O163: 10.79 | P163: 9 | Q163: 10.14 | R163: 10 | S163: 10.59 | T163: 10 | U163: 0.23 | V163: 0.25 | W163: 0.25 | X163: 0.23 | Y163: 0.24 | Z163: NA | AA163: 8.248 | AB163: 8.248 | AC163: NA | AD163: 2.253 | AE163: 2.253 | AF163: NA | AG163: 8058.4 | AH163: 8058.4 | AI163: 5 | AL163: =IF(AG163="NA","NA",IF(AD163="NA","NA",(AG163*AI163/(AD163*1000)))) -> 17.88371061 | AM163: 8020.6 | AN163: =IF(AA163="NA","NA",IF(AD163="NA","NA",(AD163*100/AA163))) -> 27.3157129 | AO163: 0.24 | AP163: =((P163*0.5/O163)+(R163*0.5/Q163)+(T163*0.5/S163))/3 -> 0.4607643351 | AR163: =IF(M163="simples",AL163,IF(AE163="NA","NA",IF(AH163="NA","NA",(AH163*AI163/(AE163*1000))))) -> 17.88371061 | AS163: 8020.6 | AT163: =IF(M163="simples",AN163,IF(AB163="NA","NA",IF(AE163="NA","NA",(AE163*100/AB163)))) -> 27.3157129
A164: 9 | B164: 2009-06-04 | C164: CF | D164: 4884 | E164: Duckeodendraceae | F164: DUCK | G164: Duckeodendron | H164: DUC | I164: Duckeodendron_cestroides_Kuhlm. | J164: Duckeodendron cestroides | K164: Ducc | L164: DUCCES | M164: simples | N164: NA | O164: 9.33 | P164: 11 | Q164: 9.76 | R164: 10 | S164: 8.9 | T164: 12 | U164: 0.22 | V164: 0.24 | W164: 0.24 | X164: 0.25 | Y164: 0.27 | Z164: NA | AA164: 6.903 | AB164: 6.903 | AC164: NA | AD164: 2.456 | AE164: 2.456 | AF164: NA | AG164: 6239.4 | AH164: 6239.4 | AI164: 5 | AL164: =IF(AG164="NA","NA",IF(AD164="NA","NA",(AG164*AI164/(AD164*1000)))) -> 12.70236156 | AM164: 6212 | AN164: =IF(AA164="NA","NA",IF(AD164="NA","NA",(AD164*100/AA164))) -> 35.57873388 | AO164: 0.244 | AP164: =((P164*0.5/O164)+(R164*0.5/Q164)+(T164*0.5/S164))/3 -> 0.591982878 | AR164: =IF(M164="simples",AL164,IF(AE164="NA","NA",IF(AH164="NA","NA",(AH164*AI164/(AE164*1000))))) -> 12.70236156 | AS164: 6212 | AT164: =IF(M164="simples",AN164,IF(AB164="NA","NA",IF(AE164="NA","NA",(AE164*100/AB164)))) -> 35.57873388
A165: 9 | B165: 2009-06-02 | C165: CF | D165: 4889 | E165: Duckeodendraceae | F165: DUCK | G165: Duckeodendron | H165: DUC | I165: Duckeodendron_cestroides_Kuhlm. | J165: Duckeodendron cestroides | K165: Ducc | L165: DUCCES | M165: simples | N165: NA | O165: 10.16 | P165: 8 | Q165: 8.85 | R165: 9 | S165: 8.58 | T165: 7 | U165: 0.28 | V165: 0.28 | W165: 0.29 | X165: 0.28 | Y165: 0.31 | Z165: NA | AA165: 4.735 | AB165: 4.735 | AC165: NA | AD165: 1.786 | AE165: 1.786 | AF165: NA | AG165: 4894.2 | AH165: 4894.2 | AI165: 5 | AL165: =IF(AG165="NA","NA",IF(AD165="NA","NA",(AG165*AI165/(AD165*1000)))) -> 13.70156775 | AM165: 4877.6 | AN165: =IF(AA165="NA","NA",IF(AD165="NA","NA",(AD165*100/AA165))) -> 37.71911299 | AO165: 0.288 | AP165: =((P165*0.5/O165)+(R165*0.5/Q165)+(T165*0.5/S165))/3 -> 0.4367002572 | AR165: =IF(M165="simples",AL165,IF(AE165="NA","NA",IF(AH165="NA","NA",(AH165*AI165/(AE165*1000))))) -> 13.70156775 | AS165: 4877.6 | AT165: =IF(M165="simples",AN165,IF(AB165="NA","NA",IF(AE165="NA","NA",(AE165*100/AB165)))) -> 37.71911299
A166: 9 | B166: 2009-06-03 | C166: CF | D166: 4957 | E166: Duckeodendraceae | F166: DUCK | G166: Duckeodendron | H166: DUC | I166: Duckeodendron_cestroides_Kuhlm. | J166: Duckeodendron cestroides | K166: Ducc | L166: DUCCES | M166: simples | N166: NA | O166: 10.07 | P166: 7 | Q166: 9.23 | R166: 11 | S166: 7.85 | T166: 6 | U166: 0.17 | V166: 0.2 | W166: 0.21 | X166: 0.17 | Y166: 0.2 | Z166: NA | AA166: 5.83 | AB166: 5.83 | AC166: NA | AD166: 1.719 | AE166: 1.719 | AF166: NA | AG166: 5459.6 | AH166: 5459.6 | AI166: 5 | AL166: =IF(AG166="NA","NA",IF(AD166="NA","NA",(AG166*AI166/(AD166*1000)))) -> 15.88016289 | AM166: 5443.8 | AN166: 29.48542024 | AO166: 0.19 | AP166: =((P166*0.5/O166)+(R166*0.5/Q166)+(T166*0.5/S166))/3 -> 0.4418718754 | AR166: =IF(M166="simples",AL166,IF(AE166="NA","NA",IF(AH166="NA","NA",(AH166*AI166/(AE166*1000))))) -> 15.88016289 | AS166: 5443.8 | AT166: =IF(M166="simples",AN166,IF(AB166="NA","NA",IF(AE166="NA","NA",(AE166*100/AB166)))) -> 29.48542024
A167: 0 | B167: 2008-05-27 | C167: 37 | D167: 242500 | E167: Duckeodendraceae | F167: DUCK | G167: Duckeodendron | H167: DUC | I167: Duckeodendron_cestroides_Kuhlm. | J167: Duckeodendron cestroides | K167: Ducc | L167: DUCCES | M167: simples | N167: não consta | O167: 10.37 | P167: 11 | Q167: NA | R167: NA | S167: NA | T167: NA | U167: NA | V167: NA | W167: NA | X167: NA | Y167: NA | Z167: NA | AA167: NA | AB167: NA | AC167: NA | AD167: 1.851 | AE167: 1.851 | AF167: NA | AG167: 4625 | AH167: 4625 | AI167: 5 | AL167: =IF(AG167="NA","NA",IF(AD167="NA","NA",(AG167*AI167/(AD167*1000)))) -> 12.49324689 | AM167: 4593.4 | AN167: NA | AO167: NA | AP167: =(P167*0.5/O167) -> 0.5303760849 | AR167: =IF(M167="simples",AL167,IF(AE167="NA","NA",IF(AH167="NA","NA",(AH167*AI167/(AE167*1000))))) -> 12.49324689 | AS167: 4593.4 | AT167: =IF(M167="simples",AN167,IF(AB167="NA","NA",IF(AE167="NA","NA",(AE167*100/AB167)))) -> NA
A168: 9 | B168: 2009-06-07 | C168: CF | D168: 3494 | E168: Annonaceae | F168: ANNO | G168: Duguetia | H168: DUG | I168: Duguetia_echinophora_R._E._Fries | J168: Duguetia echinophora | K168: Duge | L168: DUGECH | M168: simples | N168: NA | O168: 9.48 | P168: 11 | Q168: 10.16 | R168: 9 | S168: 9.76 | T168: 5 | U168: 0.15 | V168: 0.16 | W168: 0.15 | X168: 0.15 | Y168: 0.19 | Z168: NA | AA168: 3.734 | AB168: 3.734 | AC168: NA | AD168: 1.893 | AE168: 1.893 | AF168: NA | AG168: 5143 | AH168: 5143 | AI168: 5 | AL168: =IF(AG168="NA","NA",IF(AD168="NA","NA",(AG168*AI168/(AD168*1000)))) -> 13.58425779 | AM168: 5130.4 | AN168: 50.69630423 | AO168: 0.16 | AP168: =((P168*0.5/O168)+(R168*0.5/Q168)+(T168*0.5/S168))/3 -> 0.4264099011 | AR168: =IF(M168="simples",AL168,IF(AE168="NA","NA",IF(AH168="NA","NA",(AH168*AI168/(AE168*1000))))) -> 13.58425779 | AS168: 5130.4 | AT168: =IF(M168="simples",AN168,IF(AB168="NA","NA",IF(AE168="NA","NA",(AE168*100/AB168)))) -> 50.69630423
A169: 10 | B169: 2009-06-17 | C169: FL | D169: 5017 | E169: Annonaceae | F169: ANNO | G169: Duguetia | H169: DUG | I169: Duguetia_echinophora_R._E._Fries | J169: Duguetia echinophora | K169: Duge | L169: DUGECH | M169: simples | N169: NA | O169: 10.13 | P169: 10 | Q169: 10.01 | R169: 12 | S169: 9.82 | T169: 10 | U169: 0.15 | V169: 0.16 | W169: 0.16 | X169: 0.13 | Y169: 0.13 | Z169: NA | AA169: 2.973 | AB169: 2.973 | AC169: NA | AD169: 1.467 | AE169: 1.467 | AF169: NA | AG169: 4003.6 | AH169: 4003.6 | AI169: 5 | AL169: =IF(AG169="NA","NA",IF(AD169="NA","NA",(AG169*AI169/(AD169*1000)))) -> 13.64553511 | AM169: 3984.8 | AN169: 49.34409687 | AO169: 0.146 | AP169: 0.5340496615 | AR169: =IF(M169="simples",AL169,IF(AE169="NA","NA",IF(AH169="NA","NA",(AH169*AI169/(AE169*1000))))) -> 13.64553511 | AS169: 3984.8 | AT169: =IF(M169="simples",AN169,IF(AB169="NA","NA",IF(AE169="NA","NA",(AE169*100/AB169)))) -> 49.34409687
A170: 10 | B170: 2009-06-17 | C170: FL | D170: 5139 | E170: Annonaceae | F170: ANNO | G170: Duguetia | H170: DUG | I170: Duguetia_echinophora_R._E._Fries | J170: Duguetia echinophora | K170: Duge | L170: DUGECH | M170: simples | N170: NA | O170: 9.79 | P170: 11 | Q170: 9.94 | R170: 14 | S170: 9.3 | T170: 14 | U170: 0.18 | V170: 0.14 | W170: 0.14 | X170: 0.14 | Y170: 0.14 | Z170: NA | AA170: 3.048 | AB170: 3.048 | AC170: NA | AD170: 1.556 | AE170: 1.556 | AF170: NA | AG170: 4575.4 | AH170: 4575.4 | AI170: 5 | AL170: =IF(AG170="NA","NA",IF(AD170="NA","NA",(AG170*AI170/(AD170*1000)))) -> 14.70244216 | AM170: 4558.2 | AN170: 51.04986877 | AO170: 0.148 | AP170: 0.672903759 | AR170: =IF(M170="simples",AL170,IF(AE170="NA","NA",IF(AH170="NA","NA",(AH170*AI170/(AE170*1000))))) -> 14.70244216 | AS170: 4558.2 | AT170: =IF(M170="simples",AN170,IF(AB170="NA","NA",IF(AE170="NA","NA",(AE170*100/AB170)))) -> 51.04986877
A171: 8 | B171: 2009-05-21 | C171: CF | D171: 6044 | E171: Annonaceae | F171: ANNO | G171: Duguetia | H171: DUG | I171: Duguetia_echinophora_R._E._Fries | J171: Duguetia echinophora | K171: Duge | L171: DUGECH | M171: simples | N171: NA | O171: 7.62 | P171: 10 | Q171: 9.41 | R171: 10 | S171: 8.96 | T171: 13 | U171: 0.15 | V171: 0.13 | W171: 0.14 | X171: 0.12 | Y171: 0.14 | Z171: NA | AA171: 2.855 | AB171: 2.855 | AC171: NA | AD171: 1.618 | AE171: 1.618 | AF171: NA | AG171: 3231 | AH171: 3231 | AI171: 5 | AL171: =IF(AG171="NA","NA",IF(AD171="NA","NA",(AG171*AI171/(AD171*1000)))) -> 9.984548826 | AM171: 3260.8 | AN171: 56.67250438 | AO171: 0.136 | AP171: 0.6376546785 | AR171: =IF(M171="simples",AL171,IF(AE171="NA","NA",IF(AH171="NA","NA",(AH171*AI171/(AE171*1000))))) -> 9.984548826 | AS171: 3260.8 | AT171: =IF(M171="simples",AN171,IF(AB171="NA","NA",IF(AE171="NA","NA",(AE171*100/AB171)))) -> 56.67250438
A172: 10 | B172: 2009-06-17 | C172: FL | D172: 6544 | E172: Annonaceae | F172: ANNO | G172: Duguetia | H172: DUG | I172: Duguetia_echinophora_R._E._Fries | J172: Duguetia echinophora | K172: Duge | L172: DUGECH | M172: simples | N172: NA | O172: 9.86 | P172: 12 | Q172: 10.28 | R172: 11 | S172: 10.67 | T172: 13 | U172: 0.15 | V172: 0.13 | W172: 0.14 | X172: 0.16 | Y172: 0.17 | Z172: NA | AA172: 2.808 | AB172: 2.808 | AC172: NA | AD172: 1.485 | AE172: 1.485 | AF172: NA | AG172: 3788.4 | AH172: 3788.4 | AI172: 5 | AL172: =IF(AG172="NA","NA",IF(AD172="NA","NA",(AG172*AI172/(AD172*1000)))) -> 12.75555556 | AM172: 3772.8 | AN172: 52.88461538 | AO172: 0.15 | AP172: 0.5842411183 | AR172: =IF(M172="simples",AL172,IF(AE172="NA","NA",IF(AH172="NA","NA",(AH172*AI172/(AE172*1000))))) -> 12.75555556 | AS172: 3772.8 | AT172: =IF(M172="simples",AN172,IF(AB172="NA","NA",IF(AE172="NA","NA",(AE172*100/AB172)))) -> 52.88461538
A173: 10 | B173: 2009-06-17 | C173: FL | D173: 6551 | E173: Annonaceae | F173: ANNO | G173: Duguetia | H173: DUG | I173: Duguetia_echinophora_R._E._Fries | J173: Duguetia echinophora | K173: Duge | L173: DUGECH | M173: simples | N173: NA | O173: 9.59 | P173: 15 | Q173: 9.56 | R173: 13 | S173: 9.83 | T173: 11 | U173: 0.14 | V173: 0.16 | W173: 0.15 | X173: 0.15 | Y173: 0.16 | Z173: NA | AA173: 3.311 | AB173: 3.311 | AC173: NA | AD173: 1.704 | AE173: 1.704 | AF173: NA | AG173: 4517.4 | AH173: 4517.4 | AI173: 5 | AL173: =IF(AG173="NA","NA",IF(AD173="NA","NA",(AG173*AI173/(AD173*1000)))) -> 13.25528169 | AM173: 4494.6 | AN173: 51.46481426 | AO173: 0.152 | AP173: 0.6738308892 | AR173: =IF(M173="simples",AL173,IF(AE173="NA","NA",IF(AH173="NA","NA",(AH173*AI173/(AE173*1000))))) -> 13.25528169 | AS173: 4494.6 | AT173: =IF(M173="simples",AN173,IF(AB173="NA","NA",IF(AE173="NA","NA",(AE173*100/AB173)))) -> 51.46481426
A174: 4 | B174: 2009-03-22 | C174: 37 | D174: 114721 | E174: Annonaceae | F174: ANNO | G174: Duguetia | H174: DUG | I174: Duguetia_echinophora_R._E._Fries | J174: Duguetia echinophora | K174: Duge | L174: DUGECH | M174: simples | N174: OK | O174: 13.45 | P174: 16 | Q174: 11.59 | R174: 20 | S174: 12.71 | T174: 21 | U174: 0.16 | V174: 0.16 | W174: 0.17 | X174: 0.12 | Y174: 0.15 | Z174: NA | AA174: 2.932 | AB174: 2.932 | AC174: NA | AD174: NA | AE174: NA | AF174: NA | AG174: 3116.8 | AH174: 3116.8 | AI174: 5 | AL174: =IF(AG174="NA","NA",IF(AD174="NA","NA",(AG174*AI174/(AD174*1000)))) -> NA | AM174: 3092.4 | AN174: NA | AO174: 0.152 | AP174: 0.7612431577 | AR174: =IF(M174="simples",AL174,IF(AE174="NA","NA",IF(AH174="NA","NA",(AH174*AI174/(AE174*1000))))) -> NA | AS174: 3092.4 | AT174: =IF(M174="simples",AN174,IF(AB174="NA","NA",IF(AE174="NA","NA",(AE174*100/AB174)))) -> NA
A175: 8 | B175: 2009-05-19 | C175: CF | D175: 49 | E175: Annonaceae | F175: ANNO | G175: Duguetia | H175: DUG | I175: Duguetia_manausensis_Maas_&_Boon | J175: Duguetia manausensis | K175: Dugm | L175: DUGMAN | M175: simples | N175: NA | O175: 10.11 | P175: 16 | Q175: 10.63 | R175: 17 | S175: 10.35 | T175: 15 | U175: 0.22 | V175: 0.25 | W175: 0.19 | X175: 0.25 | Y175: 0.25 | Z175: NA | AA175: 14.488 | AB175: 14.488 | AC175: NA | AD175: 5.834 | AE175: 5.834 | AF175: 7.949 | AG175: NA | AH175: NA | AI175: 5 | AK175: coletado 2X (areas-amira) | AL175: =IF(AG175="NA","NA",IF(AD175="NA","NA",(AG175*AI175/(AD175*1000)))) -> NA | AM175: NA | AN175: 40.26780784 | AO175: 0.232 | AP175: 0.7718523781 | AR175: =IF(M175="simples",AL175,IF(AE175="NA","NA",IF(AH175="NA","NA",(AH175*AI175/(AE175*1000))))) -> NA | AS175: NA | AT175: =IF(M175="simples",AN175,IF(AB175="NA","NA",IF(AE175="NA","NA",(AE175*100/AB175)))) -> 40.26780784
A176: 8 | B176: 2009-05-21 | C176: CF | D176: 422 | E176: Annonaceae | F176: ANNO | G176: Duguetia | H176: DUG | I176: Duguetia_manausensis_Maas_&_Boon | J176: Duguetia manausensis | K176: Dugm | L176: DUGMAN | M176: simples | N176: NA | O176: 10.21 | P176: 14 | Q176: 11.14 | R176: 20 | S176: 10.78 | T176: 20 | U176: 0.22 | V176: 0.27 | W176: 0.28 | X176: 0.28 | Y176: 0.28 | Z176: NA | AA176: 36.645 | AB176: 36.645 | AC176: NA | AD176: 17.671 | AE176: 17.671 | AF176: 16.288 | AG176: 33410.2 | AH176: 33410.2 | AI176: 5 | AK176: coletado 2X (areas-amira) | AL176: 10.25607809 | AM176: 33457.6 | AN176: 48.22213126 | AO176: 0.266 | AP176: 0.8369707345 | AR176: =IF(M176="simples",AL176,IF(AE176="NA","NA",IF(AH176="NA","NA",(AH176*AI176/(AE176*1000))))) -> 10.25607809 | AS176: 33457.6 | AT176: =IF(M176="simples",AN176,IF(AB176="NA","NA",IF(AE176="NA","NA",(AE176*100/AB176)))) -> 48.22213126
A177: 8 | B177: 2009-05-21 | C177: CF | D177: 436 | E177: Annonaceae | F177: ANNO | G177: Duguetia | H177: DUG | I177: Duguetia_manausensis_Maas_&_Boon | J177: Duguetia manausensis | K177: Dugm | L177: DUGMAN | M177: simples | N177: NA | O177: 9.34 | P177: 15 | Q177: 9.59 | R177: 17 | S177: 9.74 | T177: 19 | U177: 0.19 | V177: 0.23 | W177: 0.25 | X177: 0.3 | Y177: 0.26 | Z177: NA | AA177: 17.181 | AB177: 17.181 | AC177: NA | AD177: 8.558 | AE177: 8.558 | AF177: 9.499 | AG177: 23235 | AH177: 23235 | AI177: 5 | AK177: coletado 2X (areas-amira) | AL177: 12.23023476 | AM177: 23156.4 | AN177: 49.81083755 | AO177: 0.246 | AP177: 0.8882323797 | AR177: =IF(M177="simples",AL177,IF(AE177="NA","NA",IF(AH177="NA","NA",(AH177*AI177/(AE177*1000))))) -> 12.23023476 | AS177: 23156.4 | AT177: =IF(M177="simples",AN177,IF(AB177="NA","NA",IF(AE177="NA","NA",(AE177*100/AB177)))) -> 49.81083755
A178: 0 | B178: 2008-03-13 | C178: CF | D178: 572 | E178: Annonaceae | F178: ANNO | G178: Duguetia | H178: DUG | I178: Duguetia_manausensis_Maas_&_Boon | J178: Duguetia manausensis | K178: Dugm | L178: DUGMAN | M178: simples | N178: NA | O178: 10.38 | P178: 18 | Q178: NA | R178: NA | S178: NA | T178: NA | U178: NA | V178: NA | W178: NA | X178: NA | Y178: NA | Z178: NA | AA178: NA | AB178: NA | AC178: NA | AD178: 11.043 | AE178: 11.043 | AF178: NA | AG178: 24446.8 | AH178: 24446.8 | AI178: 5 | AL178: =IF(AG178="NA","NA",IF(AD178="NA","NA",(AG178*AI178/(AD178*1000)))) -> 11.06891243 | AM178: 24396.2 | AN178: NA | AO178: NA | AP178: =(P178*0.5/O178) -> 0.8670520231 | AR178: =IF(M178="simples",AL178,IF(AE178="NA","NA",IF(AH178="NA","NA",(AH178*AI178/(AE178*1000))))) -> 11.06891243 | AS178: 24396.2 | AT178: =IF(M178="simples",AN178,IF(AB178="NA","NA",IF(AE178="NA","NA",(AE178*100/AB178)))) -> NA
A179: 0 | B179: 2008-03-13 | C179: CF | D179: 630 | E179: Annonaceae | F179: ANNO | G179: Duguetia | H179: DUG | I179: Duguetia_manausensis_Maas_&_Boon | J179: Duguetia manausensis | K179: Dugm | L179: DUGMAN | M179: simples | N179: NA | O179: 10.62 | P179: 14 | Q179: NA | R179: NA | S179: NA | T179: NA | U179: NA | V179: NA | W179: NA | X179: NA | Y179: NA | Z179: NA | AA179: NA | AB179: NA | AC179: NA | AD179: 14.258 | AE179: 14.258 | AF179: NA | AG179: 34798.8 | AH179: 34798.8 | AI179: 5 | AL179: 12.20325431 | AM179: 34808 | AN179: NA | AO179: NA | AP179: =(P179*0.5/O179) -> 0.65913371 | AR179: =IF(M179="simples",AL179,IF(AE179="NA","NA",IF(AH179="NA","NA",(AH179*AI179/(AE179*1000))))) -> 12.20325431 | AS179: 34808 | AT179: =IF(M179="simples",AN179,IF(AB179="NA","NA",IF(AE179="NA","NA",(AE179*100/AB179)))) -> NA
A180: 8 | B180: 2009-05-22 | C180: CF | D180: 4618 | E180: Annonaceae | F180: ANNO | G180: Duguetia | H180: DUG | I180: Duguetia_manausensis_Maas_&_Boon | J180: Duguetia manausensis | K180: Dugm | L180: DUGMAN | M180: simples | N180: NA | O180: 10.15 | P180: 17 | Q180: 10.71 | R180: 16 | S180: 10.4 | T180: 19 | U180: 0.29 | V180: 0.3 | W180: 0.25 | X180: 0.25 | Y180: 0.31 | Z180: NA | AA180: 22.447 | AB180: 22.447 | AC180: NA | AD180: 11.561 | AE180: 11.561 | AF180: NA | AG180: NA | AH180: NA | AI180: 5 | AL180: NA | AM180: NA | AN180: 51.50354168 | AO180: 0.28 | AP180: =((P180*0.5/O180)+(R180*0.5/Q180)+(T180*0.5/S180))/3 -> 0.832621805 | AR180: =IF(M180="simples",AL180,IF(AE180="NA","NA",IF(AH180="NA","NA",(AH180*AI180/(AE180*1000))))) -> NA | AS180: NA | AT180: =IF(M180="simples",AN180,IF(AB180="NA","NA",IF(AE180="NA","NA",(AE180*100/AB180)))) -> 51.50354168
A181: 8 | B181: 2009-05-24 | C181: CF | D181: 4796 | E181: Annonaceae | F181: ANNO | G181: Duguetia | H181: DUG | I181: Duguetia_manausensis_Maas_&_Boon | J181: Duguetia manausensis | K181: Dugm | L181: DUGMAN | M181: simples | N181: NA | O181: 10.25 | P181: 16 | Q181: 11.16 | R181: 14 | S181: 11.74 | T181: 16 | U181: 0.25 | V181: 0.27 | W181: 0.27 | X181: 0.21 | Y181: 0.22 | Z181: NA | AA181: 32.349 | AB181: 32.349 | AC181: NA | AD181: 15.26 | AE181: 15.26 | AF181: NA | AG181: NA | AH181: NA | AI181: 5 | AL181: NA | AM181: NA | AN181: 47.17301926 | AO181: 0.244 | AP181: =((P181*0.5/O181)+(R181*0.5/Q181)+(T181*0.5/S181))/3 -> 0.6963863178 | AR181: =IF(M181="simples",AL181,IF(AE181="NA","NA",IF(AH181="NA","NA",(AH181*AI181/(AE181*1000))))) -> NA | AS181: NA | AT181: =IF(M181="simples",AN181,IF(AB181="NA","NA",IF(AE181="NA","NA",(AE181*100/AB181)))) -> 47.17301926
A182: 8 | B182: 2009-05-24 | C182: CF | D182: 5666 | E182: Annonaceae | F182: ANNO | G182: Duguetia | H182: DUG | I182: Duguetia_manausensis_Maas_&_Boon | J182: Duguetia manausensis | K182: Dugm | L182: DUGMAN | M182: simples | N182: NA | O182: 12.11 | P182: 17 | Q182: 10.64 | R182: 11 | S182: 10.36 | T182: 15 | U182: 0.24 | V182: 0.26 | W182: 0.29 | X182: 0.3 | Y182: 0.28 | Z182: NA | AA182: 36.249 | AB182: 36.249 | AC182: NA | AD182: 18.629 | AE182: 18.629 | AF182: NA | AG182: NA | AH182: NA | AI182: 5 | AL182: NA | AM182: NA | AN182: 51.39176253 | AO182: 0.274 | AP182: =((P182*0.5/O182)+(R182*0.5/Q182)+(T182*0.5/S182))/3 -> 0.6475849247 | AR182: =IF(M182="simples",AL182,IF(AE182="NA","NA",IF(AH182="NA","NA",(AH182*AI182/(AE182*1000))))) -> NA | AS182: NA | AT182: =IF(M182="simples",AN182,IF(AB182="NA","NA",IF(AE182="NA","NA",(AE182*100/AB182)))) -> 51.39176253
A183: 0 | B183: 2007-10-30 | C183: 37 | D183: 240910 | E183: Annonaceae | F183: ANNO | G183: Duguetia | H183: DUG | I183: Duguetia_manausensis_Maas_&_Boon | J183: Duguetia manausensis | K183: Dugm | L183: DUGMAN | M183: simples | N183: não consta | O183: 14.77 | P183: 24 | Q183: NA | R183: NA | S183: NA | T183: NA | U183: NA | V183: NA | W183: NA | X183: NA | Y183: NA | Z183: NA | AA183: NA | AB183: NA | AC183: NA | AD183: 7.75 | AE183: 7.75 | AF183: NA | AG183: 20963.8 | AH183: 20963.8 | AI183: 5 | AL183: 13.52503226 | AM183: 20963.8 | AN183: NA | AO183: NA | AP183: =(P183*0.5/O183) -> 0.8124576845 | AR183: =IF(M183="simples",AL183,IF(AE183="NA","NA",IF(AH183="NA","NA",(AH183*AI183/(AE183*1000))))) -> 13.52503226 | AS183: 20963.8 | AT183: =IF(M183="simples",AN183,IF(AB183="NA","NA",IF(AE183="NA","NA",(AE183*100/AB183)))) -> NA
A184: 11 | B184: 2009-07-10 | C184: FL | D184: 4545 | E184: Fabaceae | F184: FABA | G184: Dussia | H184: DUS | I184: Dussia_discolor_(Benth.)_Amshoff | J184: Dussia discolor | K184: Dusd | L184: DUSDIS | M184: composta | N184: NA | O184: 11.19 | P184: 7 | Q184: 12.48 | R184: 9 | S184: 12.08 | T184: 7 | U184: 0.17 | V184: 0.19 | W184: 0.2 | X184: 0.21 | Y184: 0.22 | Z184: 29.017 | AA184: 117.113 | AB184: 88.096 | AC184: 9.129 | AD184: =2*17.693+9.129 -> 44.515 | AE184: 35.386 | AF184: NA | AG184: 110911.2 | AH184: 109253.2 | AI184: 5 | AL184: 12.45773335 | AM184: 8444.738462 | AN184: 38.01029775 | AO184: 0.198 | AP184: =((P184*0.5/O184)+(R184*0.5/Q184)+(T184*0.5/S184))/3 -> 0.3210304299 | AR184: =IF(M184="simples",AL184,IF(AE184="NA","NA",IF(AH184="NA","NA",(AH184*AI184/(AE184*1000))))) -> 15.4373481 | AS184: 54890.8 | AT184: =IF(M184="simples",AN184,IF(AB184="NA","NA",IF(AE184="NA","NA",(AE184*100/AB184)))) -> 40.1675445
A185: 8 | B185: 2009-05-20 | C185: CF | D185: 347 | E185: Sapotaceae | F185: SAPO | G185: Ecclinusa | H185: ECC | I185: Ecclinusa_guianensis_Eyma | J185: Ecclinusa guianensis | K185: Eccg | L185: ECCGUI | M185: simples | N185: NA | O185: 7.25 | P185: 11 | Q185: 7.85 | R185: 15 | S185: 8.39 | T185: 16 | U185: 0.21 | V185: 0.21 | W185: 0.18 | X185: 0.19 | Y185: 0.2 | Z185: NA | AA185: 6.812 | AB185: 6.812 | AC185: NA | AD185: 3.864 | AE185: 3.864 | AF185: 4.735 | AG185: 7816 | AH185: 7816 | AI185: 5 | AK185: coletado 2X (areas-amira) | AL185: 8.25343189 | AM185: 7772.2 | AN185: 56.72342924 | AO185: 0.198 | AP185: =((P185*0.5/O185)+(R185*0.5/Q185)+(T185*0.5/S185))/3 -> 0.8891835977 | AR185: =IF(M185="simples",AL185,IF(AE185="NA","NA",IF(AH185="NA","NA",(AH185*AI185/(AE185*1000))))) -> 8.25343189 | AS185: 7772.2 | AT185: =IF(M185="simples",AN185,IF(AB185="NA","NA",IF(AE185="NA","NA",(AE185*100/AB185)))) -> 56.72342924
A186: 0 | B186: 2008-01-31 | C186: 41 | D186: 536 | E186: Sapotaceae | F186: SAPO | G186: Ecclinusa | H186: ECC | I186: Ecclinusa_guianensis_Eyma | J186: Ecclinusa guianensis | K186: Eccg | L186: ECCGUI | M186: simples | N186: NA | O186: 11.21 | P186: 16 | Q186: NA | R186: NA | S186: NA | T186: NA | U186: NA | V186: NA | W186: NA | X186: NA | Y186: NA | Z186: NA | AA186: NA | AB186: NA | AC186: NA | AD186: 3.91 | AE186: 3.91 | AF186: NA | AG186: 7579.6 | AH186: 7579.6 | AI186: 5 | AL186: =IF(AG186="NA","NA",IF(AD186="NA","NA",(AG186*AI186/(AD186*1000)))) -> 9.69258312 | AM186: 7514.4 | AN186: NA | AO186: NA | AP186: =(P186*0.5/O186) -> 0.7136485281 | AR186: =IF(M186="simples",AL186,IF(AE186="NA","NA",IF(AH186="NA","NA",(AH186*AI186/(AE186*1000))))) -> 9.69258312 | AS186: 7514.4 | AT186: =IF(M186="simples",AN186,IF(AB186="NA","NA",IF(AE186="NA","NA",(AE186*100/AB186)))) -> NA
A187: 0 | B187: 2008-03-29 | C187: CF | D187: 2783 | E187: Sapotaceae | F187: SAPO | G187: Ecclinusa | H187: ECC | I187: Ecclinusa_guianensis_Eyma | J187: Ecclinusa guianensis | K187: Eccg | L187: ECCGUI | M187: simples | N187: NA | O187: 11.08 | P187: 19 | Q187: NA | R187: NA | S187: NA | T187: NA | U187: NA | V187: NA | W187: NA | X187: NA | Y187: NA | Z187: NA | AA187: NA | AB187: NA | AC187: NA | AD187: 6.1611 | AE187: 6.1611 | AF187: NA | AG187: 9777.8 | AH187: 9777.8 | AI187: 5 | AL187: =IF(AG187="NA","NA",IF(AD187="NA","NA",(AG187*AI187/(AD187*1000)))) -> 7.93510899 | AM187: 9705.2 | AN187: NA | AO187: NA | AP187: =(P187*0.5/O187) -> 0.857400722 | AR187: =IF(M187="simples",AL187,IF(AE187="NA","NA",IF(AH187="NA","NA",(AH187*AI187/(AE187*1000))))) -> 7.93510899 | AS187: 9705.2 | AT187: =IF(M187="simples",AN187,IF(AB187="NA","NA",IF(AE187="NA","NA",(AE187*100/AB187)))) -> NA
A188: 0 | B188: 2008-03-18 | C188: CF | D188: 2957 | E188: Sapotaceae | F188: SAPO | G188: Ecclinusa | H188: ECC | I188: Ecclinusa_guianensis_Eyma | J188: Ecclinusa guianensis | K188: Eccg | L188: ECCGUI | M188: simples | N188: NA | O188: 10.83 | P188: 12 | Q188: NA | R188: NA | S188: NA | T188: NA | U188: NA | V188: NA | W188: NA | X188: NA | Y188: NA | Z188: NA | AA188: NA | AB188: NA | AC188: NA | AD188: 1.499 | AE188: 1.499 | AF188: NA | AG188: 4406.4 | AH188: 4406.4 | AI188: 5 | AL188: =IF(AG188="NA","NA",IF(AD188="NA","NA",(AG188*AI188/(AD188*1000)))) -> 14.69779853 | AM188: 4384.2 | AN188: NA | AO188: NA | AP188: =(P188*0.5/O188) -> 0.5540166205 | AR188: =IF(M188="simples",AL188,IF(AE188="NA","NA",IF(AH188="NA","NA",(AH188*AI188/(AE188*1000))))) -> 14.69779853 | AS188: 4384.2 | AT188: =IF(M188="simples",AN188,IF(AB188="NA","NA",IF(AE188="NA","NA",(AE188*100/AB188)))) -> NA
A189: 0 | B189: 2008-03-27 | C189: CF | D189: 3199 | E189: Sapotaceae | F189: SAPO | G189: Ecclinusa | H189: ECC | I189: Ecclinusa_guianensis_Eyma | J189: Ecclinusa guianensis | K189: Eccg | L189: ECCGUI | M189: simples | N189: NA | O189: 10.61 | P189: 23 | Q189: NA | R189: NA | S189: NA | T189: NA | U189: NA | V189: NA | W189: NA | X189: NA | Y189: NA | Z189: NA | AA189: NA | AB189: NA | AC189: NA | AD189: 7.098 | AE189: 7.098 | AF189: NA | AG189: 11767.8 | AH189: 11767.8 | AI189: 5 | AL189: =IF(AG189="NA","NA",IF(AD189="NA","NA",(AG189*AI189/(AD189*1000)))) -> 8.289518174 | AM189: 11702 | AN189: NA | AO189: NA | AP189: =(P189*0.5/O189) -> 1.083883129 | AR189: =IF(M189="simples",AL189,IF(AE189="NA","NA",IF(AH189="NA","NA",(AH189*AI189/(AE189*1000))))) -> 8.289518174 | AS189: 11702 | AT189: =IF(M189="simples",AN189,IF(AB189="NA","NA",IF(AE189="NA","NA",(AE189*100/AB189)))) -> NA
A190: 9 | B190: 2009-06-02 | C190: CF | D190: 4860 | E190: Sapotaceae | F190: SAPO | G190: Ecclinusa | H190: ECC | I190: Ecclinusa_guianensis_Eyma | J190: Ecclinusa guianensis | K190: Eccg | L190: ECCGUI | M190: simples | N190: NA | O190: 8.42 | P190: 12 | Q190: 9.56 | R190: 13 | S190: 9.17 | T190: 15 | U190: 0.2 | V190: 0.23 | W190: 0.22 | X190: 0.24 | Y190: 0.25 | Z190: NA | AA190: 8.858 | AB190: 8.858 | AC190: NA | AD190: 4.928 | AE190: 4.928 | AF190: 4.165 | AG190: 6811.2 | AH190: 6811.2 | AI190: 5 | AK190: coletado 2X (areas-amira) | AL190: 8.176710684 | AM190: 6764.8 | AN190: 55.63332581 | AO190: 0.228 | AP190: =((P190*0.5/O190)+(R190*0.5/Q190)+(T190*0.5/S190))/3 -> 0.7367965991 | AR190: =IF(M190="simples",AL190,IF(AE190="NA","NA",IF(AH190="NA","NA",(AH190*AI190/(AE190*1000))))) -> 8.176710684 | AS190: 6764.8 | AT190: =IF(M190="simples",AN190,IF(AB190="NA","NA",IF(AE190="NA","NA",(AE190*100/AB190)))) -> 55.63332581
A191: 9 | B191: 2009-06-03 | C191: CF | D191: 4946 | E191: Sapotaceae | F191: SAPO | G191: Ecclinusa | H191: ECC | I191: Ecclinusa_guianensis_Eyma | J191: Ecclinusa guianensis | K191: Eccg | L191: ECCGUI | M191: simples | N191: NA | O191: 9.45 | P191: 12 | Q191: 8.48 | R191: 13 | S191: 9.26 | T191: 14 | U191: 0.18 | V191: 0.18 | W191: 0.18 | X191: 0.2 | Y191: 0.17 | Z191: NA | AA191: 7.712 | AB191: 7.712 | AC191: NA | AD191: 4.156 | AE191: 4.156 | AF191: 3.827 | AG191: 6798.2 | AH191: 6798.2 | AI191: 5 | AK191: coletado 2X (areas-amira) | AL191: 8.881891821 | AM191: 2900 | AN191: 53.89004149 | AO191: 0.182 | AP191: =((P191*0.5/O191)+(R191*0.5/Q191)+(T191*0.5/S191))/3 -> 0.7191231979 | AR191: =IF(M191="simples",AL191,IF(AE191="NA","NA",IF(AH191="NA","NA",(AH191*AI191/(AE191*1000))))) -> 8.881891821 | AS191: 2900 | AT191: =IF(M191="simples",AN191,IF(AB191="NA","NA",IF(AE191="NA","NA",(AE191*100/AB191)))) -> 53.89004149
A192: 4 | B192: 2009-03-25 | C192: 37 | D192: 106245 | E192: Sapotaceae | F192: SAPO | G192: Ecclinusa | H192: ECC | I192: Ecclinusa_guianensis_Eyma | J192: Ecclinusa guianensis | K192: Eccg | L192: ECCGUI | M192: simples | N192: OK | O192: 11.24 | P192: 16 | Q192: 11.18 | R192: 16 | S192: 10.42 | T192: 17 | U192: 0.14 | V192: 0.15 | W192: 0.16 | X192: 0.17 | Y192: 0.12 | Z192: NA | AA192: 4.524 | AB192: 4.524 | AC192: NA | AD192: NA | AE192: NA | AF192: NA | AG192: 4044 | AH192: 4044 | AI192: 5 | AL192: =IF(AG192="NA","NA",IF(AD192="NA","NA",(AG192*AI192/(AD192*1000)))) -> NA | AM192: 4003 | AN192: NA | AO192: 0.148 | AP192: =((P192*0.5/O192)+(R192*0.5/Q192)+(T192*0.5/S192))/3 -> 0.7476820807 | AR192: =IF(M192="simples",AL192,IF(AE192="NA","NA",IF(AH192="NA","NA",(AH192*AI192/(AE192*1000))))) -> NA | AS192: 4003 | AT192: =IF(M192="simples",AN192,IF(AB192="NA","NA",IF(AE192="NA","NA",(AE192*100/AB192)))) -> NA
A193: 3 | B193: 2009-03-09 | C193: 37 | D193: 121198 | E193: Sapotaceae | F193: SAPO | G193: Ecclinusa | H193: ECC | I193: Ecclinusa_guianensis_Eyma | J193: Ecclinusa guianensis | K193: Eccg | L193: ECCGUI | M193: simples | N193: OK | O193: 9.71 | P193: 14 | Q193: 8.82 | R193: 16 | S193: 9.85 | T193: 16 | U193: 0.28 | V193: 0.28 | W193: 0.3 | X193: 0.23 | Y193: 0.3 | Z193: NA | AA193: 4.821 | AB193: 4.821 | AC193: NA | AD193: 2.73 | AE193: 2.73 | AF193: NA | AG193: 4656 | AH193: 4656 | AI193: 5 | AL193: 8.527472527 | AM193: 4626.6 | AN193: 56.62725576 | AO193: NA | AP193: =((P193*0.5/O193)+(R193*0.5/Q193)+(T193*0.5/S193))/3 -> 0.8133728339 | AR193: =IF(M193="simples",AL193,IF(AE193="NA","NA",IF(AH193="NA","NA",(AH193*AI193/(AE193*1000))))) -> 8.527472527 | AS193: 4626.6 | AT193: =IF(M193="simples",AN193,IF(AB193="NA","NA",IF(AE193="NA","NA",(AE193*100/AB193)))) -> 56.62725576
A194: 2 | B194: 2009-02-13 | C194: 37 | D194: 155132 | E194: Sapotaceae | F194: SAPO | G194: Ecclinusa | H194: ECC | I194: Ecclinusa_guianensis_Eyma | J194: Ecclinusa guianensis | K194: Eccg | L194: ECCGUI | M194: simples | N194: OK | O194: 10.03 | P194: 15 | Q194: NA | R194: NA | S194: NA | T194: NA | U194: NA | V194: NA | W194: NA | X194: NA | Y194: NA | Z194: NA | AA194: NA | AB194: NA | AC194: NA | AD194: 3.258 | AE194: 3.258 | AF194: NA | AG194: 4705.8 | AH194: 4705.8 | AI194: 5 | AL194: 7.221915285 | AM194: 4657.8 | AN194: NA | AO194: =IF(U194="NA","NA",IF(V194="NA","NA",AVERAGE(U194:Y194))) -> NA | AP194: =(P194*0.5/O194) -> 0.7477567298 | AR194: =IF(M194="simples",AL194,IF(AE194="NA","NA",IF(AH194="NA","NA",(AH194*AI194/(AE194*1000))))) -> 7.221915285 | AS194: 4657.8 | AT194: =IF(M194="simples",AN194,IF(AB194="NA","NA",IF(AE194="NA","NA",(AE194*100/AB194)))) -> NA
A195: SD | B195: SD | C195: SD | D195: SD | E195: Sapotaceae | F195: SAPO | G195: Elaeoluma | H195: ELA | I195: Elaeoluma_nuda_(Baehni)_Aubrev. | J195: Elaeoluma nuda | K195: Elan | L195: ELANUD | M195: simples | N195: NA | O195: NA | P195: NA | Q195: NA | R195: NA | S195: NA | T195: NA | U195: NA | V195: NA | W195: NA | X195: NA | Y195: NA | Z195: NA | AA195: NA | AB195: NA | AC195: NA | AD195: NA | AE195: NA | AF195: NA | AG195: NA | AH195: NA | AI195: 5 | AL195: NA | AM195: NA | AN195: NA | AO195: =IF(U195="NA","NA",IF(V195="NA","NA",AVERAGE(U195:Y195))) -> NA | AP195: NA | AR195: =IF(M195="simples",AL195,IF(AE195="NA","NA",IF(AH195="NA","NA",(AH195*AI195/(AE195*1000))))) -> NA | AS195: NA | AT195: =IF(M195="simples",AN195,IF(AB195="NA","NA",IF(AE195="NA","NA",(AE195*100/AB195)))) -> NA
A196: 4 | B196: 2009-03-19 | C196: 37 | D196: 674 | E196: Humiriaceae | F196: HUMI | G196: Endopleura | H196: END | I196: Endopleura_uchi_(Huber)_Cuatrec | J196: Endopleura uchi | K196: Endu | L196: ENDUCH | M196: simples | N196: cf | O196: 10.69 | P196: 16 | Q196: 11.3 | R196: 16 | S196: 10.43 | T196: 15 | U196: 0.22 | V196: 0.22 | W196: 0.18 | X196: 0.17 | Y196: 0.19 | Z196: NA | AA196: 10.475 | AB196: 10.475 | AC196: NA | AD196: NA | AE196: NA | AF196: NA | AG196: 15006.31393 | AH196: 15006.4 | AI196: 5 | AK196: msf_remov | AL196: NA | AM196: 14921.67347 | AN196: =IF(AA196="NA","NA",IF(AD196="NA","NA",(AD196*100/AA196))) -> NA | AO196: =IF(U196="NA","NA",IF(V196="NA","NA",AVERAGE(U196:Y196))) -> 0.196 | AP196: =((P196*0.5/O196)+(R196*0.5/Q196)+(T196*0.5/S196))/3 -> 0.725135712 | AR196: =IF(M196="simples",AL196,IF(AE196="NA","NA",IF(AH196="NA","NA",(AH196*AI196/(AE196*1000))))) -> NA | AS196: 14921.8 | AT196: =IF(M196="simples",AN196,IF(AB196="NA","NA",IF(AE196="NA","NA",(AE196*100/AB196)))) -> NA
A197: 5 | B197: 2009-04-03 | C197: 37 | D197: 31401 | E197: Humiriaceae | F197: HUMI | G197: Endopleura | H197: END | I197: Endopleura_uchi_(Huber)_Cuatrec | J197: Endopleura uchi | K197: Endu | L197: ENDUCH | M197: simples | N197: cf | O197: 10.82 | P197: 18 | Q197: 9.79 | R197: 15 | S197: 10.32 | T197: 17 | U197: 0.18 | V197: 0.19 | W197: 0.2 | X197: 0.18 | Y197: 0.19 | Z197: NA | AA197: 9.73 | AB197: 9.73 | AC197: NA | AD197: 5.12 | AE197: 5.12 | AF197: NA | AG197: 9496.6 | AH197: 9496.6 | AI197: 5 | AL197: 9.274023438 | AM197: 9402.2 | AN197: 52.62076053 | AO197: =IF(U197="NA","NA",IF(V197="NA","NA",AVERAGE(U197:Y197))) -> 0.188 | AP197: =((P197*0.5/O197)+(R197*0.5/Q197)+(T197*0.5/S197))/3 -> 0.8071747439 | AR197: =IF(M197="simples",AL197,IF(AE197="NA","NA",IF(AH197="NA","NA",(AH197*AI197/(AE197*1000))))) -> 9.274023438 | AS197: 9402.2 | AT197: =IF(M197="simples",AN197,IF(AB197="NA","NA",IF(AE197="NA","NA",(AE197*100/AB197)))) -> 52.62076053
A198: 5 | B198: 2009-04-05 | C198: 37 | D198: 106235 | E198: Humiriaceae | F198: HUMI | G198: Endopleura | H198: END | I198: Endopleura_uchi_(Huber)_Cuatrec | J198: Endopleura uchi | K198: Endu | L198: ENDUCH | M198: simples | N198: cf | O198: 9.3 | P198: 17 | Q198: 10.05 | R198: 15 | S198: 10.88 | T198: 21 | U198: 0.2 | V198: 0.18 | W198: 0.18 | X198: 0.21 | Y198: 0.18 | Z198: NA | AA198: 8.656 | AB198: 8.656 | AC198: NA | AD198: 4.819 | AE198: 4.819 | AF198: NA | AG198: 7880 | AH198: 7880 | AI198: 5 | AL198: 8.175970118 | AM198: 7822.2 | AN198: 55.67236599 | AO198: =IF(U198="NA","NA",IF(V198="NA","NA",AVERAGE(U198:Y198))) -> 0.19 | AP198: =((P198*0.5/O198)+(R198*0.5/Q198)+(T198*0.5/S198))/3 -> 0.8751068936 | AR198: =IF(M198="simples",AL198,IF(AE198="NA","NA",IF(AH198="NA","NA",(AH198*AI198/(AE198*1000))))) -> 8.175970118 | AS198: 7822.2 | AT198: =IF(M198="simples",AN198,IF(AB198="NA","NA",IF(AE198="NA","NA",(AE198*100/AB198)))) -> 55.67236599
A199: 3 | B199: 2009-03-03 | C199: 37 | D199: 134305 | E199: Humiriaceae | F199: HUMI | G199: Endopleura | H199: END | I199: Endopleura_uchi_(Huber)_Cuatrec | J199: Endopleura uchi | K199: Endu | L199: ENDUCH | M199: simples | N199: cf | O199: NA | P199: NA | Q199: NA | R199: NA | S199: NA | T199: NA | U199: 0.32 | V199: 0.31 | W199: 0.37 | X199: 0.3 | Y199: 0.42 | Z199: NA | AA199: 9.89 | AB199: 9.89 | AC199: NA | AD199: 5.701 | AE199: 5.701 | AF199: NA | AG199: 8006 | AH199: 8006 | AI199: 5 | AK199: lt_remov | AL199: 7.021575162 | AM199: 7925.4 | AN199: 57.64408493 | AO199: NA | AP199: NA | AR199: =IF(M199="simples",AL199,IF(AE199="NA","NA",IF(AH199="NA","NA",(AH199*AI199/(AE199*1000))))) -> 7.021575162 | AS199: 7925.4 | AT199: =IF(M199="simples",AN199,IF(AB199="NA","NA",IF(AE199="NA","NA",(AE199*100/AB199)))) -> 57.64408493
A200: 0 | B200: 2008-02-22 | C200: 41 | D200: 941 | E200: Fabaceae | F200: FABA | G200: Eperua | H200: EPE | I200: Eperua_glabriflora_(Ducke)_Cowan | J200: Eperua glabriflora | K200: Epeg | L200: EPEGLA | M200: composta | N200: NA | O200: 11.03 | P200: 27 | Q200: NA | R200: NA | S200: NA | T200: NA | U200: NA | V200: NA | W200: NA | X200: NA | Y200: NA | Z200: NA | AA200: NA | AB200: =IF(AA200="NA","NA",IF(M200="simples",AA200,IF(Z200="NA","NA",AA200-Z200))) -> NA | AC200: 2.493 | AD200: 39.579 | AE200: =IF(AD200="NA","NA",IF(M200="simples",AD200,IF(AC200="NA","NA",AD200-AC200))) -> 37.086 | AF200: NA | AG200: NA | AH200: NA | AI200: 5 | AL200: NA | AM200: NA | AN200: NA | AO200: =IF(U200="NA","NA",IF(V200="NA","NA",AVERAGE(U200:Y200))) -> NA | AP200: =(P200*0.5/O200) -> 1.223934723 | AR200: =IF(M200="simples",AL200,IF(AE200="NA","NA",IF(AH200="NA","NA",(AH200*AI200/(AE200*1000))))) -> NA | AS200: NA | AT200: =IF(M200="simples",AN200,IF(AB200="NA","NA",IF(AE200="NA","NA",(AE200*100/AB200)))) -> NA
... 843 more rows

Sheet Legenda
A1: **** | B1: o que está em amarelo é o que vai no relatório final
A3: Trait
A5: Força tensil foliar (N/mm) | B5: L (mm) | C5: largura da amostra para medida de força tensil foliar
B6: F (x50g) | C6: força (esse valor deve ser divido por 10 para virar Newtons) em que a amostra estourou
A8: Espessura foliar (mm) | B8: Ef (mm) | C8: espessura do limbo foliar (evitando-se as nervuras)
A10: Densidade da madeira | B10: Vt (gH2O) | C10: volume do toco medido através de massa de água deslocada (cada g de água equivale a 1mL)
B11: mst (g) | C11: massa seca do toco
A12: Conteúdo seco da madeira | B12: mut (g) | C12: massa úmida do toco
A14: Conteúdo de massa seca foliar (mg/g) | B14: muf (g) | C14: massa úmida da folha
A15: Área foliar específica (g/mm2) | B15: msf (g) | C15: massa seca da folha
A17: Área foliar específica (g/mm2) | B17: Af (mm2) | C17: área das folhas + pecíolos/raques
A19: Área foliar (mm2) | B19: LS (mm2) | C19: área média das unidades foliares (folíolos)
A20: Área foliar 2 (mm2) | B20: LS2 (mm2) | C20: área total (soma das unidades) das folhas sem pecíolos/raques
A22: Área foliar específica (mm2/mg) | B22: SLA (mm2/mg) | C22: área foliar total (incluindo raques e pecíolos) pela massa seca total (incluindo raques e pecíolos)
A23: Área foliar específica 2 (mm2/mg) | B23: SLA2 (mm2/mg) | C23: área foliar total (excluindo raques e pecíolos) pela massa seca total (excluindo raques e pecíolos)
A25: Conteúdo de matéria seca (%) | B25: LDMC (%) | C25: massa fresca foliar (incluindo raques e pecíolos) pela massa seca (incluindo raques e pecíolos)
A26: Conteúdo de matéria seca 2 (%) | B26: LDMC2 (%) | C26: massa fresca foliar (excluindo raques e pecíolos) pela massa seca (excluindo raques e pecíolos)
A28: Espessura foliar (mm) | B28: LT (mm) | C28: espessura média da folha (evitando nervuras)
A30: Força tensil foliar (N/mm) | B30: LTS (N/mm) | C30: força necessária para resgar a amostra de folha pela largura da amostra

Sheet CROQUI
A1: Espécie | B1: %BM | C1: N | D1: SLA | E1: LS | F1: LDMC | G1: LTS | H1: LT | J1: SLA | M1: Espécies prioritárias | N1: Áreas faltantes
A2: Abarema_cochleata_(Willd.)_Barneby_&_J._W._Grimes | B2: 0.2354827857 | C2: 1 | D2: 1 | E2: 1 | F2: 1 | G2: 1 | H2: 1 | J2: =IF((C2-D2)>(6-D2),(6-D2),(C2-D2)) -> 0
A3: Aniba_burchellii/panurensis_s.l. | B3: 0.1625436269 | C3: 4 | D3: 4 | E3: 5 | F3: 3 | G3: 5 | H3: 4 | J3: 0
A4: Aniba_canelilla_(Kunth)_Mez | B4: 0.2588575743 | C4: 3 | D4: 4 | E4: 4 | F4: 3 | G4: 4 | H4: 3 | J4: -1 | M4: Caryocar_villosum_(Aubl.)_Pers.
A5: Anisophyllea_manausensis_Pires_&_W._A._Rodrigues | B5: 0.216873135 | C5: 6 | D5: 6 | E5: 6 | F5: 6 | G5: 6 | H5: 6 | J5: 0 | M5: Couepia_longipendula_Pilger
A6: Aspidosperma_carapanauba_Pichon | B6: 0.2556752574 | C6: 1 | D6: 1 | E6: 1 | F6: 1 | G6: 1 | H6: 1 | J6: 0 | M6: Dipteryx_odorata_(Aubl.)_Willd.
A7: Aspidosperma_marcgravianum_Woodson | B7: 0.4010453115 | C7: 0 | D7: 0 | E7: 0 | F7: 1 | G7: 1 | H7: 1 | J7: 0 | M7: Drypetes_variabilis_Uittien
A8: Aspidosperma_oblongum_A._DC. | B8: 0.6413906189 | C8: 3 | D8: 3 | E8: 3 | F8: 3 | G8: 3 | H8: 3 | J8: 0 | M8: Duguetia_manausensis_Maas_&_Boon
A9: Bocageopsis_multiflora_(Mart.)_R._E._Fries | B9: 0.3501836018 | C9: 6 | D9: 8 | E9: 9 | F9: 5 | G9: 10 | H9: 6 | J9: -2 | M9: Eschweilera_amazoniciformis_S._A._Mori
A10: Bocoa_viridiflora_(Ducke)_Cowan | B10: 0.2045494107 | C10: 6 | D10: 7 | E10: 7 | F10: 4 | G10: 11 | H10: 6 | J10: -1 | M10: Eschweilera_micrantha_(O._Berg)_Miers
A11: Brosimum_acutifolium_Huber | B11: 0.1929000361 | C11: 0 | D11: 0 | E11: 0 | F11: 0 | G11: 0 | H11: 0 | J11: 0 | M11: Goupia_glabra_Aubl.
A12: Brosimum_guianense_(Aubl.)_Huber | B12: 0.1720932459 | C12: 5 | D12: 5 | E12: 6 | F12: 4 | G12: 6 | H12: 5 | J12: 0 | M12: Inga_paraensis_Ducke
A13: Brosimum_parinarioides_Ducke | B13: 0.2610793932 | C13: 3 | D13: 3 | E13: 3 | F13: 3 | G13: 3 | H13: 3 | J13: 0 | M13: Lueheopsis_rosea_(Ducke)_Burret
A14: Brosimum_rubescens_Taub. | B14: 0.275922424 | C14: 7 | D14: 7 | E14: 7 | F14: 8 | G14: 13 | H14: 8 | J14: -1 | M14: Mezilaurus_duckei_van_der_Werff
A15: Buchenavia_grandis_Ducke | B15: 0.540280184 | C15: 3 | D15: 3 | E15: 3 | F15: 3 | G15: 3 | H15: 3 | J15: 0 | M15: Micropholis_casiquiarensis/mensalis
A16: Cariniana_decandra_Ducke | B16: 0.2707410703 | C16: 1 | D16: 1 | E16: 1 | F16: 1 | G16: 1 | H16: 1 | J16: 0 | M16: Oenocarpus_bacaba_Mart.
A17: Caryocar_pallidum_A._C._Smith | B17: 0.2874484013 | C17: 3 | D17: 3 | E17: 3 | F17: 3 | G17: 3 | H17: 3 | J17: 0 | M17: Parkia_decussata_Ducke
A18: Caryocar_villosum_(Aubl.)_Pers. | B18: 0.703198005 | C18: 3 | D18: 3 | E18: 3 | F18: 3 | G18: 4 | H18: 3 | J18: 0 | M18: Pausandra_macropetala_Ducke
A19: Casearia_javitensis_Kunth | B19: 0.1744838189 | C19: 6 | D19: 6 | E19: 7 | F19: 5 | G19: 11 | H19: 6 | J19: 0 | M19: Peltogyne_catingae_Ducke
A20: Chaunochiton_kappleri_(Engl.)_Ducke | B20: 0.1723040218 | C20: 1 | D20: 1 | E20: 1 | F20: 1 | G20: 1 | H20: 1 | J20: 0 | M20: Pouteria_filipes_Eyma
A21: Chrysophyllum_lucentifolium_Cronquist | B21: 0.1498617168 | C21: 1 | D21: 1 | E21: 1 | F21: 1 | G21: 1 | H21: 1 | J21: 0 | M21: Pouteria_fimbriata_Baehni
A22: Chrysophyllum_pomiferum_(Eyma)_T._D._Penn. | B22: 0.385421209 | C22: 3 | D22: 3 | E22: 3 | F22: 3 | G22: 3 | H22: 3 | J22: 0 | M22: Pouteria_hispida_Eyma
A23: Chrysophyllum_wilsonii_Penn. | B23: 0.5223668944 | C23: 3 | D23: 3 | E23: 3 | F23: 3 | G23: 3 | H23: 3 | J23: 0 | M23: Pouteria_manaosensis_(Aubrev._&_Pellegr.)_T._D._Penn.
A24: Clarisia_racemosa_Ruiz_&_Pav. | B24: 0.6260433266 | C24: 1 | D24: 1 | E24: 1 | F24: 1 | G24: 1 | H24: 1 | J24: 0 | M24: Pouteria_rostrata_(Huber)_Baehni
A25: Conceveiba_hostmannii_Benth. | B25: 0.4191393616 | C25: 6 | D25: 6 | E25: 6 | F25: 6 | G25: 9 | H25: 6 | J25: 0 | M25: Protium_guianense_(Aubl.)_Marchand
A26: Corythophora_alta_R._Knuth | B26: 1.210659169 | C26: 9 | D26: 11 | E26: 11 | F26: 9 | G26: 16 | H26: 9 | J26: -5 | M26: Rinorea_sp._1
A27: Corythophora_rimosa_W._A._Rodrigues | B27: 0.4039121316 | C27: 3 | D27: 4 | E27: 4 | F27: 3 | G27: 4 | H27: 3 | J27: -1 | M27: Sloanea_floribunda_Spruce_ex_Benth.
A28: Couepia_excelsa_Ducke | B28: 0.1699901552 | C28: 3 | D28: 3 | E28: 3 | F28: 3 | G28: 3 | H28: 3 | J28: 0 | M28: Swartzia_polyphylla_DC.
A29: Couepia_longipendula_Pilger | B29: 0.2264307581 | C29: 5 | D29: 5 | E29: 5 | F29: 4 | G29: 7 | H29: 5 | J29: 0 | M29: Theobroma_sylvestris_Aubl._ex_Mart.
A30: Couratari_stellata_A._C._Smith | B30: 0.2699853451 | C30: 3 | D30: 3 | E30: 3 | F30: 3 | G30: 3 | H30: 3 | J30: 0 | M30: Trymatococcus_amazonicus_Poepp._&_Endl.
A31: Cynometra_longicuspis_Ducke | B31: 0.4858086023 | C31: 6 | D31: 6 | E31: 6 | F31: 6 | G31: 11 | H31: 6 | J31: 0
A32: Dicorynia_guianensis_Amshoff | B32: 0.3754640453 | C32: 3 | D32: 3 | E32: 3 | F32: 3 | G32: 3 | H32: 3 | J32: 0
A33: Dinizia_excelsa_Ducke | B33: 1.464199986 | C33: 3 | D33: 3 | E33: 3 | F33: 3 | G33: 3 | H33: 3 | J33: 0
A34: Dipteryx_magnifica_(Ducke)_Ducke | B34: 0.5533036045 | C34: 3 | D34: 3 | E34: 3 | F34: 3 | G34: 3 | H34: 3 | J34: =IF((C34-D34)>(6-D34),(6-D34),(C34-D34)) -> 0
A35: Dipteryx_odorata_(Aubl.)_Willd. | B35: 0.3047006815 | C35: 4 | D35: 3 | E35: 3 | F35: 4 | G35: 4 | H35: 4 | J35: 1
A36: Drypetes_variabilis_Uittien | B36: 0.1932829013 | C36: 6 | D36: 4 | E36: 5 | F36: 5 | G36: 7 | H36: 6 | J36: 2
A37: Duckeodendron_cestroides_Kuhlm. | B37: 1.095920334 | C37: 4 | D37: 5 | E37: 5 | F37: 4 | G37: 5 | H37: 4 | J37: -1
A38: Duguetia_echinophora_R._E._Fries | B38: 0.1597755247 | C38: 6 | D38: 6 | E38: 6 | F38: 6 | G38: 6 | H38: 6 | J38: 0
A39: Duguetia_manausensis_Maas_&_Boon | B39: 0.2706236761 | C39: 6 | D39: 5 | E39: 5 | F39: 6 | G39: 12 | H39: 6 | J39: 1
A40: Dussia_discolor_(Benth.)_Amshoff | B40: 0.2606078153 | C40: 1 | D40: 1 | E40: 1 | F40: 1 | G40: 1 | H40: 1 | J40: 0
A41: Ecclinusa_guianensis_Eyma | B41: 0.9466702673 | C41: 6 | D41: 8 | E41: 9 | F41: 5 | G41: 14 | H41: 6 | J41: -2
A42: Elaeoluma_nuda_(Baehni)_Aubrev. | B42: 0.1562516973 | C42: 0 | D42: 0 | E42: 0 | F42: 0 | G42: 0 | H42: 0 | J42: 0
A43: Endopleura_uchi_(Huber)_Cuatrec | B43: 0.2985955154 | C43: 4 | D43: 4 | E43: 4 | F43: 4 | G43: 3 | H43: 4 | J43: 0
A44: Eperua_glabriflora_(Ducke)_Cowan | B44: 0.7305321802 | C44: 6 | D44: 6 | E44: 6 | F44: 6 | G44: 8 | H44: 6 | J44: 0
A45: Erisma_bicolor_Ducke | B45: 0.3172138373 | C45: 4 | D45: 4 | E45: 4 | F45: 4 | G45: 4 | H45: 4 | J45: 0
A46: Erisma_bracteosum_Ducke | B46: 0.2205310319 | C46: 0 | D46: 0 | E46: 0 | F46: 0 | G46: 0 | H46: 0 | J46: 0
A47: Eschweilera_amazoniciformis_S._A._Mori | B47: 0.5294405627 | C47: 6 | D47: 4 | E47: 5 | F47: 5 | G47: 6 | H47: 6 | J47: 2
A48: Eschweilera_atropetiolata_S._A._Mori | B48: 1.11360217 | C48: 7 | D48: 6 | E48: 7 | F48: 7 | G48: 14 | H48: 9 | J48: 0
A49: Eschweilera_collina_Eyma | B49: 0.2419127869 | C49: 6 | D49: 8 | E49: 8 | F49: 6 | G49: 9 | H49: 6 | J49: -2
A50: Eschweilera_coriacea_(DC.)_S._A._Mori | B50: 0.5500279058 | C50: 8 | D50: 6 | E50: 7 | F50: 6 | G50: 13 | H50: 7 | J50: 0
A51: Eschweilera_cyathiformis_S._A._Mori | B51: 1.170776487 | C51: 6 | D51: 9 | E51: 9 | F51: 6 | G51: 12 | H51: 6 | J51: -3
A52: Eschweilera_grandiflora_(Aubl.)_Sandw. | B52: 0.4012040605 | C52: 6 | D52: 11 | E52: 11 | F52: 6 | G52: 13 | H52: 6 | J52: -5
A53: Eschweilera_micrantha_(O._Berg)_Miers | B53: 0.9805925257 | C53: 6 | D53: 6 | E53: 6 | F53: 6 | G53: 11 | H53: 6 | J53: 0
A54: Eschweilera_pseudodecolorans_S._A._Mori | B54: 1.071999929 | C54: 6 | D54: 9 | E54: 10 | F54: 5 | G54: 11 | H54: 6 | J54: -3
A55: Eschweilera_rankiniae_S._A._Mori | B55: 0.350936659 | C55: 6 | D55: 6 | E55: 6 | F55: 6 | G55: 6 | H55: 6 | J55: 0
A56: Eschweilera_romeu-cardosoi_S._A._Mori | B56: 0.8150773578 | C56: 8 | D56: 9 | E56: 9 | F56: 8 | G56: 17 | H56: 8 | J56: -3
A57: Eschweilera_truncata_A._C._Smith | B57: 1.093058183 | C57: 9 | D57: 9 | E57: 10 | F57: 8 | G57: 14 | H57: 9 | J57: -3
A58: Eschweilera_wachenheimii_(Benoist)_Sandw. | B58: 1.961287104 | C58: 17 | D58: 8 | E58: 9 | F58: 15 | G58: 25 | H58: 17 | J58: -2
A59: Ficus_guianensis_Desv. | B59: 0.3751945722 | C59: 0 | D59: 0 | E59: 0 | F59: 0 | G59: 0 | H59: 0 | J59: 0
A60: Fusaea_longifolia_(Aubl.)_Saff. | B60: 0.1829141908 | C60: 6 | D60: 6 | E60: 6 | F60: 6 | G60: 11 | H60: 6 | J60: 0
A61: Geissospermum_argenteum_Woodson | B61: 4.265112512 | C61: 6 | D61: 6 | E61: 6 | F61: 5 | G61: 12 | H61: 6 | J61: 0
A62: Glycydendron_amazonicum_Ducke | B62: 0.379585516 | C62: 3 | D62: 3 | E62: 3 | F62: 3 | G62: 3 | H62: 3 | J62: 0
A63: Goupia_glabra_Aubl. | B63: 0.6075110493 | C63: 3 | D63: 2 | E63: 3 | F63: 2 | G63: 4 | H63: 3 | J63: 1
A64: Guarea_convergens_Penn. | B64: 0.1485403649 | C64: 4 | D64: 4 | E64: 4 | F64: 4 | G64: 4 | H64: 4 | J64: 0
A65: Guarea_sp._3 | B65: 0.1570988032 | C65: 1 | D65: 1 | E65: 1 | F65: 1 | G65: 1 | H65: 1 | J65: 0
A66: Heisteria_laxiflora_Engl. | B66: 0.181863646 | C66: 4 | D66: 4 | E66: 4 | F66: 4 | G66: 4 | H66: 4 | J66: =IF((C66-D66)>(6-D66),(6-D66),(C66-D66)) -> 0
A67: Helicostylis_tomentosa_(Poepp._&_Endl.)_Rusby | B67: 0.2006026973 | C67: 3 | D67: 6 | E67: 6 | F67: 3 | G67: 6 | H67: 3 | J67: -3
A68: Hevea_guianensis_Aubl. | B68: 0.6372684812 | C68: 6 | D68: 8 | E68: 8 | F68: 6 | G68: 11 | H68: 6 | J68: -2
A69: Inga_alba_(Sw.)_Willd. | B69: 0.2940831753 | C69: 1 | D69: 0 | E69: 0 | F69: 1 | G69: 1 | H69: 1 | J69: 1
A70: Inga_capitata_Desv. | B70: 0.2519720036 | C70: 6 | D70: 6 | E70: 6 | F70: 6 | G70: 6 | H70: 6 | J70: 0
A71: Inga_paraensis_Ducke | B71: 0.1875666035 | C71: 6 | D71: 4 | E71: 4 | F71: 6 | G71: 6 | H71: 6 | J71: 2
A72: Inga_rubiginosa_(L._C._Rich.)_DC. | B72: 0.1580593013 | C72: 3 | D72: 3 | E72: 3 | F72: 2 | G72: 3 | H72: 3 | J72: 0
A73: Inga_sp._7 | B73: 0.1493467831 | C73: 3 | D73: 3 | E73: 3 | F73: 3 | G73: 3 | H73: 3 | J73: 0
A74: Lecythis_chartacea_Berg | B74: 0.4447980012 | C74: 0 | D74: 1 | E74: 1 | F74: 0 | G74: 1 | H74: 0 | J74: -1
A75: Lecythis_prancei_S._A._Mori | B75: 1.861634092 | C75: 8 | D75: 7 | E75: 7 | F75: 8 | G75: 14 | H75: 8 | J75: -1
A76: Licania_caudata_Prance | B76: 0.5427761451 | C76: 3 | D76: 3 | E76: 3 | F76: 3 | G76: 3 | H76: 3 | J76: 0
A77: Licania_heteromorpha_Benth. | B77: 0.61582336 | C77: 6 | D77: 6 | E77: 7 | F77: 5 | G77: 7 | H77: 6 | J77: 0
A78: Licania_impressa_Prance | B78: 0.4070364184 | C78: 3 | D78: 3 | E78: 3 | F78: 3 | G78: 3 | H78: 3 | J78: 0
A79: Licania_sp._9 | B79: 0.1880962115 | C79: 1 | D79: 1 | E79: 1 | F79: 1 | G79: 1 | H79: 1 | J79: 0
A80: Licaria_cannella_(Meissn.)_Kosterm. | B80: 0.3888850053 | C80: 4 | D80: 5 | E80: 5 | F80: 4 | G80: 5 | H80: 4 | J80: -1
A81: Lueheopsis_rosea_(Ducke)_Burret | B81: 0.5035771502 | C81: 3 | D81: 3 | E81: 4 | F81: 2 | G81: 4 | H81: 3 | J81: 0
A82: Macrolobium_angustifolium_(Benth.)_Cowan | B82: 0.2007654483 | C82: 3 | D82: 3 | E82: 3 | F82: 3 | G82: 3 | H82: 3 | J82: 0
A83: Manilkara_bidentata_(A._DC.)_A._Chev. | B83: 0.7446675106 | C83: 6 | D83: 6 | E83: 6 | F83: 6 | G83: 11 | H83: 6 | J83: 0
A84: Manilkara_huberi_(Ducke)_A._Chev. | B84: 0.9778337617 | C84: 6 | D84: 6 | E84: 6 | F84: 6 | G84: 7 | H84: 6 | J84: 0
A85: Maquira_sclerophylla_(Ducke)_C._C._Berg | B85: 0.4721935416 | C85: 6 | D85: 6 | E85: 6 | F85: 5 | G85: 6 | H85: 6 | J85: 0
A86: Mezilaurus_duckei_van_der_Werff | B86: 0.4006731185 | C86: 6 | D86: 4 | E86: 4 | F86: 6 | G86: 7 | H86: 6 | J86: 2
A87: Mezilaurus_sp._nov._1 | B87: 0.1831743257 | C87: 6 | D87: 6 | E87: 6 | F87: 6 | G87: 6 | H87: 6 | J87: 0
A88: Miconia_burchellii_Triana | B88: 0.2341454255 | C88: 1 | D88: 3 | E88: 3 | F88: 1 | G88: 3 | H88: 1 | J88: -2
A89: Miconia_pyrifolia_Naudin | B89: 0.1681965584 | C89: 0 | D89: 0 | E89: 0 | F89: 0 | G89: 0 | H89: 0 | J89: 0
A90: Micropholis_casiquiarensis/mensalis | B90: 0.3480271501 | C90: 4 | D90: 3 | E90: 3 | F90: 4 | G90: 4 | H90: 4 | J90: 1
A91: Micropholis_cylindrocarpa_(Poepp.)_Pierre | B91: 0.1451219255 | C91: 3 | D91: 3 | E91: 3 | F91: 3 | G91: 3 | H91: 3 | J91: 0
A92: Micropholis_guyanensis_(A._DC.)_Pierre | B92: 0.2623133665 | C92: 7 | D92: 7 | E92: 8 | F92: 6 | G92: 15 | H92: 7 | J92: -1
A93: Micropholis_venulosa_(Mart._&_Eichler)_Pierre | B93: 1 | C93: 3 | D93: 4 | E93: 4 | F93: 3 | G93: 4 | H93: 3 | J93: -1
A94: Minquartia_guianensis_Aubl. | B94: 2.029230339 | C94: 8 | D94: 6 | E94: 6 | F94: 6 | G94: 17 | H94: 8 | J94: 0
A95: Moronobea_coccinea_Aubl. | B95: 0.3879938765 | C95: 0 | D95: 0 | E95: 0 | F95: 0 | G95: 0 | H95: 0 | J95: 0
A96: Mouriri_angulicosta/duckeana/duckeanoides | B96: 0.4868371357 | C96: 6 | D96: 7 | E96: 7 | F96: 6 | G96: 9 | H96: 6 | J96: -1
A97: Mouriri_nigra_(DC.)_Morley | B97: 0.2087922776 | C97: 0 | D97: 0 | E97: 0 | F97: 0 | G97: 0 | H97: 0 | J97: 0
A98: Myrcia_grandis_McVaugh | B98: 0.4050620612 | C98: 6 | D98: 8 | E98: 8 | F98: 6 | G98: 12 | H98: 6 | J98: =IF((C98-D98)>(6-D98),(6-D98),(C98-D98)) -> -2
A99: Naucleopsis_caloneura_(Huber)_Ducke | B99: 0.2384636649 | C99: 6 | D99: 6 | E99: 6 | F99: 6 | G99: 12 | H99: 6 | J99: 0
A100: Neea_aff._madeirana_Standl. | B100: 0.313217765 | C100: 4 | D100: 3 | E100: 3 | F100: 3 | G100: 3 | H100: 3 | J100: 1
A101: Neea_sp._2 | B101: 0.2173146973 | C101: 6 | D101: 6 | E101: 6 | F101: 6 | G101: 6 | H101: 6 | J101: 0
A102: Neea_sp._3 | B102: 0.2177549256 | C102: 4 | D102: 4 | E102: 4 | F102: 4 | G102: 4 | H102: 4 | J102: 0
A103: Ocotea_cinerea_van_der_Werff | B103: 0.6383296982 | C103: 3 | D103: 3 | E103: 3 | F103: 3 | G103: 3 | H103: 3 | J103: 0
A104: Ocotea_ligulata_van_der_Werff | B104: 0.1667531432 | C104: 0 | D104: 0 | E104: 0 | F104: 0 | G104: 0 | H104: 0 | J104: 0
A105: Ocotea_nigrescens_Vicentini | B105: 0.1842055272 | C105: 3 | D105: 3 | E105: 3 | F105: 3 | G105: 3 | H105: 3 | J105: 0
A106: Ocotea_percurrens_Vicentini | B106: 0.2257577424 | C106: 5 | D106: 6 | E106: 6 | F106: 5 | G106: 6 | H106: 5 | J106: -1
A107: Oenocarpus_bacaba_Mart. | B107: 0.2963523521 | C107: 4 | D107: 3 | E107: 3 | F107: 3 | G107: 4 | H107: 4 | J107: 1
A108: Onychopetalum_amazonicum_R._E._Fries | B108: 0.1540472207 | C108: 3 | D108: 3 | E108: 3 | F108: 3 | G108: 3 | H108: 3 | J108: 0
A109: Ormosia_paraensis_Ducke | B109: 0.1613670167 | C109: 0 | D109: 0 | E109: 0 | F109: 0 | G109: 0 | H109: 0 | J109: 0
A110: Osteophloeum_platyspermum_(A._DC.)_Warb. | B110: 0.3912195493 | C110: 4 | D110: 5 | E110: 5 | F110: 4 | G110: 5 | H110: 4 | J110: -1
A111: Paramachaerium_ormosioides_(Ducke)_Ducke | B111: 1.075363006 | C111: 6 | D111: 6 | E111: 6 | F111: 6 | G111: 8 | H111: 6 | J111: 0
A112: Parkia_decussata_Ducke | B112: 0.2553310789 | C112: 4 | D112: 4 | E112: 4 | F112: 4 | G112: 5 | H112: 4 | J112: 0
A113: Parkia_panurensis_H._C._Hopkins | B113: 0.322183748 | C113: 0 | D113: 0 | E113: 0 | F113: 0 | G113: 0 | H113: 0 | J113: 0
A114: Parkia_pendula_(Willd.)_Walp. | B114: 0.3349070128 | C114: 1 | D114: 2 | E114: 2 | F114: 1 | G114: 2 | H114: 1 | J114: -1
A115: Pausandra_macropetala_Ducke | B115: 0.3023888159 | C115: 6 | D115: 5 | E115: 5 | F115: 6 | G115: 13 | H115: 6 | J115: 1
A116: Peltogyne_catingae_Ducke | B116: 0.3845574277 | C116: 3 | D116: 3 | E116: 4 | F116: 2 | G116: 4 | H116: 3 | J116: 0
A117: Peltogyne_excelsa_Ducke | B117: 0.5734653936 | C117: 3 | D117: 3 | E117: 3 | F117: 3 | G117: 3 | H117: 3 | J117: 0
A118: Pouteria_aff._engleri_Eyma | B118: 0.3900476082 | C118: 6 | D118: 6 | E118: 6 | F118: 6 | G118: 6 | H118: 6 | J118: 0
A119: Pouteria_anomala_(Pires)_T._D._Penn. | B119: 0.1890907273 | C119: 5 | D119: 6 | E119: 7 | F119: 4 | G119: 9 | H119: 5 | J119: -1
A120: Pouteria_cladantha_Sandw. | B120: 0.3801438055 | C120: 6 | D120: 6 | E120: 7 | F120: 5 | G120: 10 | H120: 6 | J120: 0
A121: Pouteria_durlandii/peruviensis | B121: 0.5386219908 | C121: 4 | D121: 6 | E121: 6 | F121: 4 | G121: 8 | H121: 4 | J121: -2
A122: Pouteria_engleri_Eyma | B122: 0.5480508805 | C122: 6 | D122: 9 | E122: 9 | F122: 6 | G122: 11 | H122: 6 | J122: -3
A123: Pouteria_filipes_Eyma | B123: 0.2083173647 | C123: 3 | D123: 5 | E123: 5 | F123: 3 | G123: 6 | H123: 3 | J123: -2
A124: Pouteria_fimbriata_Baehni | B124: 0.1455601527 | C124: 3 | D124: 4 | E124: 4 | F124: 3 | G124: 5 | H124: 3 | J124: -1
A125: Pouteria_flavilatex_Penn. | B125: 0.1831456442 | C125: 1 | D125: 1 | E125: 1 | F125: 1 | G125: 1 | H125: 1 | J125: 0
A126: Pouteria_guianensis_Aubl. | B126: 0.2873923722 | C126: 5 | D126: 8 | E126: 8 | F126: 5 | G126: 10 | H126: 5 | J126: -3
A127: Pouteria_hispida_Eyma | B127: 0.4274416671 | C127: 6 | D127: 5 | E127: 6 | F127: 5 | G127: 7 | H127: 6 | J127: 1
A128: Pouteria_macrophylla_(Lam.)_Eyma | B128: 0.4342378582 | C128: 6 | D128: 6 | E128: 6 | F128: 6 | G128: 8 | H128: 6 | J128: 0
A129: Pouteria_manaosensis_(Aubrev._&_Pellegr.)_T._D._Penn. | B129: 0.4981836865 | C129: 3 | D129: 3 | E129: 4 | F129: 2 | G129: 4 | H129: 3 | J129: 0
A130: Pouteria_pentamera_Penn. | B130: 0.341705872 | C130: 3 | D130: 3 | E130: 3 | F130: 3 | G130: 3 | H130: 3 | J130: =IF((C130-D130)>(6-D130),(6-D130),(C130-D130)) -> 0
A131: Pouteria_reticulata_(Engl.)_Eyma | B131: 0.3934233588 | C131: 12 | D131: 11 | E131: 15 | F131: 8 | G131: 18 | H131: 12 | J131: -5
A132: Pouteria_retinervis_T._D._Penn. | B132: 0.4544843578 | C132: 6 | D132: 7 | E132: 7 | F132: 6 | G132: 11 | H132: 6 | J132: -1
A133: Pouteria_rostrata_(Huber)_Baehni | B133: 0.154856307 | C133: 3 | D133: 5 | E133: 5 | F133: 4 | G133: 6 | H133: 4 | J133: -2
A134: Pouteria_sp._10 | B134: 0.281812812 | C134: 0 | D134: 0 | E134: 0 | F134: 0 | G134: 0 | H134: 0 | J134: 0
A135: Pouteria_sp._9 | B135: 0.1517647037 | C135: 1 | D135: 3 | E135: 3 | F135: 1 | G135: 3 | H135: 1 | J135: -2
A136: Protium_altsonii_Sandwith | B136: 0.4523485836 | C136: 6 | D136: 6 | E136: 6 | F136: 6 | G136: 7 | H136: 6 | J136: 0
A137: Protium_apiculatum_Swart | B137: 0.4889475634 | C137: 6 | D137: 7 | E137: 9 | F137: 4 | G137: 10 | H137: 6 | J137: -1
A138: Protium_decandrum_(Aubl.)_Marchand | B138: 0.1456361922 | C138: 6 | D138: 6 | E138: 6 | F138: 5 | G138: 12 | H138: 6 | J138: 0
A139: Protium_guianense_(Aubl.)_Marchand | B139: 0.2271251182 | C139: 6 | D139: 5 | E139: 5 | F139: 6 | G139: 6 | H139: 6 | J139: 1
A140: Protium_hebetatum_Daly | B140: 0.5681359631 | C140: 8 | D140: 6 | E140: 6 | F140: 8 | G140: 19 | H140: 8 | J140: 0
A141: Protium_sagotianum_Marchand | B141: 0.1880501877 | C141: 3 | D141: 3 | E141: 3 | F141: 3 | G141: 3 | H141: 3 | J141: 0
A142: Protium_tenuifolium_(Engl.)_Engl. | B142: 0.1709886731 | C142: 3 | D142: 3 | E142: 3 | F142: 3 | G142: 3 | H142: 3 | J142: 0
A143: Pseudolmedia_laevis_(Ruiz_&_Pav.)_J._F._Macbr. | B143: 0.3638073336 | C143: 6 | D143: 6 | E143: 6 | F143: 6 | G143: 10 | H143: 6 | J143: 0
A144: Pseudopiptadenia_psilostachya_(DC.)_Lewis_&_Lima | B144: 0.3384755301 | C144: 3 | D144: 3 | E144: 3 | F144: 3 | G144: 3 | H144: 3 | J144: 0
A145: Pseudopiptadenia_suaveolens_(Miq.)_Grimes | B145: 0.4935893039 | C145: 1 | D145: 1 | E145: 1 | F145: 1 | G145: 1 | H145: 1 | J145: 0
A146: Qualea_labouriauana_Paula | B146: 1.332885888 | C146: 3 | D146: 3 | E146: 3 | F146: 3 | G146: 3 | H146: 3 | J146: 0
A147: Qualea_paraensis_Ducke | B147: 0.4260316025 | C147: 2 | D147: 3 | E147: 3 | F147: 2 | G147: 3 | H147: 2 | J147: -1
A148: Rhodostemonodaphne_grandis_(Mez)_Rohwer | B148: 0.1507254981 | C148: 3 | D148: 3 | E148: 3 | F148: 3 | G148: 3 | H148: 3 | J148: 0
A149: Rinorea_flavescens_(Aubl.)_Kuntze | B149: 0.3548473537 | C149: 6 | D149: 7 | E149: 7 | F149: 6 | G149: 13 | H149: 6 | J149: -1
A150: Rinorea_guianensis_Aubl. | B150: 0.2666142636 | C150: 7 | D150: 7 | E150: 7 | F150: 7 | G150: 13 | H150: 7 | J150: -1
A151: Rinorea_sp._1 | B151: 1.10867228 | C151: 6 | D151: 4 | E151: 4 | F151: 6 | G151: 12 | H151: 6 | J151: 2
A152: Sacoglottis_mattogrossensis_Malme | B152: 0.3951922762 | C152: 3 | D152: 4 | E152: 4 | F152: 3 | G152: 4 | H152: 3 | J152: -1
A153: Sclerolobium_melinonii_Harms | B153: 0.2214948651 | C153: 1 | D153: 1 | E153: 1 | F153: 1 | G153: 1 | H153: 1 | J153: 0
A154: Sclerolobium_sp._1 | B154: 0.1629911923 | C154: 1 | D154: 2 | E154: 2 | F154: 1 | G154: 2 | H154: 1 | J154: -1
A155: Sclerolobium_sp._5 | B155: 0.2673393062 | C155: 3 | D155: 3 | E155: 3 | F155: 3 | G155: 3 | H155: 3 | J155: 0
A156: Scleronema_micranthum_(Ducke)_Ducke | B156: 2.616321465 | C156: 6 | D156: 8 | E156: 8 | F156: 5 | G156: 12 | H156: 6 | J156: -2
A157: Sloanea_eichleri_K._Schum. | B157: 0.2068252576 | C157: 4 | D157: 4 | E157: 4 | F157: 4 | G157: 4 | H157: 4 | J157: 0
A158: Sloanea_floribunda_Spruce_ex_Benth. | B158: 0.1455254681 | C158: 6 | D158: 5 | E158: 6 | F158: 5 | G158: 6 | H158: 6 | J158: 1
A159: Swartzia_polyphylla_DC. | B159: 0.630945869 | C159: 5 | D159: 3 | E159: 5 | F159: 3 | G159: 5 | H159: 5 | J159: 2
A160: Swartzia_recurva_Poepp. | B160: 0.2526696987 | C160: 7 | D160: 6 | E160: 7 | F160: 4 | G160: 7 | H160: 6
A161: Swartzia_reticulata_Ducke | B161: 0.8037021254 | C161: 7 | D161: 6 | E161: 7 | F161: 6 | G161: 16 | H161: 7
A162: Swartzia_schomburgkii_Benth. | B162: 0.4339863944 | C162: 3 | D162: 3 | E162: 3 | F162: 3 | G162: 3 | H162: 3
A163: Tachigali_plumbea_Ducke | B163: 0.149873723 | C163: 3 | D163: 3 | E163: 3 | F163: 3 | G163: 3 | H163: 3
A164: Theobroma_sylvestris_Aubl._ex_Mart. | B164: 0.1485683794 | C164: 7 | D164: 5 | E164: 5 | F164: 6 | G164: 11 | H164: 7
A165: Trymatococcus_amazonicus_Poepp._&_Endl. | B165: 0.1698527506 | C165: 3 | D165: 5 | E165: 5 | F165: 3 | G165: 9 | H165: 3
A166: Unonopsis_duckei_R._E._Fries | B166: 0.2734671507 | C166: 6 | D166: 8 | E166: 9 | F166: 5 | G166: 11 | H166: 6
A167: Vantanea_parviflora_Lam. | B167: 0.8080090256 | C167: 6 | D167: 6 | E167: 6 | F167: 6 | G167: 8 | H167: 6
A168: Virola_calophylla_Warb. | B168: 0.2270504128 | C168: 6 | D168: 6 | E168: 6 | F168: 6 | G168: 8 | H168: 6
A169: Vochysia_obidensis_(Huber)_Ducke | B169: 0.6163943227 | C169: 3 | D169: 3 | E169: 3 | F169: 3 | G169: 3 | H169: 3
A170: Vochysia_rufescens_W._A._Rodr. | B170: 0.1923457486 | C170: 0 | D170: 0 | E170: 0 | F170: 0 | G170: 0 | H170: 0
A171: Zygia_racemosa_(Ducke)_Barn._&_Grimes | B171: 1.008823166 | C171: 6 | D171: 8 | E171: 8 | F171: 6 | G171: 8 | H171: 6

Sheet excluídas
A1: SAÍDA | B1: DATA | C1: LOCAL | D1: PLACA | E1: FAMÍLIA | F1: CÓDIGO | G1: GÊNERO | H1: CÓDIGO | I1: ESPÉCIE | J1: CÓDIGO | K1: ID (Beto) | L1: L (mm) | M1: F (x50g) | N1: L (mm) | O1: F (x50g) | P1: L (mm) | Q1: F (x50g) | R1: Ef (mm) | S1: Ef (mm) | T1: Ef (mm) | U1: Ef (mm) | V1: Ef (mm) | W1: muf (g) | X1: msf (g) | Y1: Af média(mm2) | Z1: Conferido | AA1: OBS | AB1: Af-LS | AC1: SLA (mm2/g) | AD1: LS (mm2) | AE1: LDMC (mg/g) | AF1: LT (mm) | AG1: LTS (N/mm)
A2: 6 | B2: 2009-04-22 | C2: 37 | D2: 4452 | E2: Fabaceae | F2: FABA | G2: Parkia | H2: PAS | I2: Parkia_decussata_Ducke | J2: PASDEC | K2: ERRO | L2: 3.03 | M2: 4 | N2: 3.86 | O2: 7 | P2: 3.61 | Q2: 7 | R2: 0.18 | S2: 0.2 | T2: 0.2 | U2: 0.2 | V2: 0.19 | W2: 161.074 | X2: =2*34.682+24.531 -> 93.895 | Y2: 179092.043 | Z2: cf_imagem | AA2: erro nas áreas | AB2: =Y2-AD2 -> 6859.062443 | AC2: =IF(Y2=0,"NA",IF(Y2="NA","NA",(Y2*5/X2))) -> 9536.825339 | AD2: 172232.9806 | AE2: =X2*1000/W2 -> 582.9308268 | AF2: =AVERAGE(R2:V2) -> 0.194 | AG2: =((M2*0.5/L2)+(O2*0.5/N2)+(Q2*0.5/P2))/3 -> 0.8454436146
A3: 6 | B3: 2009-04-22 | C3: 37 | D3: 4477 | E3: Sapotaceae | F3: SAPO | G3: Micropholis | H3: MIH | I3: Micropholis_guyanensis_(A._DC.)_Pierre | J3: MIHGUI | K3: ERRO | L3: 11.19 | M3: 17 | N3: 10.48 | O3: 13 | P3: 10.34 | Q3: 14 | R3: 0.31 | S3: 0.31 | T3: 0.28 | U3: 0.28 | V3: 0.33 | W3: 12.427 | X3: 6.718 | Y3: 8765.083157 | AB3: =Y3-AD3 -> -6.807574996 | AC3: 6523.580796 | AD3: 8771.890732 | AE3: 540.597087 | AF3: 0.302 | AG3: 0.6856061304
A4: 5 | B4: 2009-04-02 | C4: 37 | D4: 7113 | E4: Lecythidaceae | F4: LECY | G4: Eschweilera | H4: ESC | I4: Eschweilera_wachenheimii_(Benoist)_Sandw. | J4: ESCWAC | K4: ERRO | L4: 12.1 | M4: 16 | N4: 10.17 | O4: 15 | P4: 11.38 | Q4: 16 | R4: 0.16 | S4: 0.16 | T4: 0.18 | U4: 0.18 | V4: 0.17 | W4: 3.758 | X4: 1.818 | Y4: NA | AB4: =Y4-AD4 ->  | AC4: NA | AD4: NA | AE4: 483.7679617 | AF4: 0.17 | AG4: 0.7005359498
A5: 5 | B5: 2009-04-03 | C5: 37 | D5: 30624 | E5: Sapotaceae | F5: SAPO | G5: Micropholis | H5: MIH | I5: Micropholis_guyanensis_(A._DC.)_Pierre | J5: MIHGUI | K5: ERRO | L5: 10.33 | M5: 16 | N5: 10.38 | O5: 16 | P5: 10.88 | Q5: 13 | R5: 0.32 | S5: 0.33 | T5: 0.34 | U5: 0.32 | V5: 0.29 | W5: 8.17 | X5: 4.637 | Y5: 6000.228457 | AB5: =Y5-#REF! ->  | AC5: 6469.946578 | AD5: 6121.425708 | AE5: 567.5642595 | AF5: 0.32 | AG5: 0.7141942496
A6: 4 | B6: 2009-03-21 | C6: 37 | D6: 92669 | E6: Sapotaceae | F6: SAPO | G6: Pouteria | H6: POU | I6: Pouteria_reticulata_(Engl.)_Eyma | J6: POURET | K6: ERRO | L6: 10.77 | M6: 14 | N6: 11.02 | O6: 13 | P6: 10.59 | Q6: 16 | R6: 0.24 | S6: 0.26 | T6: 0.23 | U6: 0.21 | V6: 0.17 | W6: 4.584 | X6: 2.347 | Y6: 3308.00362 | AB6: =Y6-AD6 -> 73.84508128 | AC6: 7047.30213 | AD6: 3234.158539 | AE6: 511.9982548 | AF6: 0.222 | AG6: 0.6650732953
A7: 5 | B7: 2009-04-06 | C7: 37 | D7: 95913 | E7: Fabaceae | F7: FABA | G7: Pseudopiptadenia | H7: PSP | I7: Pseudopiptadenia_psilostachya_(DC.)_Lewis_&_Lima | J7: PSPPSI | K7: ERRO | L7: 2.76 | M7: 6 | N7: 2.16 | O7: 6 | P7: 2.38 | Q7: 4 | R7: 0.13 | S7: 0.13 | T7: 0.13 | U7: 0.13 | V7: 0.13 | W7: 51.975 | X7: =2*10.962+4.913 -> 26.837 | Y7: 59672.45933 | AB7: 1149.813575 | AC7: 11117.57263 | AD7: 58522.64575 | AE7: 516.3443963 | AF7: 0.13 | AG7: 1.105393848
A8: 4 | B8: 2009-03-19 | C8: 37 | D8: 100373 | E8: Burseraceae | F8: BURS | G8: Protium | H8: PRO | I8: Protium_guianense_(Aubl.)_Marchand | J8: PROGUI | K8: ERRO | L8: 9.99 | M8: 12 | N8: 9.22 | O8: 11 | P8: 10.2 | Q8: 13 | R8: 0.12 | S8: 0.17 | T8: 0.15 | U8: 0.22 | V8: 0.17 | W8: 12.734 | X8: =1.337+2*2.837 -> 7.011 | Y8: 14503.59752 | AB8: 358.8252723 | AC8: 10343.45851 | AD8: 14144.77225 | AE8: 550.5732684 | AF8: 0.166 | AG8: 0.6114615956
A9: 3 | B9: 2009-03-09 | C9: 37 | D9: 100757 | E9: Lecythidaceae | F9: LECY | G9: Eschweilera | H9: ESC | I9: Eschweilera_romeu-cardosoi_S._A._Mori | J9: ESCROM | K9: ERRO | L9: 9.89 | M9: 19 | N9: 10.94 | O9: 19 | P9: 10.85 | Q9: 19 | R9: 0.28 | S9: 0.34 | T9: 0.32 | U9: 0.32 | V9: 0.34 | W9: 5.541 | X9: 2.436 | Y9: 4267.747813 | AB9: 21.14241662 | AC9: 8759.745101 | AD9: 4246.605396 | AE9: 439.6318354 | AF9: 0.32 | AG9: 0.9015050696
A10: 3 | B10: 2009-03-10 | C10: 37 | D10: 101591 | E10: Lauraceae | F10: LAUR | G10: Aniba | H10: ANI | I10: Aniba_burchellii/panurensis_s.l. | J10: ANIBUR | K10: ERRO | L10: 10.4 | M10: 15 | N10: 9.8 | O10: 15 | P10: 9.23 | Q10: 14 | R10: 0.19 | S10: 0.23 | T10: 0.21 | U10: 0.2 | V10: 0.19 | W10: 1.087 | X10: NA | Y10: 1127.367454 | AB10: 17.8271158 | AC10: NA | AD10: 1109.540339 | AE10: NA | AF10: 0.204 | AG10: 0.7482855005
A11: 4 | B11: 2009-03-21 | C11: 37 | D11: 102475 | E11: Sapotaceae | F11: SAPO | G11: Pouteria | H11: POU | I11: Pouteria_reticulata_(Engl.)_Eyma | J11: POURET | K11: ERRO | L11: 9.85 | M11: 18 | N11: 11.38 | O11: 24 | P11: 10.19 | Q11: 22 | R11: 0.26 | S11: 0.28 | T11: 0.24 | U11: 0.25 | V11: 0.24 | W11: 7.524 | X11: 3.837 | Y11: 5488.114765 | AB11: 47.45245517 | AC11: =IF(Y11=0,"NA",IF(Y11="NA","NA",(Y11*5/X11))) -> 7151.56993 | AD11: 5440.662309 | AE11: =X11*1000/W11 -> 509.9681021 | AF11: 0.254 | AG11: 1.015892275
A12: 4 | B12: 2009-03-23 | C12: 37 | D12: 103043 | E12: Sapotaceae | F12: SAPO | G12: Pouteria | H12: POU | I12: Pouteria_reticulata_(Engl.)_Eyma | J12: POURET | K12: ERRO | L12: 11.68 | M12: 10 | N12: 10.09 | O12: 10 | P12: 11.95 | Q12: 10 | R12: 0.16 | S12: 0.17 | T12: 0.16 | U12: 0.18 | V12: 0.16 | W12: 4.785 | X12: NA | Y12: 4964.72787 | AB12: 50.25453327 | AC12: NA | AD12: 4914.473337 | AE12: NA | AF12: 0.166 | AG12: 0.4473441241
A13: 5 | B13: 2009-04-05 | C13: 37 | D13: 105873 | E13: Moraceae | F13: MORA | G13: Brosimum | H13: BRO | I13: Brosimum_rubescens_Taub. | J13: BRORUB | K13: ERRO | L13: 10.4 | M13: 22 | N13: 11.01 | O13: 27 | P13: 9.6 | Q13: 21 | R13: 0.22 | S13: 0.22 | T13: 0.26 | U13: 0.22 | V13: 0.24 | W13: 2.859 | X13: 1.67 | Y13: 2027.217965 | AB13: =Y13-#REF! ->  | AC13: =IF(Y13=0,"NA",IF(Y13="NA","NA",(Y13*5/X13))) -> 6069.514867 | AD13: 2011.066197 | AE13: =X13*1000/W13 -> 584.1203218 | AF13: 0.232 | AG13: 1.125866782
A14: 4 | B14: 2009-03-25 | C14: 37 | D14: 106087 | E14: Burseraceae | F14: BURS | G14: Protium | H14: PRO | I14: Protium_apiculatum_Swart | J14: PROAPI | K14: ERRO | L14: 11.47 | M14: 13 | N14: 10.4 | O14: 14 | P14: 10.8 | Q14: 12 | R14: 0.24 | S14: 0.21 | T14: 0.24 | U14: 0.22 | V14: 0.22 | W14: 71.777 | X14: NA | Y14: 56461.09496 | AB14: =Y14-AD14 -> 1217.942417 | AC14: NA | AD14: 55243.15254 | AE14: NA | AF14: 0.226 | AG14: 0.5984427355
A15: 4 | B15: 2009-03-22 | C15: 37 | D15: 114956 | E15: Lecythidaceae | F15: LECY | G15: Eschweilera | H15: ESC | I15: Eschweilera_romeu-cardosoi_S._A._Mori | J15: ESCROM | K15: ERRO | L15: 10.58 | M15: 24 | N15: 9.77 | O15: 24 | P15: 11.31 | Q15: 28 | R15: 0.32 | S15: 0.32 | T15: 0.33 | U15: 0.33 | V15: 0.33 | W15: 5.799 | X15: 2.765 | Y15: 3542.221954 | AB15: 26.22155187 | AC15: =IF(Y15=0,"NA",IF(Y15="NA","NA",(Y15*5/X15))) -> 6405.464655 | AD15: 3516.000402 | AE15: =X15*1000/W15 -> 476.8063459 | AF15: 0.326 | AG15: 1.200102621
A16: 3 | B16: 2009-03-06 | C16: 37 | D16: 121738 | E16: Lecythidaceae | F16: LECY | G16: Eschweilera | H16: ESC | I16: Eschweilera_romeu-cardosoi_S._A._Mori | J16: ESCROM | K16: ERRO | L16: 10.72 | M16: 29 | N16: 10.78 | O16: 20 | P16: 10.21 | Q16: 20 | R16: 0.34 | S16: 0.43 | T16: 0.39 | U16: 0.49 | V16: 0.55 | W16: 5.7 | X16: 2.904 | Y16: 5053.633384 | AB16: -80.12173622 | AC16: 8701.159407 | AD16: 5133.75512 | AE16: =X16*1000/W16 -> 509.4736842 | AF16: 0.44 | AG16: 1.086562552
A17: 3 | B17: 2009-03-06 | C17: 37 | D17: 121829 | E17: Sapotaceae | F17: SAPO | G17: Ecclinusa | H17: ECC | I17: Ecclinusa_guianensis_Eyma | J17: ECCGUI | K17: ERRO | L17: 13.83 | M17: 21 | N17: 9.8 | O17: 14 | P17: 14.15 | Q17: 22 | R17: 0.37 | S17: 0.28 | T17: 0.4 | U17: 0.26 | V17: 0.46 | W17: 3.246 | X17: 1.878 | Y17: 2876.10605 | AB17: 33.36537624 | AC17: 7657.36435 | AD17: 2842.740674 | AE17: =X17*1000/W17 -> 578.5582255 | AF17: 0.354 | AG17: 0.7502966541
A18: 3 | B18: 2009-03-07 | C18: 37 | D18: 130209 | E18: Lauraceae | F18: LAUR | G18: Ocotea | H18: OCO | I18: Ocotea_percurrens_Vicentini | J18: OCOPER | K18: ERRO | L18: 12.47 | M18: 21 | N18: 13.3 | O18: 22 | P18: 12.18 | Q18: 19 | R18: 0.56 | S18: 0.62 | T18: 0.42 | U18: 0.55 | V18: 0.48 | W18: 3.313 | X18: 1.584 | Y18: 3531.544562 | AB18: 29.46016424 | AC18: 11147.55228 | AD18: 3502.084398 | AE18: =X18*1000/W18 -> 478.1165107 | AF18: 0.526 | AG18: 0.8163518928
A19: 3 | B19: 2009-03-08 | C19: 37 | D19: 130663 | E19: Lecythidaceae | F19: LECY | G19: Eschweilera | H19: ESC | I19: Eschweilera_pseudodecolorans_S._A._Mori | J19: ESCPSE | K19: ERRO | L19: 10.65 | M19: 20 | N19: 12.64 | O19: 25 | P19: 11.48 | Q19: 22 | R19: 0.79 | S19: 0.8 | T19: 0.58 | U19: 0.42 | V19: 0.8 | W19: 18.969 | X19: 9.161 | Y19: 15035.31986 | AB19: 72.77734205 | AC19: 8206.156456 | AD19: 14962.54252 | AE19: =X19*1000/W19 -> 482.945859 | AF19: 0.678 | AG19: 0.9620264467
A20: 2 | B20: 2009-02-17 | C20: 37 | D20: 135321 | E20: Moraceae | F20: MORA | G20: Pseudolmedia | H20: PSE | I20: Pseudolmedia_laevis_(Ruiz_&_Pav.)_J._F._Macbr. | J20: PSELAE | K20: ERRO | L20: 9.91 | M20: 13 | N20: NA | O20: NA | P20: NA | Q20: NA | R20: NA | S20: NA | T20: NA | U20: NA | V20: NA | W20: NA | X20: 4.122 | Y20: 8490.350713 | AB20: 1.691780492 | AC20: 10298.82425 | AD20: 8488.658933 | AE20: NA | AF20: NA | AG20: =(M20*0.5/L20)/3 -> 0.2186343761
A21: 2 | B21: 2009-02-12 | C21: 37 | D21: 155294 | E21: Burseraceae | F21: BURS | G21: Protium | H21: PRO | I21: Protium_apiculatum_Swart | J21: PROAPI | K21: ERRO | L21: 12.13 | M21: 20 | N21: NA | O21: NA | P21: NA | Q21: NA | R21: NA | S21: NA | T21: NA | U21: NA | V21: NA | W21: NA | X21: 41.085 | Y21: 54973.39319 | AB21: 617.1756707 | AC21: 6690.202409 | AD21: 54356.21752 | AE21: NA | AF21: NA | AG21: =(M21*0.5/L21)/3 -> 0.2748007694
A22: 2 | B22: 2009-02-14 | C22: 37 | D22: 155939 | E22: Fabaceae | F22: FABA | G22: Sclerolobium | H22: SCL | I22: Sclerolobium_sp._1 | J22: SCLSP1 | K22: ERRO | L22: 8.78 | M22: 28 | N22: NA | O22: NA | P22: NA | Q22: NA | R22: NA | S22: NA | T22: NA | U22: NA | V22: NA | W22: NA | X22: 24.957 | Y22: 63510.57439 | Z22: cf_imagem | AA22: 2 FOLHAS! | AB22: -1625.008215 | AC22: =IF(Y22=0,"NA",IF(Y22="NA","NA",(Y22*2/X22))) -> 5089.600064 | AD22: 65135.58261 | AE22: NA | AF22: NA | AG22: =(M22*0.5/L22)/3 -> 0.5315110099

Sheet faltantes
A1: saída | B1: data | C1: placa | D1: sp | E1: baixa | F1: obs
A2: 4 | B2: ??? | C2: 103112 | D2: POUGUI | E2: ??? | F2: Problema: coletada duas vezes? Duas ids diferentes!!! CF
A3: 3 | B3: 2009-03-10 | C3: 101498 | D3: POUREV | E3: NÃO | F3: O material coletado definitivamente não é de uma pouteria; ou o nº está errado ou a ID.
A4: 4 | B4: 2009-03-22 | C4: 114930 | D4: MOUANG | E4: NÃO | F4: Amostra descartada
A5: 1 | B5: 2009-01-27 | C5: 154268 | D5: NAUCAL | E5: OK
A6: 1 | B6: 2009-01-27 | C6: 154283 | D6: POUDUR | E6: OK
A7: 2 | B7: 2009-02-12 | C7: 135141 | D7: PSELAE | E7: OK
A8: 2 | B8: 2009-02-14 | C8: 156128 | D8: OCOCIN | E8: OK
A9: 2 | B9: 2009-02-14 | C9: 156275 | D9: LICHET | E9: OK
A10: 2 | B10: 2009-02-15 | C10: 145874 | D10: INGPAR | E10: OK
A11: 2 | B11: 2009-02-17 | C11: 134754 | D11: LICHET | E11: OK
A12: 3 | B12: 2009-03-08 | C12: 111095 | D12: MIHGUY | E12: OK
A13: 4 | B13: 2009-03-20 | C13: 101941 | D13: PARORM | E13: OK
A14: 4 | B14: 2009-03-21 | C14: 102471 | D14: INGPAR | E14: OK
A15: 4 | B15: 2009-03-21 | C15: 113620 | D15: LECPRA | E15: OK
A16: 4 | B16: 2009-03-22 | C16: 114721 | D16: DUGECH | E16: OK
A17: 4 | B17: 2009-03-22 | C17: 114879 | D17: POUFLA | E17: OK
A18: 4 | B18: 2009-03-22 | C18: 103774 | D18: TACPLU | E18: OK
A19: 4 | B19: 2009-03-22 | C19: 104358 | D19: PROTEN | E19: OK
A20: 4 | B20: 2009-03-23 | C20: 106043 | D20: SACMAT | E20: OK
A21: 4 | B21: 2009-03-23 | C21: 115832 | D21: PARORM | E21: OK
A22: 6 | B22: 2009-04-17 | C22: 81041 | D22: ESCWAC | E22: OK
A23: 6 | B23: 2009-04-17 | C23: 81258 | D23: DICGUY | E23: OK
A24: 6 | B24: 2009-04-17 | C24: 81313 | D24: SWAREC | E24: OK
A25: 6 | B25: 2009-04-18 | C25: 90882 | D25: OCONIG | E25: OK
A26: 6 | B26: 2009-04-19 | C26: 7498 | D26: ONYAMA | E26: OK
A27: 6 | B27: 2009-04-20 | C27: 90433 | D27: ONYAMA | E27: OK
A28: 6 | B28: 2009-04-21 | C28: 80749 | D28: SCLMEL | E28: OK
A29: 6 | B29: 2009-04-21 | C29: 82234 | D29: NAUCAL | E29: OK
A30: 6 | B30: 2009-04-21 | C30: 82246 | D30: POUGUI | E30: OK
A31: 6 | B31: 2009-04-21 | C31: 82259 | D31: POUENG | E31: OK

Sheet médias
B3: Valores
A4: Rótulos de Linha | B4: LS (mm)' | C4: n' | D4: SLA (mm2/mg)' | E4: n | F4: LDMC (%)' | G4: n'' | H4: LT (mm)' | I4: n''' | J4: LTS (N/mm)' | K4: n'''' | L4: SLA2 (mm2/mg)' | M4: n''''' | N4: LS2 (mm)' | O4: n'''''' | P4: LDMC2 (%)' | Q4: n''''''
A5: Abarema cochleata | B5: 1996.58 | C5: 1 | D5: 13.27207939 | E5: 1 | F5: 43.94941748 | G5: 1 | H5: 0.194 | I5: 1 | J5: 0.3045412444 | K5: 1 | L5: 14.11120616 | M5: 1 | N5: 19965.8 | O5: 1 | P5: 44.06609286 | Q5: 1
A6: Aniba burchellii/panurensis | B6: 5070.68 | C6: 5 | D6: 12.19491158 | E6: 4 | F6: 48.68812469 | G6: 3 | H6: 0.25 | I6: 4 | J6: 0.6882129649 | K6: 5 | L6: 12.19491158 | M6: 4 | N6: 5070.68 | O6: 5 | P6: 48.68812469 | Q6: 3
A7: Aniba canelilla | B7: 5084.866667 | C7: 3 | D7: 9.277728432 | E7: 3 | F7: 54.6157019 | G7: 3 | H7: 0.211 | I7: 2 | J7: 0.9574687531 | K7: 3 | L7: 9.277728432 | M7: 3 | N7: 5084.866667 | O7: 3 | P7: 54.6157019 | Q7: 3
A8: Anisophyllea manausensis | B8: 6280.033333 | C8: 6 | D8: 10.76564094 | E8: 6 | F8: 43.50321616 | G8: 6 | H8: 0.2253333333 | I8: 6 | J8: 0.6703458531 | K8: 6 | L8: 10.76564094 | M8: 6 | N8: 6280.033333 | O8: 6 | P8: 43.50321616 | Q8: 6
A9: Aspidosperma carapanauba | B9: 17016.4 | C9: 1 | D9: 8.930565722 | E9: 1 | F9: 40.17223272 | G9: 1 | H9: 0.308 | I9: 1 | J9: 0.8726017243 | K9: 1 | L9: 8.930565722 | M9: 1 | N9: 17016.4 | O9: 1 | P9: 40.17223272 | Q9: 1
A10: Aspidosperma marcgravianum | C10: 0 | E10: 0 | G10: 0 | I10: 0 | K10: 0 | M10: 0 | O10: 0 | Q10: 0
A11: Aspidosperma oblongum | B11: 1785.333333 | C11: 3 | D11: 10.36094202 | E11: 3 | F11: 39.87349571 | G11: 3 | H11: 0.186 | I11: 3 | J11: 0.5708988765 | K11: 3 | L11: 10.36094202 | M11: 3 | N11: 1785.333333 | O11: 3 | P11: 39.87349571 | Q11: 3
A12: Bocageopsis multiflora | B12: 2062.6 | C12: 9 | D12: 13.60159497 | E12: 8 | F12: 53.73139245 | G12: 5 | H12: 0.1196 | I12: 5 | J12: 0.4032736268 | K12: 9 | L12: 13.60159497 | M12: 8 | N12: 2062.6 | O12: 9 | P12: 53.73139245 | Q12: 5
A13: Bocoa viridiflora | B13: 3887.687273 | C13: 10 | D13: 11.25452682 | E13: 10 | F13: 50.15076747 | G13: 5 | H13: 0.1883333333 | I13: 6 | J13: 1.155883006 | K13: 11 | L13: 12.52527614 | M13: 8 | N13: 10418.76 | O13: 10 | P13: 49.50605217 | Q13: 4
A14: Brosimum acutifolium | C14: 0 | E14: 0 | G14: 0 | I14: 0 | K14: 0 | M14: 0 | O14: 0 | Q14: 0
A15: Brosimum guianense | B15: 3148.066667 | C15: 6 | D15: 11.22775307 | E15: 5 | F15: 46.684397 | G15: 4 | H15: 0.2116 | I15: 5 | J15: 0.4715078924 | K15: 6 | L15: 11.22775307 | M15: 5 | N15: 3148.066667 | O15: 6 | P15: 46.684397 | Q15: 4
A16: Brosimum parinarioides | B16: 29470.17093 | C16: 3 | D16: 6.663624188 | E16: 3 | F16: 46.81131722 | G16: 3 | H16: 0.4793333333 | I16: 3 | J16: 1.260128709 | K16: 3 | L16: 6.663624188 | M16: 3 | N16: 29470.06667 | O16: 3 | P16: 46.81131722 | Q16: 3
A17: Brosimum rubescens | B17: 3780.525 | C17: 8 | D17: 11.09489987 | E17: 8 | F17: 47.74800445 | G17: 6 | H17: 0.1906666667 | I17: 6 | J17: 0.8000323442 | K17: 10 | L17: 11.09489987 | M17: 8 | N17: 3780.525 | O17: 8 | P17: 47.74800445 | Q17: 6
A18: Buchenavia grandis | B18: 5692.8 | C18: 3 | D18: 12.94777446 | E18: 3 | F18: 42.18311539 | G18: 3 | H18: 0.206 | I18: 2 | J18: 0.4075050699 | K18: 3 | L18: 12.94777446 | M18: 3 | N18: 5692.8 | O18: 3 | P18: 42.18311539 | Q18: 3
A19: Cariniana decandra | B19: 9230.8 | C19: 1 | D19: 9.515957447 | E19: 1 | F19: 52.88326301 | G19: 1 | H19: 0.166 | I19: 1 | J19: 0.469307251 | K19: 1 | L19: 9.515957447 | M19: 1 | N19: 9230.8 | O19: 1 | P19: 52.88326301 | Q19: 1
A20: Caryocar pallidum | B20: 4965.311111 | C20: 3 | D20: 12.55163002 | E20: 3 | F20: 46.41592609 | G20: 3 | H20: 0.168 | I20: 3 | J20: 0.2790232439 | K20: 3 | M20: 0 | N20: 14895.93333 | O20: 3 | Q20: 0
A21: Caryocar villosum | B21: 4469.577778 | C21: 3 | D21: 9.236991245 | E21: 3 | F21: 43.04612376 | G21: 3 | H21: 0.2446666667 | I21: 3 | J21: 0.3454736591 | K21: 4 | M21: 0 | N21: 13408.73333 | O21: 3 | Q21: 0
A22: Casearia javitensis | B22: 14859.25714 | C22: 7 | D22: 10.97491973 | E22: 6 | F22: 49.49597917 | G22: 5 | H22: 0.209 | I22: 6 | J22: 0.6459313393 | K22: 11 | L22: 10.97491973 | M22: 6 | N22: 14859.25714 | O22: 7 | P22: 49.49597917 | Q22: 5
A23: Chaunochiton kappleri | B23: 2817.4 | C23: 1 | D23: 10.43846721 | E23: 1 | F23: 33.71428571 | G23: 1 | H23: 0.24 | I23: 1 | J23: 0.460698657 | K23: 1 | L23: 10.43846721 | M23: 1 | N23: 2817.4 | O23: 1 | P23: 33.71428571 | Q23: 1
A24: Chrysophyllum lucentifolium | B24: 5678.4 | C24: 1 | D24: 5.792079208 | E24: 1 | F24: 51.19478639 | G24: 1 | H24: 0.322 | I24: 1 | J24: 1.244525863 | K24: 1 | L24: 5.792079208 | M24: 1 | N24: 5678.4 | O24: 1 | P24: 51.19478639 | Q24: 1
A25: Chrysophyllum pomiferum | B25: 7876.066667 | C25: 3 | D25: 8.342968964 | E25: 3 | F25: 39.06411493 | G25: 3 | H25: 0.2506666667 | I25: 3 | J25: 0.5820696971 | K25: 3 | L25: 8.342968964 | M25: 3 | N25: 7876.066667 | O25: 3 | P25: 39.06411493 | Q25: 3
A26: Chrysophyllum wilsonii | B26: 5406.333333 | C26: 3 | D26: 11.01023241 | E26: 3 | F26: 38.48063768 | G26: 3 | H26: 0.234 | I26: 3 | J26: 0.6633744681 | K26: 3 | L26: 11.01023241 | M26: 3 | N26: 5406.333333 | O26: 3 | P26: 38.48063768 | Q26: 3
A27: Clarisia racemosa | B27: 3554.5 | C27: 2 | D27: 13.60989011 | E27: 1 | F27: 44.9382716 | G27: 1 | H27: 0.176 | I27: 1 | J27: 0.501521098 | K27: 2 | L27: 13.60989011 | M27: 1 | N27: 3554.5 | O27: 2 | P27: 44.9382716 | Q27: 1
A28: Conceveiba hostmannii | B28: 26987.95 | C28: 8 | D28: 10.72851558 | E28: 8 | F28: 46.21430833 | G28: 6 | H28: 0.298 | I28: 6 | J28: 0.5343185672 | K28: 7 | L28: 10.72851558 | M28: 8 | N28: 26987.95 | O28: 8 | P28: 46.21430833 | Q28: 6
A29: Corythophora alta | B29: 7418.457143 | C29: 14 | D29: 12.53281892 | E29: 14 | F29: 51.85696557 | G29: 8 | H29: 0.1831428571 | I29: 7 | J29: 0.5674467833 | K29: 14 | L29: 12.53281892 | M29: 14 | N29: 7418.457143 | O29: 14 | P29: 51.85696557 | Q29: 8
A30: Corythophora rimosa | B30: 7235.3 | C30: 4 | D30: 9.116616589 | E30: 4 | F30: 49.80738663 | G30: 3 | H30: 0.2093333333 | I30: 3 | J30: 0.630274316 | K30: 4 | L30: 9.116616589 | M30: 4 | N30: 7235.3 | O30: 4 | P30: 49.80738663 | Q30: 3
A31: Couepia excelsa | B31: 11810.73333 | C31: 3 | D31: 6.775137679 | E31: 3 | F31: 51.3156219 | G31: 3 | H31: 0.248 | I31: 3 | J31: 1.1046389 | K31: 3 | L31: 6.775137679 | M31: 3 | N31: 11810.73333 | O31: 3 | P31: 51.3156219 | Q31: 3
A32: Couepia longipendula | B32: 4631.5 | C32: 4 | D32: 6.953419888 | E32: 4 | F32: 50.79321567 | G32: 4 | H32: 0.2704 | I32: 5 | J32: 0.8920176043 | K32: 7 | L32: 6.953419888 | M32: 4 | N32: 4631.5 | O32: 4 | P32: 50.79321567 | Q32: 4
A33: Couratari stellata | B33: 4883.266667 | C33: 3 | D33: 7.91108631 | E33: 1 | F33: 44.74779424 | G33: 1 | H33: 0.248 | I33: 1 | J33: 0.8840970356 | K33: 1 | L33: 7.91108631 | M33: 1 | N33: 4883.266667 | O33: 3 | P33: 44.74779424 | Q33: 1
A34: Cynometra longicuspis | B34: 1012.133333 | C34: 6 | D34: 11.70212131 | E34: 6 | F34: 52.66407902 | G34: 6 | H34: 0.136 | I34: 6 | J34: 0.9378272353 | K34: 9 | L34: 11.15515377 | M34: 3 | N34: 2024.266667 | O34: 6 | Q34: 0
A35: Dicorynia guianensis | B35: 5278.865721 | C35: 4 | D35: 14.891371 | E35: 3 | F35: 47.17954325 | G35: 3 | H35: 0.1665 | I35: 4 | J35: 0.5108178979 | K35: 3 | L35: 16.83922781 | M35: 2 | N35: 22290.5625 | O35: 4 | P35: 43.85268583 | Q35: 2
A36: Dinizia excelsa | B36: 66.96666667 | C36: 3 | D36: 10.23357496 | E36: 3 | F36: 51.64869639 | G36: 3 | H36: 0.144 | I36: 3 | J36: 0.4426868482 | K36: 3 | L36: 11.59204468 | M36: 3 | N36: 15508.13333 | O36: 3 | P36: 50.12068719 | Q36: 2
A37: Dipteryx magnifica | B37: 3247.409867 | C37: 3 | D37: 12.460277 | E37: 3 | F37: 49.98052931 | G37: 3 | H37: 0.1793333333 | I37: 3 | J37: 0.7396634148 | K37: 3 | L37: 14.3576511 | M37: 3 | N37: 14798 | O37: 3 | P37: 51.38129973 | Q37: 3
A38: Dipteryx odorata | B38: 11889.64583 | C38: 4 | D38: 9.066178456 | E38: 4 | F38: 45.47464874 | G38: 4 | H38: 0.2175 | I38: 4 | J38: 0.7270564057 | K38: 4 | L38: 9.526769872 | M38: 3 | N38: 42682.15 | O38: 4 | P38: 48.10701439 | Q38: 3
A39: Drypetes variabilis | B39: 5677.04 | C39: 5 | D39: 8.48225512 | E39: 5 | F39: 42.12890127 | G39: 6 | H39: 0.2416 | I39: 5 | J39: 0.631940306 | K39: 7 | L39: 8.48225512 | M39: 5 | N39: 5677.04 | O39: 5 | P39: 42.12890127 | Q39: 6
A40: Duckeodendron cestroides | B40: 5829.48 | C40: 5 | D40: 14.53220994 | E40: 5 | F40: 32.524745 | G40: 4 | H40: 0.2405 | I40: 4 | J40: 0.4923390861 | K40: 5 | L40: 14.53220994 | M40: 5 | N40: 5829.48 | O40: 5 | P40: 32.524745 | Q40: 4
A41: Duguetia echinophora | B41: 4042 | C41: 7 | D41: 12.98793685 | E41: 6 | F41: 52.01870065 | G41: 6 | H41: 0.1491428571 | I41: 7 | J41: 0.6129047379 | K41: 7 | L41: 12.98793685 | M41: 6 | N41: 4042 | O41: 7 | P41: 52.01870065 | Q41: 6
A42: Duguetia manausensis | B42: 27356.4 | C42: 5 | D42: 11.85670237 | E42: 5 | F42: 48.06151669 | G42: 6 | H42: 0.257 | I42: 6 | J42: 0.7791435508 | K42: 9 | L42: 11.85670237 | M42: 5 | N42: 27356.4 | O42: 5 | P42: 48.06151669 | Q42: 6
A43: Dussia discolor | B43: 8444.738462 | C43: 1 | D43: 12.45773335 | E43: 1 | F43: 38.01029775 | G43: 1 | H43: 0.198 | I43: 1 | J43: 0.3210304299 | K43: 1 | L43: 15.4373481 | M43: 1 | N43: 54890.8 | O43: 1 | P43: 40.1675445 | Q43: 1
A44: Ecclinusa guianensis | B44: 6403.02 | C44: 10 | D44: 9.075159003 | E44: 9 | F44: 55.71851307 | G44: 4 | H44: 0.189 | I44: 4 | J44: 0.7862864039 | K44: 10 | L44: 9.075159003 | M44: 9 | N44: 6403.02 | O44: 10 | P44: 55.71851307 | Q44: 4
A45: Elaeoluma nuda | C45: 0 | E45: 0 | G45: 0 | I45: 0 | K45: 0 | M45: 0 | O45: 0 | Q45: 0
A46: Endopleura uchi | B46: 10017.86837 | C46: 4 | D46: 8.157189573 | E46: 3 | F46: 55.31240382 | G46: 3 | H46: 0.1913333333 | I46: 3 | J46: 0.8024724498 | K46: 3 | L46: 8.157189573 | M46: 3 | N46: 10017.9 | O46: 4 | P46: 55.31240382 | Q46: 3
A47: Eperua glabriflora | B47: 9367.069556 | C47: 7 | D47: 8.120570979 | E47: 7 | F47: 47.31858579 | G47: 6 | H47: 0.2476 | I47: 5 | J47: 1.089010268 | K47: 8 | L47: 8.718608408 | M47: 7 | N47: 23086 | O47: 7 | P47: 47.20848663 | Q47: 6
A48: Erisma bicolor | B48: 21552.6 | C48: 4 | D48: 7.007369554 | E48: 4 | F48: 48.61099477 | G48: 4 | H48: 0.2455 | I48: 4 | J48: 0.8555435658 | K48: 4 | L48: 7.007369554 | M48: 4 | N48: 21552.6 | O48: 4 | P48: 48.61099477 | Q48: 4
A49: Erisma bracteosum | C49: 0 | E49: 0 | G49: 0 | I49: 0 | K49: 0 | M49: 0 | O49: 0 | Q49: 0
A50: Eschweilera amazoniciformis | B50: 1686.966667 | C50: 6 | D50: 7.600338126 | E50: 5 | F50: 60.72426374 | G50: 5 | H50: 0.2004 | I50: 5 | J50: 1.104431617 | K50: 6 | L50: 7.600338126 | M50: 5 | N50: 1686.966667 | O50: 6 | P50: 60.72426374 | Q50: 5
A51: Eschweilera atropetiolata | B51: 12418.12 | C51: 15 | D51: 7.776259146 | E51: 12 | F51: 49.99768 | G51: 7 | H51: 0.261 | I51: 8 | J51: 1.126466609 | K51: 15 | L51: 7.776259146 | M51: 12 | N51: 12418.12 | O51: 15 | P51: 49.99768 | Q51: 7
A52: Eschweilera collina | B52: 5597.45 | C52: 8 | D52: 9.500466912 | E52: 8 | F52: 42.09072922 | G52: 6 | H52: 0.2796666667 | I52: 6 | J52: 0.841785838 | K52: 8 | L52: 9.500466912 | M52: 8 | N52: 5597.45 | O52: 8 | P52: 42.09072922 | Q52: 6
A53: Eschweilera coriacea | B53: 10372.07692 | C53: 13 | D53: 9.056012927 | E53: 13 | F53: 47.70541705 | G53: 7 | H53: 0.2304 | I53: 5 | J53: 0.8439989415 | K53: 13 | L53: 9.056012927 | M53: 13 | N53: 10372.07692 | O53: 13 | P53: 47.70541705 | Q53: 7
A54: Eschweilera cyathiformis | B54: 4699.888889 | C54: 9 | D54: 7.929573179 | E54: 9 | F54: 48.73861869 | G54: 6 | H54: 0.2596666667 | I54: 6 | J54: 1.189563469 | K54: 12 | L54: 7.929573179 | M54: 9 | N54: 4699.888889 | O54: 9 | P54: 48.73861869 | Q54: 6
A55: Eschweilera grandiflora | B55: 13874.9 | C55: 12 | D55: 9.027412601 | E55: 12 | F55: 50.71434455 | G55: 6 | H55: 0.219 | I55: 6 | J55: 0.8383729146 | K55: 12 | L55: 9.027412601 | M55: 12 | N55: 13874.9 | O55: 12 | P55: 50.71434455 | Q55: 6
A56: Eschweilera micrantha | B56: 4702.075 | C56: 8 | D56: 11.10618319 | E56: 8 | F56: 48.65954729 | G56: 6 | H56: 0.1883333333 | I56: 6 | J56: 0.8528876659 | K56: 9 | L56: 11.10618319 | M56: 8 | N56: 4702.075 | O56: 8 | P56: 48.65954729 | Q56: 6
A57: Eschweilera pseudodecolorans | B57: 4928.62 | C57: 10 | D57: 11.76327581 | E57: 9 | F57: 50.56277384 | G57: 4 | H57: 0.1828 | I57: 5 | J57: 0.818343061 | K57: 10 | L57: 11.76327581 | M57: 9 | N57: 4928.62 | O57: 10 | P57: 50.56277384 | Q57: 4
A58: Eschweilera rankiniae | B58: 2589.866667 | C58: 6 | D58: 9.789161303 | E58: 6 | F58: 45.98319966 | G58: 6 | H58: 0.2316666667 | I58: 6 | J58: 0.8544339358 | K58: 6 | L58: 9.789161303 | M58: 6 | N58: 2589.866667 | O58: 6 | P58: 45.98319966 | Q58: 6
A59: Eschweilera romeu-cardosoi | B59: 5860.579487 | C59: 13 | D59: 8.803527105 | E59: 13 | F59: 52.70798808 | G59: 5 | H59: 0.2256 | I59: 5 | J59: 0.930363493 | K59: 14 | L59: 8.803527105 | M59: 13 | N59: 5860.579487 | O59: 13 | P59: 52.70798808 | Q59: 5
A60: Eschweilera truncata | B60: 7527.953846 | C60: 13 | D60: 7.826641198 | E60: 12 | F60: 52.4653169 | G60: 9 | H60: 0.2486 | I60: 10 | J60: 1.09608873 | K60: 16 | L60: 7.826641198 | M60: 12 | N60: 7527.953846 | O60: 13 | P60: 52.4653169 | Q60: 9
A61: Eschweilera wachenheimii | B61: 4855.088889 | C61: 18 | D61: 10.76238671 | E61: 15 | F61: 49.61794763 | G61: 12 | H61: 0.1824 | I61: 15 | J61: 0.7187592355 | K61: 23 | L61: 10.76238671 | M61: 15 | N61: 4855.088889 | O61: 18 | P61: 49.61794763 | Q61: 12
A62: Ficus guianensis | C62: 0 | E62: 0 | G62: 0 | I62: 0 | K62: 0 | M62: 0 | O62: 0 | Q62: 0
A63: Fusaea longifolia | B63: 9442.166667 | C63: 6 | D63: 9.880866398 | E63: 6 | F63: 52.32581531 | G63: 6 | H63: 0.1913333333 | I63: 6 | J63: 0.5891871549 | K63: 11 | L63: 9.880866398 | M63: 6 | N63: 9442.166667 | O63: 6 | P63: 52.32581531 | Q63: 6
A64: Geissospermum argenteum | B64: 4594.34 | C64: 10 | D64: 13.36962054 | E64: 9 | F64: 48.14897701 | G64: 5 | H64: 0.173 | I64: 4 | J64: 0.5793649092 | K64: 11 | L64: 13.36962054 | M64: 9 | N64: 4594.34 | O64: 10 | P64: 48.14897701 | Q64: 5
A65: Glycydendron amazonicum | B65: 13617.26667 | C65: 3 | D65: 12.12605409 | E65: 3 | F65: 41.43230208 | G65: 3 | H65: 0.2226666667 | I65: 3 | J65: 0.6329750606 | K65: 3 | L65: 12.12605409 | M65: 3 | N65: 13617.26667 | O65: 3 | P65: 41.43230208 | Q65: 3
A66: Goupia glabra | B66: 3965.579923 | C66: 4 | D66: 18.22141841 | E66: 3 | F66: 39.63335642 | G66: 2 | H66: 0.1533333333 | I66: 3 | J66: 0.3526371686 | K66: 4 | L66: 18.22141841 | M66: 3 | N66: 3965.65 | O66: 4 | P66: 39.63335642 | Q66: 2
A67: Guarea convergens | B67: 3332.314209 | C67: 4 | D67: 10.3056835 | E67: 4 | F67: 38.15754877 | G67: 4 | H67: 0.272 | I67: 4 | J67: 0.6500451113 | K67: 4 | L67: 11.65695692 | M67: 4 | N67: 13445.85 | O67: 4 | P67: 38.63337552 | Q67: 4
A68: Guarea sp. 3 | B68: 7935.333333 | C68: 1 | D68: 6.668912 | E68: 1 | F68: 37.74588122 | G68: 1 | H68: 0.36 | I68: 1 | J68: 0.7291147579 | K68: 1 | L68: 8.625979707 | M68: 1 | N68: 28567.2 | O68: 1 | P68: 37.56819064 | Q68: 1
A69: Heisteria laxiflora | B69: 7271.55 | C69: 4 | D69: 8.303114042 | E69: 4 | F69: 50.75687522 | G69: 4 | H69: 0.2335 | I69: 4 | J69: 1.423697576 | K69: 4 | L69: 8.303114042 | M69: 4 | N69: 7271.55 | O69: 4 | P69: 50.75687522 | Q69: 4
A70: Helicostylis tomentosa | B70: 14488.73333 | C70: 6 | D70: 12.60109164 | E70: 6 | F70: 42.80877351 | G70: 3 | H70: 0.2833333333 | I70: 3 | J70: 0.7242031101 | K70: 6 | L70: 12.60109164 | M70: 6 | N70: 14488.73333 | O70: 6 | P70: 42.80877351 | Q70: 3
A71: Hevea guianensis | B71: 5728.583333 | C71: 8 | D71: 10.70812411 | E71: 8 | F71: 42.44548611 | G71: 6 | H71: 0.1868 | I71: 5 | J71: 0.655045734 | K71: 11 | L71: 12.49402744 | M71: 4 | N71: 17185.75 | O71: 8 | Q71: 0
A72: Inga alba | B72: 4308.15 | C72: 1 | D72: 6.32098943 | E72: 1 | F72: 47.80351987 | G72: 1 | H72: 0.154 | I72: 1 | J72: 0.5933528367 | K72: 1 | L72: 6.78869095 | M72: 1 | N72: 17232.6 | O72: 1 | P72: 48.80832234 | Q72: 1
A73: Inga capitata | B73: 3261.588943 | C73: 6 | D73: 12.03376371 | E73: 6 | F73: 41.94355596 | G73: 6 | H73: 0.2303333333 | I73: 6 | J73: 0.670519136 | K73: 6 | L73: 12.73416719 | M73: 5 | N73: 7688.366667 | O73: 6 | P73: 41.7663886 | Q73: 5
A74: Inga paraensis | B74: 3748.051168 | C74: 8 | D74: 9.987216173 | E74: 7 | F74: 52.01757009 | G74: 6 | H74: 0.221 | I74: 6 | J74: 0.904646439 | K74: 8 | L74: 9.89202903 | M74: 5 | N74: 10498.65 | O74: 8 | P74: 51.79617409 | Q74: 5
A75: Inga rubiginosa | B75: 11748.55098 | C75: 3 | D75: 12.35374252 | E75: 3 | F75: 43.87399574 | G75: 3 | H75: 0.3021666667 | I75: 3 | J75: 0.66221961 | K75: 3 | L75: 14.09430485 | M75: 3 | N75: 42190.73333 | O75: 3 | P75: 44.62779319 | Q75: 3
A76: Inga sp. 7 | B76: 12433.96389 | C76: 4 | D76: 10.83164824 | E76: 3 | F76: 42.94003504 | G76: 3 | H76: 0.204 | I76: 4 | J76: 0.7183614446 | K76: 4 | L76: 11.43872296 | M76: 3 | N76: 23608.5 | O76: 4 | P76: 43.43872137 | Q76: 3
A77: Lecythis chartacea | B77: 6391.6 | C77: 1 | D77: 5.852545455 | E77: 1 | G77: 0 | I77: 0 | J77: 0.6533101045 | K77: 1 | L77: 5.852545455 | M77: 1 | N77: 6391.6 | O77: 1 | Q77: 0
A78: Lecythis prancei | B78: 16917.68 | C78: 15 | D78: 10.65652198 | E78: 14 | F78: 45.93628291 | G78: 9 | H78: 0.225 | I78: 8 | J78: 0.7421827221 | K78: 15 | L78: 10.65652198 | M78: 14 | N78: 16917.68 | O78: 15 | P78: 45.93628291 | Q78: 9
A79: Licania caudata | B79: 4415.533333 | C79: 3 | D79: 11.12161031 | E79: 3 | F79: 41.93815413 | G79: 3 | H79: 0.2326666667 | I79: 3 | J79: 0.4896602362 | K79: 3 | L79: 11.12161031 | M79: 3 | N79: 4415.533333 | O79: 3 | P79: 41.93815413 | Q79: 3
A80: Licania heteromorpha | B80: 4213.244444 | C80: 9 | D80: 9.022147903 | E80: 8 | F80: 49.94633529 | G80: 5 | H80: 0.2116666667 | I80: 6 | J80: 0.9260330955 | K80: 9 | L80: 9.022147903 | M80: 8 | N80: 4213.244444 | O80: 9 | P80: 49.94633529 | Q80: 5
A81: Licania impressa | B81: 6971.8 | C81: 3 | D81: 7.564153324 | E81: 3 | F81: 47.93877675 | G81: 3 | H81: 0.294 | I81: 3 | J81: 0.7737794151 | K81: 3 | L81: 7.564153324 | M81: 3 | N81: 6971.8 | O81: 3 | P81: 47.93877675 | Q81: 3
A82: Licania sp. 9 | B82: 5631.6 | C82: 1 | D82: 10.23920145 | E82: 1 | F82: 48.91690341 | G82: 1 | H82: 0.2 | I82: 1 | J82: 0.6118179028 | K82: 1 | L82: 10.23920145 | M82: 1 | N82: 5631.6 | O82: 1 | P82: 48.91690341 | Q82: 1
A83: Licaria cannella | B83: 5679.72 | C83: 5 | D83: 7.46191353 | E83: 5 | F83: 49.51822293 | G83: 4 | H83: 0.3215 | I83: 4 | J83: 1.145952009 | K83: 5 | L83: 7.46191353 | M83: 5 | N83: 5679.72 | O83: 5 | P83: 49.51822293 | Q83: 4
A84: Lueheopsis rosea | B84: 9260 | C84: 4 | D84: 13.44603136 | E84: 3 | F84: 59.24485213 | G84: 2 | H84: 0.2713333333 | I84: 3 | J84: 0.9744181779 | K84: 4 | L84: 13.44603136 | M84: 3 | N84: 9260 | O84: 4 | P84: 59.24485213 | Q84: 2
A85: Macrolobium angustifolium | B85: 3389.733333 | C85: 3 | D85: 12.24739687 | E85: 3 | F85: 44.90233508 | G85: 3 | H85: 0.176 | I85: 3 | J85: 0.4920360922 | K85: 3 | L85: 13.00280803 | M85: 2 | N85: 3389.733333 | O85: 3 | P85: 44.70465438 | Q85: 2
A86: Manilkara bidentata | B86: 3410.8 | C86: 6 | D86: 9.369402187 | E86: 6 | F86: 52.09488767 | G86: 6 | H86: 0.165 | I86: 6 | J86: 0.9600747943 | K86: 9 | L86: 9.369402187 | M86: 6 | N86: 3410.8 | O86: 6 | P86: 52.09488767 | Q86: 6
A87: Manilkara huberi | B87: 14724.28571 | C87: 7 | D87: 5.862723162 | E87: 7 | F87: 48.8943186 | G87: 6 | H87: 0.2736666667 | I87: 6 | J87: 1.163714674 | K87: 7 | L87: 5.862723162 | M87: 7 | N87: 14724.28571 | O87: 7 | P87: 48.8943186 | Q87: 6
A88: Maquira sclerophylla | B88: 30907.06667 | C88: 6 | D88: 8.111926096 | E88: 6 | F88: 42.65947843 | G88: 5 | H88: 0.2236666667 | I88: 6 | J88: 0.6728862514 | K88: 6 | L88: 8.111926096 | M88: 6 | N88: 26888.73333 | O88: 6 | P88: 42.65947843 | Q88: 5
A89: Mezilaurus duckei | B89: 19583 | C89: 6 | D89: 7.496355469 | E89: 6 | F89: 55.21701061 | G89: 6 | H89: 0.3166666667 | I89: 6 | J89: 0.9147136416 | K89: 7 | L89: 7.496355469 | M89: 6 | N89: 19583 | O89: 6 | P89: 55.21701061 | Q89: 6
A90: Mezilaurus sp. 1 | B90: 7060.9 | C90: 6 | D90: 11.25522222 | E90: 6 | F90: 49.55810943 | G90: 6 | H90: 0.19 | I90: 6 | J90: 0.5845419182 | K90: 6 | L90: 11.25522222 | M90: 6 | N90: 7060.9 | O90: 6 | P90: 49.55810943 | Q90: 6
A91: Miconia burchellii | B91: 2724.333333 | C91: 3 | D91: 9.323929118 | E91: 3 | F91: 49.69594595 | G91: 1 | H91: 0.282 | I91: 1 | J91: 0.5487236229 | K91: 3 | L91: 9.323929118 | M91: 3 | N91: 2724.333333 | O91: 3 | P91: 49.69594595 | Q91: 1
A92: Miconia pyrifolia | C92: 0 | E92: 0 | G92: 0 | I92: 0 | K92: 0 | M92: 0 | O92: 0 | Q92: 0
A93: Micropholis casiquiarensis/mensalis | B93: 5243.8 | C93: 3 | D93: 9.725584502 | E93: 3 | F93: 44.37760269 | G93: 4 | H93: 0.2665 | I93: 4 | J93: 0.7755612389 | K93: 4 | L93: 9.725584502 | M93: 3 | N93: 5243.8 | O93: 3 | P93: 44.37760269 | Q93: 4
A94: Micropholis cylindrocarpa | B94: 1214.933333 | C94: 3 | D94: 10.62171987 | E94: 3 | F94: 51.55107493 | G94: 3 | H94: 0.1813333333 | I94: 3 | J94: 0.3261747839 | K94: 3 | L94: 10.62171987 | M94: 3 | N94: 1214.933333 | O94: 3 | P94: 51.55107493 | Q94: 3
A95: Micropholis guyanensis | B95: 6677.107692 | C95: 13 | D95: 7.284982163 | E95: 12 | F95: 52.97287937 | G95: 4 | H95: 0.2763333333 | I95: 6 | J95: 1.036611085 | K95: 14 | L95: 7.284982163 | M95: 12 | N95: 6677.107692 | O95: 13 | P95: 52.97287937 | Q95: 4
A96: Micropholis venulosa | B96: 1048.4 | C96: 4 | D96: 9.847717655 | E96: 4 | F96: 54.21525934 | G96: 3 | H96: 0.1493333333 | I96: 3 | J96: 0.4399330348 | K96: 4 | L96: 9.847717655 | M96: 4 | N96: 1048.4 | O96: 4 | P96: 54.21525934 | Q96: 3
A97: Minquartia guianensis | B97: 12737.14545 | C97: 11 | D97: 11.68109185 | E97: 11 | F97: 53.48188871 | G97: 6 | H97: 0.1919047619 | I97: 7 | J97: 0.8552055076 | K97: 17 | L97: 11.68109185 | M97: 11 | N97: 12737.14545 | O97: 11 | P97: 53.48188871 | Q97: 6
A98: Moronobea coccinea | C98: 0 | E98: 0 | G98: 0 | I98: 0 | K98: 0 | M98: 0 | O98: 0 | Q98: 0
A99: Mouriri angulicosta/duckeana/duckeanoides | B99: 1745.4 | C99: 7 | D99: 9.680024142 | E99: 7 | F99: 45.05178706 | G99: 6 | H99: 0.2103333333 | I99: 6 | J99: 0.5139342203 | K99: 9 | L99: 9.680024142 | M99: 7 | N99: 1745.4 | O99: 7 | P99: 45.05178706 | Q99: 6
A100: Mouriri nigra | C100: 0 | E100: 0 | G100: 0 | I100: 0 | K100: 0 | M100: 0 | O100: 0 | Q100: 0
A101: Myrcia grandis | B101: 1583.8 | C101: 8 | D101: 9.04277407 | E101: 8 | F101: 47.97535068 | G101: 6 | H101: 0.234 | I101: 6 | J101: 0.868982763 | K101: 12 | L101: 9.04277407 | M101: 8 | N101: 1583.8 | O101: 8 | P101: 47.97535068 | Q101: 6
A102: Naucleopsis caloneura | B102: 24257.98182 | C102: 11 | D102: 6.849303986 | E102: 10 | F102: 48.69230435 | G102: 6 | H102: 0.3271428571 | I102: 7 | J102: 1.001368174 | K102: 12 | L102: 6.849303986 | M102: 10 | N102: 24257.98182 | O102: 11 | P102: 48.69230435 | Q102: 6
A103: Neea aff. madeirana | B103: 4162.866667 | C103: 3 | D103: 9.618351922 | E103: 3 | F103: 32.30098938 | G103: 3 | H103: 0.286 | I103: 3 | J103: 0.6543614782 | K103: 3 | L103: 9.618351922 | M103: 3 | N103: 4162.866667 | O103: 3 | P103: 32.30098938 | Q103: 3
A104: Neea sp. 2 | B104: 12215.86667 | C104: 6 | D104: 10.5063433 | E104: 6 | F104: 23.69978963 | G104: 6 | H104: 0.413 | I104: 6 | J104: 0.9613634375 | K104: 6 | L104: 10.5063433 | M104: 6 | N104: 12215.86667 | O104: 6 | P104: 23.69978963 | Q104: 6
A105: Neea sp. 3 | B105: 4986.95 | C105: 4 | D105: 9.052574508 | E105: 4 | F105: 39.05213296 | G105: 4 | H105: 0.2925 | I105: 4 | J105: 0.7555476409 | K105: 4 | L105: 9.052574508 | M105: 4 | N105: 4986.95 | O105: 4 | P105: 39.05213296 | Q105: 4
A106: Ocotea cinerea | B106: 2894.8 | C106: 4 | D106: 8.186249824 | E106: 4 | F106: 53.15899026 | G106: 3 | H106: 0.2826666667 | I106: 3 | J106: 0.7334503377 | K106: 4 | L106: 8.186249824 | M106: 4 | N106: 2894.8 | O106: 4 | P106: 53.15899026 | Q106: 3
A107: Ocotea ligulata | C107: 0 | E107: 0 | G107: 0 | I107: 0 | K107: 0 | M107: 0 | O107: 0 | Q107: 0
A108: Ocotea nigrescens | B108: 4209.95 | C108: 4 | D108: 8.140620912 | E108: 3 | F108: 51.09366631 | G108: 3 | H108: 0.204 | I108: 4 | J108: 0.5694500413 | K108: 4 | L108: 8.140620912 | M108: 3 | N108: 4209.95 | O108: 4 | P108: 51.09366631 | Q108: 3
A109: Ocotea percurrens | B109: 4005.36 | C109: 5 | D109: 10.63431103 | E109: 5 | F109: 50.2854145 | G109: 4 | H109: 0.2186666667 | I109: 3 | J109: 0.7267200237 | K109: 5 | L109: 10.63431103 | M109: 5 | N109: 4005.36 | O109: 5 | P109: 50.2854145 | Q109: 4
A110: Oenocarpus bacaba | B110: 31293.62127 | C110: 3 | D110: 2.925487075 | E110: 3 | F110: 51.09943383 | G110: 3 | H110: 0.1973333333 | I110: 3 | J110: 6.131104652 | K110: 4 | L110: 7.420350475 | M110: 3 | N110: 5908680.795 | O110: 3 | P110: 53.28072003 | Q110: 3
A111: Onychopetalum amazonicum | B111: 13979.96 | C111: 5 | D111: 7.20462249 | E111: 3 | F111: 54.60696758 | G111: 3 | H111: 0.236 | I111: 5 | J111: 0.7293296782 | K111: 5 | L111: 7.20462249 | M111: 3 | N111: 13979.96 | O111: 5 | P111: 54.60696758 | Q111: 3
A112: Ormosia paraensis | C112: 0 | E112: 0 | G112: 0 | I112: 0 | K112: 0 | M112: 0 | O112: 0 | Q112: 0
A113: Osteophloeum platyspermum | B113: 5514.32 | C113: 5 | D113: 10.26612793 | E113: 5 | F113: 33.50655966 | G113: 4 | H113: 0.2865 | I113: 4 | J113: 0.5516659271 | K113: 5 | L113: 10.26612793 | M113: 5 | N113: 5514.32 | O113: 5 | P113: 33.50655966 | Q113: 4
A114: Paramachaerium ormosioides | B114: 3791.911066 | C114: 9 | D114: 11.51168455 | E114: 7 | F114: 50.7436541 | G114: 6 | H114: 0.18225 | I114: 8 | J114: 0.7616980009 | K114: 10 | L114: 12.4624512 | M114: 7 | N114: 11996.4 | O114: 9 | P114: 51.2143628 | Q114: 6
A115: Parkia decussata | B115: 77.84545455 | C115: 5 | D115: 14.53383676 | E115: 5 | F115: 49.22145259 | G115: 4 | H115: 0.152 | I115: 4 | J115: 1.219555297 | K115: 5 | L115: 17.14637886 | M115: 5 | N115: 81774.32 | O115: 5 | P115: 50.20140655 | Q115: 4
A116: Parkia panurensis | C116: 0 | E116: 0 | G116: 0 | I116: 0 | K116: 0 | M116: 0 | O116: 0 | Q116: 0
A117: Parkia pendula | B117: 2 | C117: 2 | D117: 20.27491788 | E117: 2 | F117: 43.46567411 | G117: 1 | H117: 0.042 | I117: 1 | J117: 0.7225622165 | K117: 2 | L117: 22.88453159 | M117: 1 | N117: 7460.8 | O117: 2 | P117: 43.96551724 | Q117: 1
A118: Pausandra macropetala | B118: 45461.4 | C118: 7 | D118: 6.997295529 | E118: 7 | F118: 46.75660278 | G118: 6 | H118: 0.2226666667 | I118: 6 | J118: 1.065823317 | K118: 11 | L118: 6.997295529 | M118: 7 | N118: 45461.4 | O118: 7 | P118: 46.75660278 | Q118: 6
A119: Peltogyne catingae | B119: 5448.725 | C119: 4 | D119: 7.838876283 | E119: 3 | F119: 56.8129055 | G119: 2 | H119: 0.2353333333 | I119: 3 | J119: 0.8338736517 | K119: 4 | L119: 5.565159321 | M119: 1 | N119: 9433.05 | O119: 4 | P119: 59.5027248 | Q119: 1
A120: Peltogyne excelsa | B120: 1155.166667 | C120: 3 | D120: 10.00892369 | E120: 3 | F120: 46.5370567 | G120: 3 | H120: 0.1666666667 | I120: 3 | J120: 0.6128968739 | K120: 3 | M120: 0 | N120: 2310.333333 | O120: 3 | Q120: 0
A121: Pouteria aff. engleri | B121: 4524.133333 | C121: 6 | D121: 9.647444219 | E121: 6 | F121: 46.46566244 | G121: 6 | H121: 0.1996666667 | I121: 6 | J121: 0.712397761 | K121: 6 | L121: 9.647444219 | M121: 6 | N121: 4524.133333 | O121: 6 | P121: 46.46566244 | Q121: 6
A122: Pouteria anomala | B122: 3661.95 | C122: 8 | D122: 10.55810596 | E122: 7 | F122: 53.34732116 | G122: 4 | H122: 0.132 | I122: 5 | J122: 0.7843635487 | K122: 9 | L122: 10.55810596 | M122: 7 | N122: 3661.95 | O122: 8 | P122: 53.34732116 | Q122: 4
A123: Pouteria cladantha | B123: 6332.977778 | C123: 9 | D123: 7.21630178 | E123: 8 | F123: 54.57899742 | G123: 6 | H123: 0.2663333333 | I123: 6 | J123: 0.8165811949 | K123: 11 | L123: 7.21630178 | M123: 8 | N123: 6332.977778 | O123: 9 | P123: 54.57899742 | Q123: 6
A124: Pouteria durlandii/peruviensis | B124: 7020.525 | C124: 8 | D124: 8.80950606 | E124: 8 | F124: 40.37845206 | G124: 4 | H124: 0.2985 | I124: 4 | J124: 0.7948385943 | K124: 9 | L124: 8.80950606 | M124: 8 | N124: 7020.525 | O124: 8 | P124: 40.37845206 | Q124: 4
A125: Pouteria engleri | B125: 6105.22 | C125: 10 | D125: 8.548563477 | E125: 9 | F125: 55.64280588 | G125: 6 | H125: 0.1734285714 | I125: 7 | J125: 0.8428838007 | K125: 10 | L125: 8.548563477 | M125: 9 | N125: 6105.22 | O125: 10 | P125: 55.64280588 | Q125: 6
A126: Pouteria filipes | B126: 5748.92 | C126: 5 | D126: 6.190813489 | E126: 5 | F126: 51.54038036 | G126: 3 | H126: 0.241 | I126: 2 | J126: 0.9771425471 | K126: 6 | L126: 6.190813489 | M126: 5 | N126: 6506.8 | O126: 4 | P126: 51.54038036 | Q126: 3
A127: Pouteria fimbriata | B127: 10730.30455 | C127: 4 | D127: 10.78285965 | E127: 4 | F127: 45.19070072 | G127: 3 | H127: 0.1326666667 | I127: 3 | J127: 0.6019334353 | K127: 4 | L127: 10.78285965 | M127: 4 | N127: 10730.3 | O127: 4 | P127: 45.19070072 | Q127: 3
A128: Pouteria flavilatex | B128: 8339.6 | C128: 2 | D128: 5.832467082 | E128: 1 | F128: 39.85637343 | G128: 1 | H128: 0.25 | I128: 2 | J128: 0.7555213608 | K128: 2 | L128: 5.832467082 | M128: 1 | N128: 8339.6 | O128: 2 | P128: 39.85637343 | Q128: 1
A129: Pouteria guianensis | B129: 9782.3 | C129: 10 | D129: 7.800845497 | E129: 9 | F129: 50.12724246 | G129: 5 | H129: 0.2204 | I129: 5 | J129: 0.683840018 | K129: 10 | L129: 7.800845497 | M129: 9 | N129: 9782.3 | O129: 10 | P129: 50.12724246 | Q129: 5
A130: Pouteria hispida | B130: 3295.971429 | C130: 7 | D130: 10.71765675 | E130: 6 | F130: 52.0558873 | G130: 6 | H130: 0.196 | I130: 7 | J130: 0.6141801387 | K130: 8 | L130: 10.71765675 | M130: 6 | N130: 3295.971429 | O130: 7 | P130: 52.0558873 | Q130: 6
A131: Pouteria macrophylla | B131: 9390.25 | C131: 4 | D131: 8.069462295 | E131: 4 | F131: 49.57820085 | G131: 5 | H131: 0.2152 | I131: 5 | J131: 0.9135247513 | K131: 5 | L131: 8.069462295 | M131: 4 | N131: 9390.25 | O131: 4 | P131: 49.57820085 | Q131: 5
A132: Pouteria manaosensis | B132: 14060.15 | C132: 4 | D132: 9.145334067 | E132: 3 | F132: 52.88275844 | G132: 2 | H132: 0.3133333333 | I132: 3 | J132: 0.7049060732 | K132: 4 | L132: 9.145334067 | M132: 3 | N132: 14060.15 | O132: 4 | P132: 52.88275844 | Q132: 2
A133: Pouteria pentamera | B133: 10099 | C133: 3 | D133: 9.121773352 | E133: 3 | F133: 52.19503448 | G133: 3 | H133: 0.214 | I133: 3 | J133: 0.7611945415 | K133: 3 | L133: 9.121773352 | M133: 3 | N133: 10099 | O133: 3 | P133: 52.19503448 | Q133: 3
A134: Pouteria reticulata | B134: 3857.871429 | C134: 14 | D134: 10.02812316 | E134: 10 | F134: 46.76330621 | G134: 4 | H134: 0.197 | I134: 8 | J134: 0.7669135802 | K134: 14 | L134: 10.02812316 | M134: 10 | N134: 3857.871429 | O134: 14 | P134: 46.76330621 | Q134: 4
A135: Pouteria retinervis | B135: 12282.73333 | C135: 9 | D135: 10.68887423 | E135: 8 | F135: 46.13665391 | G135: 6 | H135: 0.181 | I135: 6 | J135: 0.6847721592 | K135: 11 | L135: 10.68887423 | M135: 8 | N135: 12282.73333 | O135: 9 | P135: 46.13665391 | Q135: 6
A136: Pouteria rostrata | B136: 7691.033333 | C136: 6 | D136: 6.464054676 | E136: 6 | F136: 48.35027947 | G136: 4 | H136: 0.2805 | I136: 4 | J136: 0.9845237612 | K136: 6 | L136: 6.464054676 | M136: 6 | N136: 7691.033333 | O136: 6 | P136: 48.35027947 | Q136: 4
A137: Pouteria sp. 10 | C137: 0 | E137: 0 | G137: 0 | I137: 0 | K137: 0 | M137: 0 | O137: 0 | Q137: 0
A138: Pouteria sp. 9 | B138: 5089.35 | C138: 4 | D138: 7.895721697 | E138: 4 | F138: 46.02184087 | G138: 1 | H138: 0.26 | I138: 1 | J138: 0.6571443272 | K138: 4 | L138: 7.895721697 | M138: 4 | N138: 5089.35 | O138: 4 | P138: 46.02184087 | Q138: 1
A139: Protium altsonii | B139: 2671.163848 | C139: 5 | D139: 9.025167469 | E139: 5 | F139: 54.07088666 | G139: 5 | H139: 0.154 | I139: 5 | J139: 0.8880238909 | K139: 6 | L139: 10.39930299 | M139: 5 | N139: 20574.52 | O139: 5 | P139: 55.24370092 | Q139: 4
A140: Protium apiculatum | B140: 4648.525384 | C140: 10 | D140: 11.71308191 | E140: 8 | F140: 46.07688496 | G140: 5 | H140: 0.1596666667 | I140: 6 | J140: 0.4682479357 | K140: 10 | L140: 13.8167182 | M140: 8 | N140: 33289.54 | O140: 10 | P140: 47.8402501 | Q140: 5
A141: Protium decandrum | B141: 4270.935502 | C141: 11 | D141: 10.00173606 | E141: 11 | F141: 51.14216583 | G141: 5 | H141: 0.2236666667 | I141: 6 | J141: 0.8751675844 | K141: 12 | L141: 10.40878912 | M141: 10 | N141: 14790.4 | O141: 11 | P141: 54.02567598 | Q141: 4
A142: Protium guianense | B142: 2101.982237 | C142: 6 | D142: 11.53826324 | E142: 6 | F142: 53.75460223 | G142: 6 | H142: 0.15 | I142: 6 | J142: 0.5196942424 | K142: 6 | L142: 12.24487788 | M142: 4 | N142: 8323.733333 | O142: 6 | P142: 54.04601563 | Q142: 4
A143: Protium hebetatum | B143: 5262.570966 | C143: 12 | D143: 10.46421204 | E143: 12 | F143: 55.71260176 | G143: 8 | H143: 0.20675 | I143: 8 | J143: 0.7595484078 | K143: 19 | L143: 12.41013475 | M143: 11 | N143: 56541.87273 | O143: 11 | P143: 56.95897005 | Q143: 8
A144: Protium sagotianum | B144: 2757.278691 | C144: 3 | D144: 14.22053911 | E144: 3 | F144: 54.89323697 | G144: 3 | H144: 0.1073333333 | I144: 3 | J144: 0.5298023985 | K144: 3 | L144: 15.88218668 | M144: 3 | N144: 8794.6 | O144: 3 | P144: 55.06708406 | Q144: 3
A145: Protium tenuifolium | B145: 7865.126359 | C145: 4 | D145: 8.467237601 | E145: 3 | F145: 54.36304921 | G145: 3 | H145: 0.2032 | I145: 5 | J145: 0.7735709349 | K145: 4 | L145: 9.750126371 | M145: 3 | N145: 35000.25 | O145: 4 | P145: 50.7499979 | Q145: 4
A146: Pseudolmedia laevis | B146: 5799.225 | C146: 8 | D146: 11.44369927 | E146: 8 | F146: 52.03606324 | G146: 6 | H146: 0.2073333333 | I146: 6 | J146: 0.7204724106 | K146: 9 | L146: 11.44369927 | M146: 8 | N146: 5799.225 | O146: 8 | P146: 52.03606324 | Q146: 6
A147: Pseudopiptadenia psilostachya | B147: 25.33333333 | C147: 3 | D147: 13.9566235 | E147: 3 | F147: 45.48685152 | G147: 3 | H147: 0.1586666667 | I147: 3 | J147: 0.8446146889 | K147: 3 | L147: 15.93117411 | M147: 3 | N147: 31704.13333 | O147: 3 | P147: 45.74451538 | Q147: 3
A148: Pseudopiptadenia suaveolens | B148: 24.1 | C148: 1 | D148: 15.06488103 | E148: 1 | F148: 51.4551415 | G148: 1 | H148: 0.164 | I148: 1 | J148: 0.6966378461 | K148: 1 | L148: 17.05642257 | M148: 1 | N148: 22732.8 | O148: 1 | P148: 52.03810714 | Q148: 1
A149: Qualea labouriauana | B149: 3912.133333 | C149: 3 | D149: 7.160565162 | E149: 3 | F149: 45.8272457 | G149: 3 | H149: 0.2906666667 | I149: 3 | J149: 0.5591376391 | K149: 3 | L149: 7.160565162 | M149: 3 | N149: 3912.133333 | O149: 3 | P149: 45.8272457 | Q149: 3
A150: Qualea paraensis | B150: 2914.4 | C150: 3 | D150: 8.95464303 | E150: 3 | F150: 46.23480968 | G150: 2 | H150: 0.254 | I150: 2 | J150: 0.607671359 | K150: 3 | L150: 8.95464303 | M150: 3 | N150: 2914.4 | O150: 3 | P150: 46.23480968 | Q150: 2
A151: Rhodostemonodaphne grandis | B151: 10196.13333 | C151: 3 | D151: 7.062592396 | E151: 3 | F151: 48.39938968 | G151: 3 | H151: 0.242 | I151: 3 | J151: 0.6466523337 | K151: 3 | L151: 7.062592396 | M151: 3 | N151: 10196.13333 | O151: 3 | P151: 48.39938968 | Q151: 3
A152: Rinorea flavescens | B152: 7055.628571 | C152: 7 | D152: 15.6758053 | E152: 7 | F152: 38.8714573 | G152: 6 | H152: 0.1666666667 | I152: 6 | J152: 0.4851898899 | K152: 10 | L152: 15.6758053 | M152: 7 | N152: 7055.628571 | O152: 7 | P152: 38.8714573 | Q152: 6
A153: Rinorea guianensis | B153: 6645.5 | C153: 12 | D153: 10.72866251 | E153: 12 | F153: 44.54898266 | G153: 7 | H153: 0.2536666667 | I153: 6 | J153: 0.7745939527 | K153: 13 | L153: 10.72866251 | M153: 12 | N153: 6645.5 | O153: 12 | P153: 44.54898266 | Q153: 7
A154: Rinorea sp. 1 | B154: 4877.2 | C154: 4 | D154: 16.23553796 | E154: 4 | F154: 34.17138544 | G154: 6 | H154: 0.1966666667 | I154: 6 | J154: 0.5403865304 | K154: 10 | L154: 16.23553796 | M154: 4 | N154: 4877.2 | O154: 4 | P154: 34.17138544 | Q154: 6
A155: Sacoglottis mattogrossensis | B155: 3341.12 | C155: 5 | D155: 7.812856456 | E155: 3 | F155: 52.50244692 | G155: 2 | H155: 0.2515 | I155: 4 | J155: 0.6735977819 | K155: 5 | L155: 7.812856456 | M155: 3 | N155: 3341.12 | O155: 5 | P155: 52.50244692 | Q155: 2
A156: Sclerolobium melinonii | B156: 1841.377741 | C156: 2 | D156: 14.22687529 | E156: 1 | F156: 53.54062977 | G156: 1 | H156: 0.116 | I156: 2 | J156: 0.4530685304 | K156: 2 | L156: 16.54581066 | M156: 1 | N156: 15615.7 | O156: 2 | Q156: 0
A157: Sclerolobium sp. 1 | B157: 4193.691176 | C157: 2 | D157: 6.543069313 | E157: 2 | F157: 52.07762925 | G157: 1 | H157: 0.178 | I157: 1 | J157: 1.168919693 | K157: 2 | L157: 7.615929064 | M157: 2 | N157: 31776.3 | O157: 2 | P157: 52.70230505 | Q157: 1
A158: Sclerolobium sp. 5 | B158: 11806.20886 | C158: 3 | D158: 8.440510865 | E158: 3 | F158: 44.22223432 | G158: 3 | H158: 0.2213333333 | I158: 3 | J158: 0.6451992575 | K158: 3 | L158: 10.27331996 | M158: 3 | N158: 54482.93333 | O158: 3 | P158: 44.60833109 | Q158: 3
A159: Scleronema micranthum | B159: 6736.044444 | C159: 9 | D159: 12.23885731 | E159: 8 | F159: 45.05232199 | G159: 5 | H159: 0.225 | I159: 6 | J159: 0.8538240394 | K159: 12 | L159: 12.23885731 | M159: 8 | N159: 6736.044444 | O159: 9 | P159: 45.05232199 | Q159: 5
A160: Sloanea eichleri | B160: 23126.1 | C160: 4 | D160: 8.074652634 | E160: 4 | F160: 51.36534175 | G160: 4 | H160: 0.415 | I160: 4 | J160: 0.8731511702 | K160: 4 | L160: 8.074652634 | M160: 4 | N160: 23126.1 | O160: 4 | P160: 51.36534175 | Q160: 4
A161: Sloanea floribunda | B161: 11597.36667 | C161: 6 | D161: 6.28448799 | E161: 6 | F161: 53.7847216 | G161: 6 | H161: 0.2592 | I161: 5 | J161: 1.011191933 | K161: 6 | L161: 6.28448799 | M161: 6 | N161: 11597.36667 | O161: 6 | P161: 53.7847216 | Q161: 6
A162: Swartzia polyphylla | B162: 2224.766585 | C162: 5 | D162: 10.87960957 | E162: 3 | F162: 45.64326029 | G162: 3 | H162: 0.178 | I162: 5 | J162: 0.6546740337 | K162: 5 | L162: 11.85803938 | M162: 3 | N162: 10947.64 | O162: 5 | P162: 46.00744069 | Q162: 3
A163: Swartzia recurva | B163: 7348.622294 | C163: 7 | D163: 8.376208057 | E163: 7 | F163: 50.05384919 | G163: 5 | H163: 0.254 | I163: 4 | J163: 1.161600405 | K163: 8 | L163: 9.696113356 | M163: 6 | N163: 18875.51429 | O163: 7 | P163: 51.07282871 | Q163: 4
A164: Swartzia reticulata | B164: 13723.70075 | C164: 14 | D164: 8.219424903 | E164: 12 | F164: 51.14116302 | G164: 5 | H164: 0.2620833333 | I164: 6 | J164: 0.7597400772 | K164: 15 | L164: 9.376193246 | M164: 12 | N164: 52514.56786 | O164: 14 | P164: 50.84268591 | Q164: 5
A165: Swartzia schomburgkii | B165: 6053.834503 | C165: 3 | D165: 9.874673628 | E165: 3 | F165: 44.34610201 | G165: 3 | H165: 0.2206666667 | I165: 3 | J165: 0.7957701514 | K165: 3 | L165: 11.04645839 | M165: 3 | N165: 30366.6 | O165: 3 | P165: 45.10865182 | Q165: 3
A166: Tachigali plumbea | B166: 15452.34792 | C166: 4 | D166: 7.3881763 | E166: 4 | F166: 54.93982788 | G166: 4 | H166: 0.227 | I166: 4 | J166: 0.814913206 | K166: 4 | L166: 8.457497373 | M166: 4 | N166: 53665.5 | O166: 4 | P166: 55.12244951 | Q166: 4
A167: Theobroma sylvestris | B167: 24460.09286 | C167: 7 | D167: 10.34760021 | E167: 7 | F167: 46.11692345 | G167: 6 | H167: 0.3277142857 | I167: 7 | J167: 0.6776428673 | K167: 11 | L167: 10.34760021 | M167: 7 | N167: 24460.09286 | O167: 7 | P167: 46.11692345 | Q167: 6
A168: Trymatococcus amazonicus | B168: 10180.47123 | C168: 7 | D168: 12.30725834 | E168: 7 | F168: 49.83825738 | G168: 3 | H168: 0.3673333333 | I168: 3 | J168: 0.5602408638 | K168: 9 | L168: 12.30725834 | M168: 7 | N168: 10180.4 | O168: 7 | P168: 49.83825738 | Q168: 3
A169: Unonopsis duckei | B169: 10050.64444 | C169: 9 | D169: 11.93341934 | E169: 8 | F169: 56.33275628 | G169: 5 | H169: 0.1816666667 | I169: 6 | J169: 0.7609137754 | K169: 11 | L169: 11.93341934 | M169: 8 | N169: 10050.64444 | O169: 9 | P169: 56.33275628 | Q169: 5
A170: Vantanea parviflora | B170: 6388.6 | C170: 6 | D170: 8.576948239 | E170: 6 | F170: 50.09790419 | G170: 6 | H170: 0.2356666667 | I170: 6 | J170: 0.7368501133 | K170: 8 | L170: 8.576948239 | M170: 6 | N170: 6388.6 | O170: 6 | P170: 50.09790419 | Q170: 6
A171: Virola calophylla | B171: 28939.76667 | C171: 6 | D171: 7.737419762 | E171: 6 | F171: 43.96277985 | G171: 6 | H171: 0.2556 | I171: 5 | J171: 1.021056939 | K171: 7 | L171: 7.737419762 | M171: 6 | N171: 28939.76667 | O171: 6 | P171: 43.96277985 | Q171: 6
A172: Vochysia obidensis | B172: 2676.6 | C172: 3 | D172: 10.13113596 | E172: 3 | F172: 40.20065678 | G172: 3 | H172: 0.1926666667 | I172: 3 | J172: 0.548585989 | K172: 3 | L172: 10.13113596 | M172: 3 | N172: 2676.6 | O172: 3 | P172: 40.20065678 | Q172: 3
A173: Vochysia rufescens | C173: 0 | E173: 0 | G173: 0 | I173: 0 | K173: 0 | M173: 0 | O173: 0 | Q173: 0
A174: Zygia racemosa | B174: 84.53333333 | C174: 9 | D174: 12.22740153 | E174: 9 | F174: 51.5007778 | G174: 6 | H174: 0.1856 | I174: 5 | J174: 1.054483479 | K174: 7 | L174: 12.91379958 | M174: 7 | N174: 18661.71111 | O174: 9 | P174: 52.43163708 | Q174: 4
